'DEPARTMENT_FAMILY,ENTITY,PAYMENT_DATE,EXPENSE_TYPE,EXPENSE_AREA,SUPPLIER,TRANSACTION_NUMBER,AMOUNT,DESCRIPTION,
Ministry of Justice,LAA,02/11/2016,265000-IT & Telecommunications,VA403-IDP - Infrastructure,ATOS IT SERVICES UK LTD,2007229,"305,679.93",IT Costs,
Ministry of Justice,LAA,16/11/2016,532000-Tangible GBV - Additions,VA403-IDP - Infrastructure,ATOS IT SERVICES UK LTD,2007386,"32,409.60",Printing Costs,
Ministry of Justice,LAA,23/11/2016,265000-IT & Telecommunications,VA293-Finance Directorate,ATOS IT SERVICES UK LTD,2007464,"30,391.00",Printing Costs,
Ministry of Justice,LAA,23/11/2016,610400-Debtors <1 year - Prepayments & Accrued Income,VA396-Property Costs,BIRMINGHAM CITY COUNCIL,2007468,"8,796.90",Property Costs,
Ministry of Justice,LAA,23/11/2016,610400-Debtors <1 year - Prepayments & Accrued Income,VA396-Property Costs,BRIGHTON & HOVE CITY COUNCIL,2007469,"14,040.25",Property Costs,
Ministry of Justice,LAA,23/11/2016,610400-Debtors <1 year - Prepayments & Accrued Income,VA396-Property Costs,BRISTOL CITY COUNCIL,2007470,"13,170.50",Property Costs,
Ministry of Justice,LAA,02/11/2016,265000-IT & Telecommunications,VA403-IDP - Infrastructure,CAPGEMINI UK PLC,2007236,"104,889.64",IT Costs,
Ministry of Justice,LAA,02/11/2016,265000-IT & Telecommunications,VA403-IDP - Infrastructure,CAPGEMINI UK PLC,2007236,"104,889.64",IT Costs,
Ministry of Justice,LAA,02/11/2016,265000-IT & Telecommunications,VA403-IDP - Infrastructure,CAPGEMINI UK PLC,2007236,"104,889.64",IT Costs,
Ministry of Justice,LAA,23/11/2016,610400-Debtors <1 year - Prepayments & Accrued Income,VA396-Property Costs,CARDIFF COUNTY COUNCIL,2007475,"3,207.60",Property Costs,
Ministry of Justice,LAA,02/11/2016,223000-Other Expenditure,VA293-Finance Directorate,EQUIFAX PLC,2007244,"24,866.50",IT Costs,
Ministry of Justice,LAA,23/11/2016,512000-Intangible GBV - Additions,VA403-IDP - Infrastructure,INOVEM LTD,2007502,"27,330.00",IT Costs,
Ministry of Justice,LAA,23/11/2016,610400-Debtors <1 year - Prepayments & Accrued Income,VA396-Property Costs,LEEDS CITY COUNCIL,2007506,"11,281.90",Property Costs,
Ministry of Justice,LAA,23/11/2016,610400-Debtors <1 year - Prepayments & Accrued Income,VA396-Property Costs,NOTTINGHAM CITY COUNCIL,2007512,"6,013.70",Property Costs,
Ministry of Justice,LAA,02/11/2016,265000-IT & Telecommunications,VA294-ISD,REDCENTRIC SOLUTIONS LTD,2007282,"69,736.60",IT Costs,
Ministry of Justice,LAA,23/11/2016,265000-IT & Telecommunications,VA294-ISD,REDCENTRIC SOLUTIONS LTD,2007517,"69,736.60",IT Costs,
Ministry of Justice,LAA,09/11/2016,224000-Staff travel and other,VA293-Finance Directorate,REDFERN TRAVEL LTD,2007368,"42,905.72",Travel Costs,
Ministry of Justice,LAA,09/11/2016,224000-Staff travel and other,VA293-Finance Directorate,REDFERN TRAVEL LTD,2007368,68.94,Travel Costs,
Ministry of Justice,LAA,23/11/2016,265000-IT & Telecommunications,VA403-IDP - Infrastructure,REDROCK CONSULTING LTD,2007518,"55,800.00",IT Costs,
Ministry of Justice,LAA,16/11/2016,265000-IT & Telecommunications,VA403-IDP - Infrastructure,REDROCK CONSULTING LTD,2007433,"35,100.00",Printing Costs,
Ministry of Justice,LAA,23/11/2016,223000-Other Expenditure,VA395-National Courts Team,ROSSENDALES LTD,2007520,"69,221.00",Debt Enforcement Costs,
Ministry of Justice,LAA,23/11/2016,223000-Other Expenditure,VA395-National Courts Team,ROSSENDALES LTD,2007520,"45,024.24",Debt Enforcement Costs,
Ministry of Justice,LAA,23/11/2016,223000-Other Expenditure,VA395-National Courts Team,ROSSENDALES LTD,2007520,"27,196.00",Debt Enforcement Costs,
Ministry of Justice,LAA,23/11/2016,223000-Other Expenditure,VA395-National Courts Team,ROSSENDALES LTD,2007520,"8,450.32",Debt Enforcement Costs,
Ministry of Justice,LAA,23/11/2016,610400-Debtors <1 year - Prepayments & Accrued Income,VA396-Property Costs,SOUTH TYNESIDE COUNCIL,2007526,"12,077.10",Property Costs,
Ministry of Justice,LAA,30/11/2016,223000-Other Expenditure,VA701-Central Funds,THEBIGWORD INTERPRETING SERVICES LTD,2007618,"312,593.39",Central funds costs,
Ministry of Justice,LAA,23/11/2016,265000-IT & Telecommunications,VA294-ISD,WILLIAMS LEA LTD,2007532,"29,645.72",Printing Costs,
MINISTRY OF JUSTICE,LEGAL AID AGENCY,18/11/2016,Civil Representation,LEGAL AID FUND,A MARK HENDERSON,1099564:145668512,"-26,321.06",Legal Aid Payment Civil Representation,
MINISTRY OF JUSTICE,LEGAL AID AGENCY,09/11/2016,Higher Crime,LEGAL AID FUND,ABBEY SOLICITORS,1094266:145691311,"97,616.83",Legal Aid Payment Higher Crime,
MINISTRY OF JUSTICE,LEGAL AID AGENCY,23/11/2016,Higher Crime,LEGAL AID FUND,ABBEY SOLICITORS,1103332:145837843,"36,508.19",Legal Aid Payment Higher Crime,
MINISTRY OF JUSTICE,LEGAL AID AGENCY,02/11/2016,Legal Help,LEGAL AID FUND,ABBOTSTONE LAW LLP,1087060:145675786,"68,435.00",Legal Aid Payment Legal Help,
MINISTRY OF JUSTICE,LEGAL AID AGENCY,30/11/2016,Legal Help,LEGAL AID FUND,ABBOTSTONE LAW LLP,1106913:145911593,"64,827.00",Legal Aid Payment Legal Help,
MINISTRY OF JUSTICE,LEGAL AID AGENCY,09/11/2016,Higher Crime,LEGAL AID FUND,ABBOTT FORBES SOLICITORS,1094360:145743439,"37,848.70",Legal Aid Payment Higher Crime,
MINISTRY OF JUSTICE,LEGAL AID AGENCY,30/11/2016,Higher Crime,LEGAL AID FUND,ABR SOLICITORS,1104705:145913500,"61,409.40",Legal Aid Payment Higher Crime,
MINISTRY OF JUSTICE,LEGAL AID AGENCY,23/11/2016,Higher Crime,LEGAL AID FUND,ABR SOLICITORS,1099946:145856086,"30,416.67",Legal Aid Payment Higher Crime,
MINISTRY OF JUSTICE,LEGAL AID AGENCY,02/11/2016,Lower Crime,LEGAL AID FUND,ABV SOLICITORS,1088092:145675954,"80,800.00",Legal Aid Payment Lower Crime,
MINISTRY OF JUSTICE,LEGAL AID AGENCY,30/11/2016,Lower Crime,LEGAL AID FUND,ABV SOLICITORS,1105924:145911765,"80,800.00",Legal Aid Payment Lower Crime,
MINISTRY OF JUSTICE,LEGAL AID AGENCY,30/11/2016,Higher Crime,LEGAL AID FUND,ABV SOLICITORS,1105924:145888722,"51,500.07",Legal Aid Payment Higher Crime,
MINISTRY OF JUSTICE,LEGAL AID AGENCY,23/11/2016,Higher Crime,LEGAL AID FUND,ABV SOLICITORS,1103390:145839072,"30,341.42",Legal Aid Payment Higher Crime,
MINISTRY OF JUSTICE,LEGAL AID AGENCY,30/11/2016,Lower Crime,LEGAL AID FUND,ACA LAW LTD,1108656:145912403,"33,849.00",Legal Aid Payment Lower Crime,
MINISTRY OF JUSTICE,LEGAL AID AGENCY,02/11/2016,Lower Crime,LEGAL AID FUND,ACA LAW LTD,1088194:145676601,"31,637.00",Legal Aid Payment Lower Crime,
MINISTRY OF JUSTICE,LEGAL AID AGENCY,09/11/2016,Civil Representation,LEGAL AID FUND,ADAM J SMITH,1091192:3000000497480009,"29,397.16",Legal Aid Payment Civil Representation,
MINISTRY OF JUSTICE,LEGAL AID AGENCY,02/11/2016,Civil Representation,LEGAL AID FUND,ADAM J SMITH,1085742:3000000421450018,"25,403.14",Legal Aid Payment Civil Representation,
MINISTRY OF JUSTICE,LEGAL AID AGENCY,23/11/2016,Higher Crime,LEGAL AID FUND,ADVICE WISE SOLICITORS,1100990:145830092,"116,008.49",Legal Aid Payment Higher Crime,
MINISTRY OF JUSTICE,LEGAL AID AGENCY,02/11/2016,Civil Representation,LEGAL AID FUND,AFG LAW LIMITED,1085258:300000042311RC285,"26,285.32",Legal Aid Payment Civil Representation,
MINISTRY OF JUSTICE,LEGAL AID AGENCY,09/11/2016,Higher Crime,LEGAL AID FUND,AHMED & CO,1094656:145691471,"56,615.36",Legal Aid Payment Higher Crime,
MINISTRY OF JUSTICE,LEGAL AID AGENCY,16/11/2016,Civil Representation,LEGAL AID FUND,AILEEN TALLINTIRE SOLICITORS,1099010:145749064,"52,328.99",Legal Aid Payment Civil Representation,
MINISTRY OF JUSTICE,LEGAL AID AGENCY,23/11/2016,Higher Crime,LEGAL AID FUND,AITKEN HARTER,1101135:145830075,"103,363.56",Legal Aid Payment Higher Crime,
MINISTRY OF JUSTICE,LEGAL AID AGENCY,30/11/2016,Lower Crime,LEGAL AID FUND,AITKEN HARTER,1105783:145912405,"25,370.00",Legal Aid Payment Lower Crime,
MINISTRY OF JUSTICE,LEGAL AID AGENCY,30/11/2016,Legal Help,LEGAL AID FUND,ALASTAIR BATEMAN & CO,1105963:145910932,"34,957.00",Legal Aid Payment Legal Help,
MINISTRY OF JUSTICE,LEGAL AID AGENCY,02/11/2016,Legal Help,LEGAL AID FUND,ALASTAIR BATEMAN & CO,1088227:145675127,"30,500.00",Legal Aid Payment Legal Help,
MINISTRY OF JUSTICE,LEGAL AID AGENCY,30/11/2016,Legal Help,LEGAL AID FUND,ALBANY SOLICITORS,1105794:145910865,"44,168.00",Legal Aid Payment Legal Help,
MINISTRY OF JUSTICE,LEGAL AID AGENCY,02/11/2016,Legal Help,LEGAL AID FUND,ALBANY SOLICITORS,1089757:145675066,"37,659.00",Legal Aid Payment Legal Help,
MINISTRY OF JUSTICE,LEGAL AID AGENCY,02/11/2016,Lower Crime,LEGAL AID FUND,ALBIN & CO LTD,1086424:145676231,"40,000.00",Legal Aid Payment Lower Crime,
MINISTRY OF JUSTICE,LEGAL AID AGENCY,30/11/2016,Lower Crime,LEGAL AID FUND,ALBIN & CO LTD,1105881:145912037,"40,000.00",Legal Aid Payment Lower Crime,
MINISTRY OF JUSTICE,LEGAL AID AGENCY,02/11/2016,Higher Crime,LEGAL AID FUND,ALBIN & CO LTD,1086424:145629192,"30,648.56",Legal Aid Payment Higher Crime,
MINISTRY OF JUSTICE,LEGAL AID AGENCY,02/11/2016,Lower Crime,LEGAL AID FUND,ALDERSON LAW LLP,1085438:145676355,"30,800.00",Legal Aid Payment Lower Crime,
MINISTRY OF JUSTICE,LEGAL AID AGENCY,30/11/2016,Lower Crime,LEGAL AID FUND,ALDERSON LAW LLP,1107020:145912158,"30,800.00",Legal Aid Payment Lower Crime,
MINISTRY OF JUSTICE,LEGAL AID AGENCY,23/11/2016,Civil Representation,LEGAL AID FUND,ALEXA R STOREY-REA,1100277:3000000504360033,"43,175.35",Legal Aid Payment Civil Representation,
MINISTRY OF JUSTICE,LEGAL AID AGENCY,09/11/2016,Civil Representation,LEGAL AID FUND,ALEXANDER & PARTNERS,1094789:3000000494840012,"25,887.89",Legal Aid Payment Civil Representation,
MINISTRY OF JUSTICE,LEGAL AID AGENCY,02/11/2016,Lower Crime,LEGAL AID FUND,ALEXANDER BENNETT,1085399:145676361,"27,000.00",Legal Aid Payment Lower Crime,
MINISTRY OF JUSTICE,LEGAL AID AGENCY,30/11/2016,Lower Crime,LEGAL AID FUND,ALEXANDER BENNETT,1104379:145912164,"27,000.00",Legal Aid Payment Lower Crime,
MINISTRY OF JUSTICE,LEGAL AID AGENCY,30/11/2016,Higher Crime,LEGAL AID FUND,ALEXANDRA A MATTHEWS,1104255:145874952,"34,015.68",Legal Aid Payment Higher Crime,
MINISTRY OF JUSTICE,LEGAL AID AGENCY,30/11/2016,Higher Crime,LEGAL AID FUND,ALEXANDRA A MATTHEWS,1104255:145874954,"-33,969.96",Legal Aid Payment Higher Crime,
MINISTRY OF JUSTICE,LEGAL AID AGENCY,15/11/2016,Higher Crime,LEGAL AID FUND,ALI & CO,1095090:145752605,"-31,686.37",Legal Aid Payment Higher Crime,
MINISTRY OF JUSTICE,LEGAL AID AGENCY,30/11/2016,Civil Representation,LEGAL AID FUND,ALISON EASTON,1107878:145765781,"40,464.72",Legal Aid Payment Civil Representation,
MINISTRY OF JUSTICE,LEGAL AID AGENCY,30/11/2016,Higher Crime,LEGAL AID FUND,ALLEN HOOLE SOLICITORS,1106271:145884581,"116,710.50",Legal Aid Payment Higher Crime,
MINISTRY OF JUSTICE,LEGAL AID AGENCY,02/11/2016,Lower Crime,LEGAL AID FUND,ALLEN HOOLE SOLICITORS,1088414:145676252,"43,600.00",Legal Aid Payment Lower Crime,
MINISTRY OF JUSTICE,LEGAL AID AGENCY,30/11/2016,Lower Crime,LEGAL AID FUND,ALLEN HOOLE SOLICITORS,1106271:145912057,"43,600.00",Legal Aid Payment Lower Crime,
MINISTRY OF JUSTICE,LEGAL AID AGENCY,02/11/2016,Lower Crime,LEGAL AID FUND,ALLEN HOOLE SOLICITORS,1088003:145676263,"25,000.00",Legal Aid Payment Lower Crime,
MINISTRY OF JUSTICE,LEGAL AID AGENCY,30/11/2016,Lower Crime,LEGAL AID FUND,ALLEN HOOLE SOLICITORS,1108278:145912068,"25,000.00",Legal Aid Payment Lower Crime,
MINISTRY OF JUSTICE,LEGAL AID AGENCY,23/11/2016,Civil Representation,LEGAL AID FUND,ALLETSONS LTD,1103684:145816589,"47,023.16",Legal Aid Payment Civil Representation,
MINISTRY OF JUSTICE,LEGAL AID AGENCY,09/11/2016,Higher Crime,LEGAL AID FUND,AMJAD R MALIK,1091514:145711347,"28,679.77",Legal Aid Payment Higher Crime,
MINISTRY OF JUSTICE,LEGAL AID AGENCY,30/11/2016,Lower Crime,LEGAL AID FUND,AMOSU ROBINSHAW LTD,1108585:145912460,"25,727.00",Legal Aid Payment Lower Crime,
MINISTRY OF JUSTICE,LEGAL AID AGENCY,16/11/2016,Civil Representation,LEGAL AID FUND,ANDERSON PARTNERSHIP,1096867:3000000896430007,"25,746.20",Legal Aid Payment Civil Representation,
MINISTRY OF JUSTICE,LEGAL AID AGENCY,16/11/2016,Higher Crime,LEGAL AID FUND,ANDREW FISHER QC,1098230:145801083,"27,486.48",Legal Aid Payment Higher Crime,
MINISTRY OF JUSTICE,LEGAL AID AGENCY,02/11/2016,Civil Representation,LEGAL AID FUND,ANDREW J C COMAISH,1085250:300000074647JK254,"32,486.40",Legal Aid Payment Civil Representation,
MINISTRY OF JUSTICE,LEGAL AID AGENCY,02/11/2016,Higher Crime,LEGAL AID FUND,ANDREW J HALL QC,1089231:145648472,"25,768.88",Legal Aid Payment Higher Crime,
MINISTRY OF JUSTICE,LEGAL AID AGENCY,09/11/2016,Higher Crime,LEGAL AID FUND,ANDREW J MOLLOY,1093313:145742721,"25,925.95",Legal Aid Payment Higher Crime,
MINISTRY OF JUSTICE,LEGAL AID AGENCY,16/11/2016,Higher Crime,LEGAL AID FUND,ANDREW J STUBBS,1097967:145778366,"48,360.00",Legal Aid Payment Higher Crime,
MINISTRY OF JUSTICE,LEGAL AID AGENCY,30/11/2016,Higher Crime,LEGAL AID FUND,ANDREW R FITCH-HOLLAND,1107469:145866789,"31,168.44",Legal Aid Payment Higher Crime,
MINISTRY OF JUSTICE,LEGAL AID AGENCY,02/11/2016,Lower Crime,LEGAL AID FUND,ANGELA PORTER SOLICITORS,1088107:145676916,"26,268.00",Legal Aid Payment Lower Crime,
MINISTRY OF JUSTICE,LEGAL AID AGENCY,30/11/2016,Lower Crime,LEGAL AID FUND,ANGELA PORTER SOLICITORS,1105843:145912729,"25,342.00",Legal Aid Payment Lower Crime,
MINISTRY OF JUSTICE,LEGAL AID AGENCY,09/11/2016,Higher Crime,LEGAL AID FUND,ANGUS H MACDONALD,1091027:145744031,"39,635.76",Legal Aid Payment Higher Crime,
MINISTRY OF JUSTICE,LEGAL AID AGENCY,23/11/2016,Civil Representation,LEGAL AID FUND,ANNE SPRATLING,1100650:145794408,"62,208.00",Legal Aid Payment Civil Representation,
MINISTRY OF JUSTICE,LEGAL AID AGENCY,30/11/2016,Higher Crime,LEGAL AID FUND,ANNETTE P HENRY,1108022:145884986,"40,050.90",Legal Aid Payment Higher Crime,
MINISTRY OF JUSTICE,LEGAL AID AGENCY,30/11/2016,Legal Help,LEGAL AID FUND,APPLEMAN LEGAL,1106907:145911597,"45,702.00",Legal Aid Payment Legal Help,
MINISTRY OF JUSTICE,LEGAL AID AGENCY,02/11/2016,Legal Help,LEGAL AID FUND,APPLEMAN LEGAL,1087054:145675790,"39,137.00",Legal Aid Payment Legal Help,
MINISTRY OF JUSTICE,LEGAL AID AGENCY,30/11/2016,Higher Crime,LEGAL AID FUND,ARTHUR G A GIBSON,1105001:145893706,"27,885.26",Legal Aid Payment Higher Crime,
MINISTRY OF JUSTICE,LEGAL AID AGENCY,16/11/2016,Higher Crime,LEGAL AID FUND,ASHMANS SOLICITORS,1098657:145752264,"31,033.38",Legal Aid Payment Higher Crime,
MINISTRY OF JUSTICE,LEGAL AID AGENCY,30/11/2016,Higher Crime,LEGAL AID FUND,ASKEWS LEGAL LLP,1105712:145894394,"84,350.72",Legal Aid Payment Higher Crime,
MINISTRY OF JUSTICE,LEGAL AID AGENCY,23/11/2016,Higher Crime,LEGAL AID FUND,ASKEWS LEGAL LLP,1100995:145810700,"30,841.60",Legal Aid Payment Higher Crime,
MINISTRY OF JUSTICE,LEGAL AID AGENCY,16/11/2016,Civil Representation,LEGAL AID FUND,AYRES WATERS SOLICITORS,1096853:145806248,"30,519.89",Legal Aid Payment Civil Representation,
MINISTRY OF JUSTICE,LEGAL AID AGENCY,30/11/2016,Higher Crime,LEGAL AID FUND,B H MOHAMMED,1109198:145865713,"59,109.24",Legal Aid Payment Higher Crime,
MINISTRY OF JUSTICE,LEGAL AID AGENCY,16/11/2016,Higher Crime,LEGAL AID FUND,B H MOHAMMED,1099352:145800353,"41,854.79",Legal Aid Payment Higher Crime,
MINISTRY OF JUSTICE,LEGAL AID AGENCY,23/11/2016,Higher Crime,LEGAL AID FUND,B H MOHAMMED,1101699:145829283,"32,611.37",Legal Aid Payment Higher Crime,
MINISTRY OF JUSTICE,LEGAL AID AGENCY,23/11/2016,Higher Crime,LEGAL AID FUND,B H MOHAMMED,1101699:145811905,"30,720.62",Legal Aid Payment Higher Crime,
MINISTRY OF JUSTICE,LEGAL AID AGENCY,30/11/2016,Lower Crime,LEGAL AID FUND,B H MOHAMMED,1109198:145912806,"29,486.00",Legal Aid Payment Lower Crime,
MINISTRY OF JUSTICE,LEGAL AID AGENCY,09/11/2016,Higher Crime,LEGAL AID FUND,BAILEY GARCHA SOLICITORS LTD,1092561:145720308,"29,664.55",Legal Aid Payment Higher Crime,
MINISTRY OF JUSTICE,LEGAL AID AGENCY,15/11/2016,Higher Crime,LEGAL AID FUND,BAILEY NICHOLSON GRAYSON,1095089:2000000000001507,"-32,461.01",Legal Aid Payment Higher Crime,
MINISTRY OF JUSTICE,LEGAL AID AGENCY,15/11/2016,Lower Crime,LEGAL AID FUND,BAILEY NICHOLSON GRAYSON,1095089:143617330,"-34,400.00",Legal Aid Payment Lower Crime,
MINISTRY OF JUSTICE,LEGAL AID AGENCY,15/11/2016,Lower Crime,LEGAL AID FUND,BAILEY NICHOLSON GRAYSON,1095089:143956585,"-34,400.00",Legal Aid Payment Lower Crime,
MINISTRY OF JUSTICE,LEGAL AID AGENCY,15/11/2016,Lower Crime,LEGAL AID FUND,BAILEY NICHOLSON GRAYSON,1095089:144309253,"-34,400.00",Legal Aid Payment Lower Crime,
MINISTRY OF JUSTICE,LEGAL AID AGENCY,02/11/2016,Lower Crime,LEGAL AID FUND,BAL DHALIWAL SOLICITORS,1089940:145676542,"30,259.00",Legal Aid Payment Lower Crime,
MINISTRY OF JUSTICE,LEGAL AID AGENCY,30/11/2016,Lower Crime,LEGAL AID FUND,BAL DHALIWAL SOLICITORS,1106077:145912348,"25,875.00",Legal Aid Payment Lower Crime,
MINISTRY OF JUSTICE,LEGAL AID AGENCY,30/11/2016,Lower Crime,LEGAL AID FUND,BANNISTER & CO,1106684:145912752,"27,400.00",Legal Aid Payment Lower Crime,
MINISTRY OF JUSTICE,LEGAL AID AGENCY,02/11/2016,Higher Crime,LEGAL AID FUND,BARK & CO,1090192:145677740,"75,330.46",Legal Aid Payment Higher Crime,
MINISTRY OF JUSTICE,LEGAL AID AGENCY,09/11/2016,Higher Crime,LEGAL AID FUND,BARK & CO,1094641:145711619,"33,836.40",Legal Aid Payment Higher Crime,
MINISTRY OF JUSTICE,LEGAL AID AGENCY,23/11/2016,Higher Crime,LEGAL AID FUND,BARK & CO,1103705:145810550,"31,562.80",Legal Aid Payment Higher Crime,
MINISTRY OF JUSTICE,LEGAL AID AGENCY,30/11/2016,Legal Help,LEGAL AID FUND,BARNES HARRILD & DYER,1106510:145910988,"57,040.00",Legal Aid Payment Legal Help,
MINISTRY OF JUSTICE,LEGAL AID AGENCY,02/11/2016,Legal Help,LEGAL AID FUND,BARNES HARRILD & DYER,1085540:145675619,"45,965.00",Legal Aid Payment Legal Help,
MINISTRY OF JUSTICE,LEGAL AID AGENCY,30/11/2016,Legal Help,LEGAL AID FUND,BARNES HARRILD & DYER,1107129:145911434,"35,385.00",Legal Aid Payment Legal Help,
MINISTRY OF JUSTICE,LEGAL AID AGENCY,02/11/2016,Legal Help,LEGAL AID FUND,BARNES HARRILD & DYER,1090258:145675182,"31,277.00",Legal Aid Payment Legal Help,
MINISTRY OF JUSTICE,LEGAL AID AGENCY,02/11/2016,Civil Representation,LEGAL AID FUND,BARRATT GOFF & TOMLINSON,1090034:144119641,"-68,338.95",Legal Aid Payment Civil Representation,
MINISTRY OF JUSTICE,LEGAL AID AGENCY,02/11/2016,Lower Crime,LEGAL AID FUND,BARRETT & NELLIGAN SOLICITORS LTD,1088439:145676165,"27,000.00",Legal Aid Payment Lower Crime,
MINISTRY OF JUSTICE,LEGAL AID AGENCY,30/11/2016,Lower Crime,LEGAL AID FUND,BARRETT & NELLIGAN SOLICITORS LTD,1106481:145911970,"27,000.00",Legal Aid Payment Lower Crime,
MINISTRY OF JUSTICE,LEGAL AID AGENCY,30/11/2016,Higher Crime,LEGAL AID FUND,BARRICELLA HUGHES MARCHANT,1105797:145875662,"65,816.64",Legal Aid Payment Higher Crime,
MINISTRY OF JUSTICE,LEGAL AID AGENCY,02/11/2016,Higher Crime,LEGAL AID FUND,BARRICELLA HUGHES MARCHANT,1089760:145629580,"31,442.11",Legal Aid Payment Higher Crime,
MINISTRY OF JUSTICE,LEGAL AID AGENCY,02/11/2016,Civil Representation,LEGAL AID FUND,BATES & MOUNTAIN,1090112:145684577,"25,901.34",Legal Aid Payment Civil Representation,
MINISTRY OF JUSTICE,LEGAL AID AGENCY,30/11/2016,Civil Representation,LEGAL AID FUND,BATTENS LTD,1106648:3000000367990038,"37,126.99",Legal Aid Payment Civil Representation,
MINISTRY OF JUSTICE,LEGAL AID AGENCY,30/11/2016,Higher Crime,LEGAL AID FUND,BAXTER BROWN MCARTHUR SOLICITORS,1108431:145876176,"36,251.53",Legal Aid Payment Higher Crime,
MINISTRY OF JUSTICE,LEGAL AID AGENCY,09/11/2016,Civil Representation,LEGAL AID FUND,BECKET N BEDFORD,1091454:145688093,"43,333.50",Legal Aid Payment Civil Representation,
MINISTRY OF JUSTICE,LEGAL AID AGENCY,30/11/2016,Lower Crime,LEGAL AID FUND,BELMORES SOLICITORS LTD,1108422:145912317,"39,881.00",Legal Aid Payment Lower Crime,
MINISTRY OF JUSTICE,LEGAL AID AGENCY,02/11/2016,Lower Crime,LEGAL AID FUND,BELMORES SOLICITORS LTD,1088058:145676512,"39,042.00",Legal Aid Payment Lower Crime,
MINISTRY OF JUSTICE,LEGAL AID AGENCY,23/11/2016,Higher Crime,LEGAL AID FUND,BENJAMIN NOLAN QC,1102681:145857722,"34,018.32",Legal Aid Payment Higher Crime,
MINISTRY OF JUSTICE,LEGAL AID AGENCY,09/11/2016,Higher Crime,LEGAL AID FUND,BENNETT & CO,1092883:145720164,"82,400.46",Legal Aid Payment Higher Crime,
MINISTRY OF JUSTICE,LEGAL AID AGENCY,02/11/2016,Higher Crime,LEGAL AID FUND,BENNETT & CO,1085398:145639263,"55,681.90",Legal Aid Payment Higher Crime,
MINISTRY OF JUSTICE,LEGAL AID AGENCY,23/11/2016,Higher Crime,LEGAL AID FUND,BEST SOLICITORS,1103573:145811513,"30,167.00",Legal Aid Payment Higher Crime,
MINISTRY OF JUSTICE,LEGAL AID AGENCY,23/11/2016,Higher Crime,LEGAL AID FUND,BEST SOLICITORS,1103573:145811858,"25,477.94",Legal Aid Payment Higher Crime,
MINISTRY OF JUSTICE,LEGAL AID AGENCY,02/11/2016,Lower Crime,LEGAL AID FUND,BESWICKS SOLICITORS LLP,1088518:145676992,"49,432.00",Legal Aid Payment Lower Crime,
MINISTRY OF JUSTICE,LEGAL AID AGENCY,30/11/2016,Lower Crime,LEGAL AID FUND,BESWICKS SOLICITORS LLP,1106560:145912803,"35,205.00",Legal Aid Payment Lower Crime,
MINISTRY OF JUSTICE,LEGAL AID AGENCY,09/11/2016,Higher Crime,LEGAL AID FUND,BESWICKS SOLICITORS LLP,1092556:145701695,"25,008.76",Legal Aid Payment Higher Crime,
MINISTRY OF JUSTICE,LEGAL AID AGENCY,02/11/2016,Lower Crime,LEGAL AID FUND,BHATIA BEST LTD,1090098:145675836,"67,000.00",Legal Aid Payment Lower Crime,
MINISTRY OF JUSTICE,LEGAL AID AGENCY,30/11/2016,Lower Crime,LEGAL AID FUND,BHATIA BEST LTD,1106256:145911648,"67,000.00",Legal Aid Payment Lower Crime,
MINISTRY OF JUSTICE,LEGAL AID AGENCY,02/11/2016,Lower Crime,LEGAL AID FUND,BHATIA BEST LTD,1090096:145675840,"35,200.00",Legal Aid Payment Lower Crime,
MINISTRY OF JUSTICE,LEGAL AID AGENCY,30/11/2016,Lower Crime,LEGAL AID FUND,BHATIA BEST LTD,1106254:145911652,"35,200.00",Legal Aid Payment Lower Crime,
MINISTRY OF JUSTICE,LEGAL AID AGENCY,30/11/2016,Lower Crime,LEGAL AID FUND,BINDMANS LLP,1108739:145912427,"76,263.00",Legal Aid Payment Lower Crime,
MINISTRY OF JUSTICE,LEGAL AID AGENCY,30/11/2016,Legal Help,LEGAL AID FUND,BINDMANS LLP,1108739:145910569,"55,800.00",Legal Aid Payment Legal Help,
MINISTRY OF JUSTICE,LEGAL AID AGENCY,02/11/2016,Legal Help,LEGAL AID FUND,BINDMANS LLP,1089958:145674764,"43,800.00",Legal Aid Payment Legal Help,
MINISTRY OF JUSTICE,LEGAL AID AGENCY,30/11/2016,Higher Crime,LEGAL AID FUND,BIRD & CO SOLICITORS LLP,1106299:145914591,"42,067.16",Legal Aid Payment Higher Crime,
MINISTRY OF JUSTICE,LEGAL AID AGENCY,30/11/2016,Higher Crime,LEGAL AID FUND,BIRDS SOLICITORS LTD,1108531:145866306,"81,347.36",Legal Aid Payment Higher Crime,
MINISTRY OF JUSTICE,LEGAL AID AGENCY,02/11/2016,Lower Crime,LEGAL AID FUND,BIRDS SOLICITORS LTD,1086478:145675938,"40,800.00",Legal Aid Payment Lower Crime,
MINISTRY OF JUSTICE,LEGAL AID AGENCY,30/11/2016,Lower Crime,LEGAL AID FUND,BIRDS SOLICITORS LTD,1108531:145911750,"40,800.00",Legal Aid Payment Lower Crime,
MINISTRY OF JUSTICE,LEGAL AID AGENCY,30/11/2016,Higher Crime,LEGAL AID FUND,BIRDS SOLICITORS LTD,1108531:145914907,"33,473.57",Legal Aid Payment Higher Crime,
MINISTRY OF JUSTICE,LEGAL AID AGENCY,23/11/2016,Higher Crime,LEGAL AID FUND,BIRDS SOLICITORS LTD,1103363:145838441,"29,262.06",Legal Aid Payment Higher Crime,
MINISTRY OF JUSTICE,LEGAL AID AGENCY,30/11/2016,Higher Crime,LEGAL AID FUND,BIRMINGHAM LAW PRACTICE LTD,1105600:145875714,"33,916.21",Legal Aid Payment Higher Crime,
MINISTRY OF JUSTICE,LEGAL AID AGENCY,30/11/2016,Higher Crime,LEGAL AID FUND,BIRNBERG PEIRCE LTD,1106117:145866992,"60,664.78",Legal Aid Payment Higher Crime,
MINISTRY OF JUSTICE,LEGAL AID AGENCY,30/11/2016,Legal Help,LEGAL AID FUND,BISON SOLICITORS LTD,1106919:145911590,"93,550.00",Legal Aid Payment Legal Help,
MINISTRY OF JUSTICE,LEGAL AID AGENCY,02/11/2016,Legal Help,LEGAL AID FUND,BISON SOLICITORS LTD,1087064:145675783,"89,699.00",Legal Aid Payment Legal Help,
MINISTRY OF JUSTICE,LEGAL AID AGENCY,16/11/2016,Higher Crime,LEGAL AID FUND,BIVONAS LLP,1096957:145806020,"73,106.63",Legal Aid Payment Higher Crime,
MINISTRY OF JUSTICE,LEGAL AID AGENCY,02/11/2016,Higher Crime,LEGAL AID FUND,BIVONAS LLP,1086713:145634577,"45,393.90",Legal Aid Payment Higher Crime,
MINISTRY OF JUSTICE,LEGAL AID AGENCY,30/11/2016,Lower Crime,LEGAL AID FUND,BLACK & CO,1108903:145912258,"31,407.00",Legal Aid Payment Lower Crime,
MINISTRY OF JUSTICE,LEGAL AID AGENCY,02/11/2016,Lower Crime,LEGAL AID FUND,BLACKFORDS LLP,1090313:145676570,"49,120.00",Legal Aid Payment Lower Crime,
MINISTRY OF JUSTICE,LEGAL AID AGENCY,30/11/2016,Lower Crime,LEGAL AID FUND,BLACKFORDS LLP,1109260:145912377,"46,817.00",Legal Aid Payment Lower Crime,
MINISTRY OF JUSTICE,LEGAL AID AGENCY,16/11/2016,Higher Crime,LEGAL AID FUND,BLACKFORDS LLP,1099433:145801263,"40,044.00",Legal Aid Payment Higher Crime,
MINISTRY OF JUSTICE,LEGAL AID AGENCY,23/11/2016,Higher Crime,LEGAL AID FUND,BLACKFORDS LLP,1101799:145852915,"35,634.15",Legal Aid Payment Higher Crime,
MINISTRY OF JUSTICE,LEGAL AID AGENCY,02/11/2016,Civil Representation,LEGAL AID FUND,BLACKFORDS LLP,1088698:3000000377140024,"29,371.53",Legal Aid Payment Civil Representation,
MINISTRY OF JUSTICE,LEGAL AID AGENCY,16/11/2016,Higher Crime,LEGAL AID FUND,BLACKFORDS LLP,1099433:145800469,"28,536.00",Legal Aid Payment Higher Crime,
MINISTRY OF JUSTICE,LEGAL AID AGENCY,23/11/2016,Higher Crime,LEGAL AID FUND,BLACKFORDS LLP,1101799:145810561,"26,656.28",Legal Aid Payment Higher Crime,
MINISTRY OF JUSTICE,LEGAL AID AGENCY,09/11/2016,Higher Crime,LEGAL AID FUND,BLACKFORDS LLP-ADVOCATE,1093211:145690609,"30,152.86",Legal Aid Payment Higher Crime,
MINISTRY OF JUSTICE,LEGAL AID AGENCY,02/11/2016,Lower Crime,LEGAL AID FUND,BLACKWELLS,1086402:145676097,"43,800.00",Legal Aid Payment Lower Crime,
MINISTRY OF JUSTICE,LEGAL AID AGENCY,30/11/2016,Lower Crime,LEGAL AID FUND,BLACKWELLS,1108472:145911904,"31,000.00",Legal Aid Payment Lower Crime,
MINISTRY OF JUSTICE,LEGAL AID AGENCY,02/11/2016,Lower Crime,LEGAL AID FUND,BMV SOLICITORS LTD,1088048:145677001,"26,382.00",Legal Aid Payment Lower Crime,
MINISTRY OF JUSTICE,LEGAL AID AGENCY,02/11/2016,Lower Crime,LEGAL AID FUND,BOBBETTS MACKAN,1086907:145676250,"42,000.00",Legal Aid Payment Lower Crime,
MINISTRY OF JUSTICE,LEGAL AID AGENCY,30/11/2016,Lower Crime,LEGAL AID FUND,BOBBETTS MACKAN,1106695:145912055,"42,000.00",Legal Aid Payment Lower Crime,
MINISTRY OF JUSTICE,LEGAL AID AGENCY,02/11/2016,Lower Crime,LEGAL AID FUND,BOND JOSEPH,1088135:145676874,"46,652.00",Legal Aid Payment Lower Crime,
MINISTRY OF JUSTICE,LEGAL AID AGENCY,02/11/2016,Lower Crime,LEGAL AID FUND,BOOTS STARKE GOACHER SOLICITORS,1089938:145676886,"33,812.00",Legal Aid Payment Lower Crime,
MINISTRY OF JUSTICE,LEGAL AID AGENCY,30/11/2016,Lower Crime,LEGAL AID FUND,BOOTS STARKE GOACHER SOLICITORS,1106075:145912697,"26,036.00",Legal Aid Payment Lower Crime,
MINISTRY OF JUSTICE,LEGAL AID AGENCY,30/11/2016,Lower Crime,LEGAL AID FUND,BOWDEN JONES SOLICITORS,1106009:145912229,"25,417.00",Legal Aid Payment Lower Crime,
MINISTRY OF JUSTICE,LEGAL AID AGENCY,30/11/2016,Lower Crime,LEGAL AID FUND,BRADY EASTWOOD PIERCE & STEWART,1109290:145912419,"32,496.00",Legal Aid Payment Lower Crime,
MINISTRY OF JUSTICE,LEGAL AID AGENCY,02/11/2016,Legal Help,LEGAL AID FUND,BRAITCH SOLICITORS (RB SOLICITORS),1089784:145651573,"98,389.00",Legal Aid Payment Legal Help,
MINISTRY OF JUSTICE,LEGAL AID AGENCY,30/11/2016,Legal Help,LEGAL AID FUND,BRAITCH SOLICITORS (RB SOLICITORS),1108439:145910730,"40,495.00",Legal Aid Payment Legal Help,
MINISTRY OF JUSTICE,LEGAL AID AGENCY,30/11/2016,Lower Crime,LEGAL AID FUND,BREYDONS SOLICITORS LTD,1106892:145912925,"30,194.00",Legal Aid Payment Lower Crime,
MINISTRY OF JUSTICE,LEGAL AID AGENCY,02/11/2016,Lower Crime,LEGAL AID FUND,BREYDONS SOLICITORS LTD,1087038:145677119,"26,467.00",Legal Aid Payment Lower Crime,
MINISTRY OF JUSTICE,LEGAL AID AGENCY,30/11/2016,Legal Help,LEGAL AID FUND,BRIGHTON HOUSING TRUST,1108124:145911309,"41,802.00",Legal Aid Payment Legal Help,
MINISTRY OF JUSTICE,LEGAL AID AGENCY,02/11/2016,Legal Help,LEGAL AID FUND,BRIGHTON HOUSING TRUST,1087858:145675506,"34,457.00",Legal Aid Payment Legal Help,
MINISTRY OF JUSTICE,LEGAL AID AGENCY,16/11/2016,Higher Crime,LEGAL AID FUND,BROADBENTS SOLICITORS LLP,1098859:145800503,"25,005.80",Legal Aid Payment Higher Crime,
MINISTRY OF JUSTICE,LEGAL AID AGENCY,16/11/2016,Legal Help,LEGAL AID FUND,BROWNINGS-IN LIQUIDATION,1099329:144037235,"28,704.52",Legal Aid Payment Legal Help,
MINISTRY OF JUSTICE,LEGAL AID AGENCY,30/11/2016,Higher Crime,LEGAL AID FUND,BSB SOLICITORS,1108629:145876005,"58,560.92",Legal Aid Payment Higher Crime,
MINISTRY OF JUSTICE,LEGAL AID AGENCY,02/11/2016,Lower Crime,LEGAL AID FUND,BULLIVANT LAW LTD,1089773:145675922,"41,000.00",Legal Aid Payment Lower Crime,
MINISTRY OF JUSTICE,LEGAL AID AGENCY,30/11/2016,Lower Crime,LEGAL AID FUND,BULLIVANT LAW LTD,1108452:145911732,"41,000.00",Legal Aid Payment Lower Crime,
MINISTRY OF JUSTICE,LEGAL AID AGENCY,30/11/2016,Legal Help,LEGAL AID FUND,BURKE NIAZI  LTD,1109126:145890539,"120,000.00",Legal Aid Payment Legal Help,
MINISTRY OF JUSTICE,LEGAL AID AGENCY,02/11/2016,Legal Help,LEGAL AID FUND,BURKE NIAZI  LTD,1086804:145651034,"90,000.00",Legal Aid Payment Legal Help,
MINISTRY OF JUSTICE,LEGAL AID AGENCY,02/11/2016,Legal Help,LEGAL AID FUND,BURKE NIAZI  LTD,1086804:145651036,"30,000.00",Legal Aid Payment Legal Help,
MINISTRY OF JUSTICE,LEGAL AID AGENCY,02/11/2016,Higher Crime,LEGAL AID FUND,BURTON COPELAND LLP,1088301:145655890,"66,893.19",Legal Aid Payment Higher Crime,
MINISTRY OF JUSTICE,LEGAL AID AGENCY,02/11/2016,Lower Crime,LEGAL AID FUND,BURTON COPELAND LLP,1088301:145676851,"32,090.00",Legal Aid Payment Lower Crime,
MINISTRY OF JUSTICE,LEGAL AID AGENCY,30/11/2016,Lower Crime,LEGAL AID FUND,BURTON COPELAND LLP,1106147:145912662,"31,907.00",Legal Aid Payment Lower Crime,
MINISTRY OF JUSTICE,LEGAL AID AGENCY,04/11/2016,Lower Crime,LEGAL AID FUND,BURTON COPELAND LLP,1090484:143809342,"-39,335.90",Legal Aid Payment Lower Crime,
MINISTRY OF JUSTICE,LEGAL AID AGENCY,02/11/2016,Legal Help,LEGAL AID FUND,BUTLER & CO,1088063:145674656,"36,500.00",Legal Aid Payment Legal Help,
MINISTRY OF JUSTICE,LEGAL AID AGENCY,30/11/2016,Legal Help,LEGAL AID FUND,BUTLER & CO,1108427:145910467,"36,500.00",Legal Aid Payment Legal Help,
MINISTRY OF JUSTICE,LEGAL AID AGENCY,02/11/2016,Legal Help,LEGAL AID FUND,CAMPBELL-TAYLOR SOLICITORS,1090302:145675210,"33,392.00",Legal Aid Payment Legal Help,
MINISTRY OF JUSTICE,LEGAL AID AGENCY,23/11/2016,Higher Crime,LEGAL AID FUND,CANTARIS LOCKE SOLICITORS,1099764:145811212,"29,664.55",Legal Aid Payment Higher Crime,
MINISTRY OF JUSTICE,LEGAL AID AGENCY,23/11/2016,Legal Help,LEGAL AID FUND,CARILLION ADVICE SERVICES,1102061:145834124,"33,313.20",Legal Aid Payment Legal Help,
MINISTRY OF JUSTICE,LEGAL AID AGENCY,30/11/2016,Civil Representation,LEGAL AID FUND,CARLY E HENLEY,1105146:3000000590010028,"27,615.46",Legal Aid Payment Civil Representation,
MINISTRY OF JUSTICE,LEGAL AID AGENCY,02/11/2016,Higher Crime,LEGAL AID FUND,CAROLINA A GUILOFF,1086124:145638946,"34,766.88",Legal Aid Payment Higher Crime,
MINISTRY OF JUSTICE,LEGAL AID AGENCY,02/11/2016,Lower Crime,LEGAL AID FUND,CARR & CO ,1090125:145676094,"34,600.00",Legal Aid Payment Lower Crime,
MINISTRY OF JUSTICE,LEGAL AID AGENCY,30/11/2016,Lower Crime,LEGAL AID FUND,CARR & CO ,1109001:145911901,"34,600.00",Legal Aid Payment Lower Crime,
MINISTRY OF JUSTICE,LEGAL AID AGENCY,30/11/2016,Lower Crime,LEGAL AID FUND,CARRINGTONS SOLICITORS,1108447:145912278,"176,780.00",Legal Aid Payment Lower Crime,
MINISTRY OF JUSTICE,LEGAL AID AGENCY,02/11/2016,Lower Crime,LEGAL AID FUND,CARRINGTONS SOLICITORS,1089769:145676473,"153,662.00",Legal Aid Payment Lower Crime,
MINISTRY OF JUSTICE,LEGAL AID AGENCY,09/11/2016,Higher Crime,LEGAL AID FUND,CARSON KAYE SOLICITORS,1092778:145691306,"89,975.11",Legal Aid Payment Higher Crime,
MINISTRY OF JUSTICE,LEGAL AID AGENCY,09/11/2016,Higher Crime,LEGAL AID FUND,CARSON KAYE SOLICITORS,1092778:145710748,"77,198.87",Legal Aid Payment Higher Crime,
MINISTRY OF JUSTICE,LEGAL AID AGENCY,30/11/2016,Lower Crime,LEGAL AID FUND,CARTER OSBORNE LTD,1106295:145912274,"54,919.00",Legal Aid Payment Lower Crime,
MINISTRY OF JUSTICE,LEGAL AID AGENCY,02/11/2016,Lower Crime,LEGAL AID FUND,CARTER OSBORNE LTD,1090035:145676470,"49,984.00",Legal Aid Payment Lower Crime,
MINISTRY OF JUSTICE,LEGAL AID AGENCY,30/11/2016,Lower Crime,LEGAL AID FUND,CARTER OSBORNE LTD,1106296:145912271,"33,833.00",Legal Aid Payment Lower Crime,
MINISTRY OF JUSTICE,LEGAL AID AGENCY,02/11/2016,Lower Crime,LEGAL AID FUND,CARTER OSBORNE LTD,1090036:145676467,"25,164.00",Legal Aid Payment Lower Crime,
MINISTRY OF JUSTICE,LEGAL AID AGENCY,30/11/2016,Legal Help,LEGAL AID FUND,CARTWRIGHT KING SOLICITORS,1105993:145911156,"86,602.00",Legal Aid Payment Legal Help,
MINISTRY OF JUSTICE,LEGAL AID AGENCY,02/11/2016,Legal Help,LEGAL AID FUND,CARTWRIGHT KING SOLICITORS,1089875:145675341,"72,934.00",Legal Aid Payment Legal Help,
MINISTRY OF JUSTICE,LEGAL AID AGENCY,30/11/2016,Higher Crime,LEGAL AID FUND,CARTWRIGHT KING SOLICITORS,1105993:145866159,"64,262.12",Legal Aid Payment Higher Crime,
MINISTRY OF JUSTICE,LEGAL AID AGENCY,30/11/2016,Lower Crime,LEGAL AID FUND,CARTWRIGHT KING SOLICITORS,1105993:145912284,"55,157.00",Legal Aid Payment Lower Crime,
MINISTRY OF JUSTICE,LEGAL AID AGENCY,02/11/2016,Lower Crime,LEGAL AID FUND,CARTWRIGHT KING SOLICITORS,1087018:145676367,"40,900.00",Legal Aid Payment Lower Crime,
MINISTRY OF JUSTICE,LEGAL AID AGENCY,30/11/2016,Lower Crime,LEGAL AID FUND,CARTWRIGHT KING SOLICITORS,1106871:145912170,"40,900.00",Legal Aid Payment Lower Crime,
MINISTRY OF JUSTICE,LEGAL AID AGENCY,30/11/2016,Lower Crime,LEGAL AID FUND,CARTWRIGHT KING SOLICITORS,1105583:145912878,"31,561.00",Legal Aid Payment Lower Crime,
MINISTRY OF JUSTICE,LEGAL AID AGENCY,02/11/2016,Lower Crime,LEGAL AID FUND,CARTWRIGHT KING SOLICITORS,1089875:145676480,"31,550.00",Legal Aid Payment Lower Crime,
MINISTRY OF JUSTICE,LEGAL AID AGENCY,02/11/2016,Lower Crime,LEGAL AID FUND,CARTWRIGHT KING SOLICITORS,1089874:145676483,"31,495.00",Legal Aid Payment Lower Crime,
MINISTRY OF JUSTICE,LEGAL AID AGENCY,30/11/2016,Lower Crime,LEGAL AID FUND,CARTWRIGHT KING SOLICITORS,1106016:145912287,"29,310.00",Legal Aid Payment Lower Crime,
MINISTRY OF JUSTICE,LEGAL AID AGENCY,02/11/2016,Lower Crime,LEGAL AID FUND,CARTWRIGHT KING SOLICITORS,1087020:145676365,"28,900.00",Legal Aid Payment Lower Crime,
MINISTRY OF JUSTICE,LEGAL AID AGENCY,30/11/2016,Lower Crime,LEGAL AID FUND,CARTWRIGHT KING SOLICITORS,1106873:145912168,"28,900.00",Legal Aid Payment Lower Crime,
MINISTRY OF JUSTICE,LEGAL AID AGENCY,30/11/2016,Legal Help,LEGAL AID FUND,CARTWRIGHT KING SOLICITORS,1104413:145911582,"28,785.00",Legal Aid Payment Legal Help,
MINISTRY OF JUSTICE,LEGAL AID AGENCY,02/11/2016,Lower Crime,LEGAL AID FUND,CARTWRIGHT KING SOLICITORS,1087929:145677068,"26,640.00",Legal Aid Payment Lower Crime,
MINISTRY OF JUSTICE,LEGAL AID AGENCY,02/11/2016,Lower Crime,LEGAL AID FUND,CARTWRIGHT KING SOLICITORS,1088723:145677286,"26,535.00",Legal Aid Payment Lower Crime,
MINISTRY OF JUSTICE,LEGAL AID AGENCY,23/11/2016,Civil Representation,LEGAL AID FUND,CATHERINE J MASON,1100838:145841294,"29,430.00",Legal Aid Payment Civil Representation,
MINISTRY OF JUSTICE,LEGAL AID AGENCY,23/11/2016,Civil Representation,LEGAL AID FUND,CATHERINE L HILL,1100860:3000000405820011,"25,695.60",Legal Aid Payment Civil Representation,
MINISTRY OF JUSTICE,LEGAL AID AGENCY,16/11/2016,Civil Representation,LEGAL AID FUND,CHAMBERS SOLICITORS,1096626:3000000308490009,"34,010.45",Legal Aid Payment Civil Representation,
MINISTRY OF JUSTICE,LEGAL AID AGENCY,09/11/2016,Civil Representation,LEGAL AID FUND,CHAMBERS SOLICITORS,1092063:145738956,"28,821.22",Legal Aid Payment Civil Representation,
MINISTRY OF JUSTICE,LEGAL AID AGENCY,16/11/2016,Higher Crime,LEGAL AID FUND,CHARLES P ROW,1095919:145781551,"37,837.44",Legal Aid Payment Higher Crime,
MINISTRY OF JUSTICE,LEGAL AID AGENCY,09/11/2016,Higher Crime,LEGAL AID FUND,CHIVERS SOLICITORS,1091904:145691329,"105,857.75",Legal Aid Payment Higher Crime,
MINISTRY OF JUSTICE,LEGAL AID AGENCY,30/11/2016,Higher Crime,LEGAL AID FUND,CHIVERS SOLICITORS,1108273:145884766,"58,250.53",Legal Aid Payment Higher Crime,
MINISTRY OF JUSTICE,LEGAL AID AGENCY,30/11/2016,Higher Crime,LEGAL AID FUND,CHOPRA & GILL SOLICITORS,1105710:145874969,"59,109.24",Legal Aid Payment Higher Crime,
MINISTRY OF JUSTICE,LEGAL AID AGENCY,30/11/2016,Higher Crime,LEGAL AID FUND,CHRISTIAN LAVERGNE,1106801:145867006,"34,376.56",Legal Aid Payment Higher Crime,
MINISTRY OF JUSTICE,LEGAL AID AGENCY,23/11/2016,Higher Crime,LEGAL AID FUND,CJCH SOLICITORS,1102290:145838705,"74,796.16",Legal Aid Payment Higher Crime,
MINISTRY OF JUSTICE,LEGAL AID AGENCY,30/11/2016,Legal Help,LEGAL AID FUND,CJCH SOLICITORS,1106883:145911602,"44,357.00",Legal Aid Payment Legal Help,
MINISTRY OF JUSTICE,LEGAL AID AGENCY,02/11/2016,Lower Crime,LEGAL AID FUND,CJCH SOLICITORS,1088989:145677239,"39,561.00",Legal Aid Payment Lower Crime,
MINISTRY OF JUSTICE,LEGAL AID AGENCY,02/11/2016,Legal Help,LEGAL AID FUND,CJCH SOLICITORS,1087030:145675793,"32,573.00",Legal Aid Payment Legal Help,
MINISTRY OF JUSTICE,LEGAL AID AGENCY,09/11/2016,Higher Crime,LEGAL AID FUND,CJH GREENHILL COOPER SOLICITORS,1092254:145702146,"43,708.09",Legal Aid Payment Higher Crime,
MINISTRY OF JUSTICE,LEGAL AID AGENCY,09/11/2016,Civil Representation,LEGAL AID FUND,CLARE L GARNHAM,1093728:3000000830590011,"61,870.80",Legal Aid Payment Civil Representation,
MINISTRY OF JUSTICE,LEGAL AID AGENCY,09/11/2016,Higher Crime,LEGAL AID FUND,CLARK BROOKES TURNER CARY LTD,1094702:145710817,"31,408.75",Legal Aid Payment Higher Crime,
MINISTRY OF JUSTICE,LEGAL AID AGENCY,02/11/2016,Lower Crime,LEGAL AID FUND,CLARKE KIERNAN LLP,1088187:145676862,"30,651.00",Legal Aid Payment Lower Crime,
MINISTRY OF JUSTICE,LEGAL AID AGENCY,30/11/2016,Lower Crime,LEGAL AID FUND,CLARKE KIERNAN LLP,1108650:145912672,"26,825.00",Legal Aid Payment Lower Crime,
MINISTRY OF JUSTICE,LEGAL AID AGENCY,30/11/2016,Lower Crime,LEGAL AID FUND,CLIFFORD JOHNSTON & CO,1106145:145912622,"80,733.00",Legal Aid Payment Lower Crime,
MINISTRY OF JUSTICE,LEGAL AID AGENCY,30/11/2016,Higher Crime,LEGAL AID FUND,CLIFFORD JOHNSTON & CO,1106145:145874762,"50,510.88",Legal Aid Payment Higher Crime,
MINISTRY OF JUSTICE,LEGAL AID AGENCY,02/11/2016,Lower Crime,LEGAL AID FUND,COBAINS SOLICITORS,1086506:145676166,"30,000.00",Legal Aid Payment Lower Crime,
MINISTRY OF JUSTICE,LEGAL AID AGENCY,30/11/2016,Lower Crime,LEGAL AID FUND,COBAINS SOLICITORS,1108613:145911971,"30,000.00",Legal Aid Payment Lower Crime,
MINISTRY OF JUSTICE,LEGAL AID AGENCY,16/11/2016,Higher Crime,LEGAL AID FUND,COBLEYS LLP,1098904:145761630,"38,297.15",Legal Aid Payment Higher Crime,
MINISTRY OF JUSTICE,LEGAL AID AGENCY,02/11/2016,Higher Crime,LEGAL AID FUND,COHEN CRAMER,1089839:145629588,"93,951.32",Legal Aid Payment Higher Crime,
MINISTRY OF JUSTICE,LEGAL AID AGENCY,09/11/2016,Higher Crime,LEGAL AID FUND,COHEN CRAMER,1092095:145701687,"37,296.80",Legal Aid Payment Higher Crime,
MINISTRY OF JUSTICE,LEGAL AID AGENCY,23/11/2016,Higher Crime,LEGAL AID FUND,COLIN C AYLOTT,1102641:145810991,"25,900.97",Legal Aid Payment Higher Crime,
MINISTRY OF JUSTICE,LEGAL AID AGENCY,30/11/2016,Higher Crime,LEGAL AID FUND,COLIN J WELLS,1108006:145866053,"26,644.20",Legal Aid Payment Higher Crime,
MINISTRY OF JUSTICE,LEGAL AID AGENCY,02/11/2016,Legal Help,LEGAL AID FUND,CONFREYS,1086968:145675062,"40,412.00",Legal Aid Payment Legal Help,
MINISTRY OF JUSTICE,LEGAL AID AGENCY,30/11/2016,Legal Help,LEGAL AID FUND,CONFREYS,1109181:145910859,"31,009.00",Legal Aid Payment Legal Help,
MINISTRY OF JUSTICE,LEGAL AID AGENCY,02/11/2016,Lower Crime,LEGAL AID FUND,CONNOR ROSS-BROWN SOLICITORS,1085575:145676352,"35,000.00",Legal Aid Payment Lower Crime,
MINISTRY OF JUSTICE,LEGAL AID AGENCY,30/11/2016,Lower Crime,LEGAL AID FUND,CONNOR ROSS-BROWN SOLICITORS,1104632:145912155,"35,000.00",Legal Aid Payment Lower Crime,
MINISTRY OF JUSTICE,LEGAL AID AGENCY,02/11/2016,Legal Help,LEGAL AID FUND,CORAM CHILDREN'S LEGAL CENTRE,1086314:145675390,"29,907.00",Legal Aid Payment Legal Help,
MINISTRY OF JUSTICE,LEGAL AID AGENCY,23/11/2016,Legal Help,LEGAL AID FUND,CORAM CHILDREN'S LEGAL CENTRE,1103563:145834813,"27,192.16",Legal Aid Payment Legal Help,
MINISTRY OF JUSTICE,LEGAL AID AGENCY,30/11/2016,Higher Crime,LEGAL AID FUND,CORKER BINNING,1108550:145890553,"51,030.78",Legal Aid Payment Higher Crime,
MINISTRY OF JUSTICE,LEGAL AID AGENCY,30/11/2016,Higher Crime,LEGAL AID FUND,CORKER BINNING,1108550:145890554,"35,240.68",Legal Aid Payment Higher Crime,
MINISTRY OF JUSTICE,LEGAL AID AGENCY,09/11/2016,Higher Crime,LEGAL AID FUND,CORKER BINNING,1094297:145705886,"29,387.97",Legal Aid Payment Higher Crime,
MINISTRY OF JUSTICE,LEGAL AID AGENCY,02/11/2016,Higher Crime,LEGAL AID FUND,COURTENAY GRIFFITHS QC,1085493:145648416,"27,020.47",Legal Aid Payment Higher Crime,
MINISTRY OF JUSTICE,LEGAL AID AGENCY,30/11/2016,Higher Crime,LEGAL AID FUND,COUSINS TYRER SOLICITORS,1108895:145885385,"97,258.75",Legal Aid Payment Higher Crime,
MINISTRY OF JUSTICE,LEGAL AID AGENCY,30/11/2016,Lower Crime,LEGAL AID FUND,COUSINS TYRER SOLICITORS,1108895:145912570,"27,341.00",Legal Aid Payment Lower Crime,
MINISTRY OF JUSTICE,LEGAL AID AGENCY,30/11/2016,Civil Representation,LEGAL AID FUND,CREIGHTON & PARTNERS,1106004:145897748,"30,030.20",Legal Aid Payment Civil Representation,
MINISTRY OF JUSTICE,LEGAL AID AGENCY,02/11/2016,Lower Crime,LEGAL AID FUND,CRIMINAL DEFENCE ASSOCIATES,1089765:145675870,"42,500.00",Legal Aid Payment Lower Crime,
MINISTRY OF JUSTICE,LEGAL AID AGENCY,30/11/2016,Lower Crime,LEGAL AID FUND,CRIMINAL DEFENCE ASSOCIATES,1105801:145911681,"42,500.00",Legal Aid Payment Lower Crime,
MINISTRY OF JUSTICE,LEGAL AID AGENCY,02/11/2016,Lower Crime,LEGAL AID FUND,CRIMINAL DEFENCE MILTON KEYNES LTD,1087978:145676222,"38,500.00",Legal Aid Payment Lower Crime,
MINISTRY OF JUSTICE,LEGAL AID AGENCY,30/11/2016,Lower Crime,LEGAL AID FUND,CRIMINAL DEFENCE MILTON KEYNES LTD,1108359:145912027,"38,500.00",Legal Aid Payment Lower Crime,
MINISTRY OF JUSTICE,LEGAL AID AGENCY,02/11/2016,Lower Crime,LEGAL AID FUND,CRIMINAL DEFENCE SOLICITORS,1088049:145675993,"31,900.00",Legal Aid Payment Lower Crime,
MINISTRY OF JUSTICE,LEGAL AID AGENCY,30/11/2016,Lower Crime,LEGAL AID FUND,CRIMINAL DEFENCE SOLICITORS,1108414:145911802,"31,900.00",Legal Aid Payment Lower Crime,
MINISTRY OF JUSTICE,LEGAL AID AGENCY,30/11/2016,Civil Representation,LEGAL AID FUND,CROMBIE WILKINSON SOLICITORS LLP,1108999:3000001142900004,"27,913.27",Legal Aid Payment Civil Representation,
MINISTRY OF JUSTICE,LEGAL AID AGENCY,02/11/2016,Lower Crime,LEGAL AID FUND,CROWE HUMBLE WESENCRAFT,1088174:145676053,"34,200.00",Legal Aid Payment Lower Crime,
MINISTRY OF JUSTICE,LEGAL AID AGENCY,30/11/2016,Lower Crime,LEGAL AID FUND,CROWE HUMBLE WESENCRAFT,1108626:145911859,"34,200.00",Legal Aid Payment Lower Crime,
MINISTRY OF JUSTICE,LEGAL AID AGENCY,09/11/2016,Legal Help,LEGAL AID FUND,CROWN HOUSE SOLICITORS,1090651:145385610,"29,524.00",Legal Aid Payment Legal Help,
MINISTRY OF JUSTICE,LEGAL AID AGENCY,30/11/2016,Legal Help,LEGAL AID FUND,CROWN HOUSE SOLICITORS,1106921:145911589,"27,057.00",Legal Aid Payment Legal Help,
MINISTRY OF JUSTICE,LEGAL AID AGENCY,23/11/2016,Higher Crime,LEGAL AID FUND,CUNNINGHAMS LYTHGOE CAPLIN LTD,1101280:145857602,"57,881.34",Legal Aid Payment Higher Crime,
MINISTRY OF JUSTICE,LEGAL AID AGENCY,23/11/2016,Civil Representation,LEGAL AID FUND,CYRUS R LARIZADEH,1102823:3000001133550006,"51,243.30",Legal Aid Payment Civil Representation,
MINISTRY OF JUSTICE,LEGAL AID AGENCY,02/11/2016,Lower Crime,LEGAL AID FUND,DALTON HOLMES GRAY,1089992:145676631,"44,402.00",Legal Aid Payment Lower Crime,
MINISTRY OF JUSTICE,LEGAL AID AGENCY,30/11/2016,Lower Crime,LEGAL AID FUND,DALTON HOLMES GRAY,1108669:145912435,"31,608.00",Legal Aid Payment Lower Crime,
MINISTRY OF JUSTICE,LEGAL AID AGENCY,23/11/2016,Higher Crime,LEGAL AID FUND,DAMIAN F NOLAN,1102677:145857809,"31,101.96",Legal Aid Payment Higher Crime,
MINISTRY OF JUSTICE,LEGAL AID AGENCY,23/11/2016,Higher Crime,LEGAL AID FUND,DANIEL O JONES,1103186:145811633,"27,202.20",Legal Aid Payment Higher Crime,
MINISTRY OF JUSTICE,LEGAL AID AGENCY,09/11/2016,Higher Crime,LEGAL AID FUND,DANIEL WOODMAN & CO LTD,1094403:145711387,"40,248.10",Legal Aid Payment Higher Crime,
MINISTRY OF JUSTICE,LEGAL AID AGENCY,16/11/2016,Higher Crime,LEGAL AID FUND,DAPINDERPAUL SINGH,1096107:145762166,"45,451.68",Legal Aid Payment Higher Crime,
MINISTRY OF JUSTICE,LEGAL AID AGENCY,16/11/2016,Higher Crime,LEGAL AID FUND,DARRYL INGRAM & CO,1098812:145753373,"44,960.52",Legal Aid Payment Higher Crime,
MINISTRY OF JUSTICE,LEGAL AID AGENCY,02/11/2016,Lower Crime,LEGAL AID FUND,DARRYL INGRAM & CO,1086437:145675964,"27,600.00",Legal Aid Payment Lower Crime,
MINISTRY OF JUSTICE,LEGAL AID AGENCY,30/11/2016,Lower Crime,LEGAL AID FUND,DARRYL INGRAM & CO,1105860:145911774,"27,600.00",Legal Aid Payment Lower Crime,
MINISTRY OF JUSTICE,LEGAL AID AGENCY,02/11/2016,Lower Crime,LEGAL AID FUND,DARTON LAW LIMITED,1087922:145677192,"25,730.00",Legal Aid Payment Lower Crime,
MINISTRY OF JUSTICE,LEGAL AID AGENCY,30/11/2016,Lower Crime,LEGAL AID FUND,DAVID AKE & CO,1108896:145912569,"30,384.00",Legal Aid Payment Lower Crime,
MINISTRY OF JUSTICE,LEGAL AID AGENCY,23/11/2016,Higher Crime,LEGAL AID FUND,DAVID B MASON,1102672:145811141,"26,843.28",Legal Aid Payment Higher Crime,
MINISTRY OF JUSTICE,LEGAL AID AGENCY,02/11/2016,Legal Help,LEGAL AID FUND,DAVID GRAY LLP,1086409:145675310,"42,307.00",Legal Aid Payment Legal Help,
MINISTRY OF JUSTICE,LEGAL AID AGENCY,30/11/2016,Legal Help,LEGAL AID FUND,DAVID GRAY LLP,1108478:145911121,"38,044.00",Legal Aid Payment Legal Help,
MINISTRY OF JUSTICE,LEGAL AID AGENCY,23/11/2016,Higher Crime,LEGAL AID FUND,DAVID MORTON,1102947:145819670,"31,449.00",Legal Aid Payment Higher Crime,
MINISTRY OF JUSTICE,LEGAL AID AGENCY,30/11/2016,Higher Crime,LEGAL AID FUND,DAVID N BENTLEY,1107564:145874777,"39,439.52",Legal Aid Payment Higher Crime,
MINISTRY OF JUSTICE,LEGAL AID AGENCY,23/11/2016,Higher Crime,LEGAL AID FUND,DAVID R SCUTT,1100875:145857537,"28,821.89",Legal Aid Payment Higher Crime,
MINISTRY OF JUSTICE,LEGAL AID AGENCY,16/11/2016,Higher Crime,LEGAL AID FUND,DAVID RUBIE MITCHELL & CO,1099356:145800427,"52,806.34",Legal Aid Payment Higher Crime,
MINISTRY OF JUSTICE,LEGAL AID AGENCY,23/11/2016,Higher Crime,LEGAL AID FUND,DAVID T FISH QC,1100521:145819401,"28,091.82",Legal Aid Payment Higher Crime,
MINISTRY OF JUSTICE,LEGAL AID AGENCY,23/11/2016,Civil Representation,LEGAL AID FUND,DAWSON CORNWELL,1101797:145825056,"28,182.83",Legal Aid Payment Civil Representation,
MINISTRY OF JUSTICE,LEGAL AID AGENCY,02/11/2016,Civil Representation,LEGAL AID FUND,DEBORAH ADCOCK,1086208:3000001119790009,"26,321.40",Legal Aid Payment Civil Representation,
MINISTRY OF JUSTICE,LEGAL AID AGENCY,16/11/2016,Civil Representation,LEGAL AID FUND,DENISE A GILLING,1098207:145774807,"26,621.28",Legal Aid Payment Civil Representation,
MINISTRY OF JUSTICE,LEGAL AID AGENCY,02/11/2016,Lower Crime,LEGAL AID FUND,DEVAS KEOGH JAMES SOLICITORS LTD,1088512:145676534,"44,556.00",Legal Aid Payment Lower Crime,
MINISTRY OF JUSTICE,LEGAL AID AGENCY,23/11/2016,Higher Crime,LEGAL AID FUND,DEXTER HENRY & CO,1103876:145811029,"42,496.37",Legal Aid Payment Higher Crime,
MINISTRY OF JUSTICE,LEGAL AID AGENCY,23/11/2016,Legal Help,LEGAL AID FUND,DIRECT HELP & ADVICE LTD,1101158:145834125,"26,955.84",Legal Aid Payment Legal Help,
MINISTRY OF JUSTICE,LEGAL AID AGENCY,30/11/2016,Lower Crime,LEGAL AID FUND,DJMS SOLICITORS LTD,1105661:145912492,"42,475.00",Legal Aid Payment Lower Crime,
MINISTRY OF JUSTICE,LEGAL AID AGENCY,02/11/2016,Lower Crime,LEGAL AID FUND,DJMS SOLICITORS LTD,1089715:145676684,"39,672.00",Legal Aid Payment Lower Crime,
MINISTRY OF JUSTICE,LEGAL AID AGENCY,30/11/2016,Lower Crime,LEGAL AID FUND,DJMS SOLICITORS LTD,1104683:145913043,"27,909.00",Legal Aid Payment Lower Crime,
MINISTRY OF JUSTICE,LEGAL AID AGENCY,02/11/2016,Lower Crime,LEGAL AID FUND,DOBSONS,1088693:145675945,"35,000.00",Legal Aid Payment Lower Crime,
MINISTRY OF JUSTICE,LEGAL AID AGENCY,30/11/2016,Lower Crime,LEGAL AID FUND,DOBSONS,1106728:145911756,"35,000.00",Legal Aid Payment Lower Crime,
MINISTRY OF JUSTICE,LEGAL AID AGENCY,30/11/2016,Legal Help,LEGAL AID FUND,DONOVAN NEWTON SOLICITORS,1105777:145911140,"31,488.00",Legal Aid Payment Legal Help,
MINISTRY OF JUSTICE,LEGAL AID AGENCY,02/11/2016,Higher Crime,LEGAL AID FUND,DPP LAW LTD,1088198:145677764,"95,707.01",Legal Aid Payment Higher Crime,
MINISTRY OF JUSTICE,LEGAL AID AGENCY,02/11/2016,Higher Crime,LEGAL AID FUND,DPP LAW LTD,1086312:145656303,"71,545.90",Legal Aid Payment Higher Crime,
MINISTRY OF JUSTICE,LEGAL AID AGENCY,23/11/2016,Higher Crime,LEGAL AID FUND,DPP LAW LTD,1103419:145829351,"54,699.78",Legal Aid Payment Higher Crime,
MINISTRY OF JUSTICE,LEGAL AID AGENCY,02/11/2016,Lower Crime,LEGAL AID FUND,DPP LAW LTD,1088198:145675953,"28,400.00",Legal Aid Payment Lower Crime,
MINISTRY OF JUSTICE,LEGAL AID AGENCY,30/11/2016,Lower Crime,LEGAL AID FUND,DPP LAW LTD,1108565:145911764,"28,400.00",Legal Aid Payment Lower Crime,
MINISTRY OF JUSTICE,LEGAL AID AGENCY,02/11/2016,Lower Crime,LEGAL AID FUND,DPP LAW LTD,1088199:145676016,"27,800.00",Legal Aid Payment Lower Crime,
MINISTRY OF JUSTICE,LEGAL AID AGENCY,30/11/2016,Lower Crime,LEGAL AID FUND,DPP LAW LTD,1108567:145911824,"27,800.00",Legal Aid Payment Lower Crime,
MINISTRY OF JUSTICE,LEGAL AID AGENCY,23/11/2016,Higher Crime,LEGAL AID FUND,DRAYCOTT BROWNE LTD,1103567:145856895,"68,560.95",Legal Aid Payment Higher Crime,
MINISTRY OF JUSTICE,LEGAL AID AGENCY,09/11/2016,Higher Crime,LEGAL AID FUND,DREW JONES,1092604:145691027,"31,772.05",Legal Aid Payment Higher Crime,
MINISTRY OF JUSTICE,LEGAL AID AGENCY,30/11/2016,Lower Crime,LEGAL AID FUND,DRISCOLL YOUNG SOLICITORS LTD,1106099:145912196,"30,728.00",Legal Aid Payment Lower Crime,
MINISTRY OF JUSTICE,LEGAL AID AGENCY,30/11/2016,Legal Help,LEGAL AID FUND,DUNCAN LEWIS SOLICITORS  LTD,1106102:145890535,"400,000.00",Legal Aid Payment Legal Help,
MINISTRY OF JUSTICE,LEGAL AID AGENCY,02/11/2016,Legal Help,LEGAL AID FUND,DUNCAN LEWIS SOLICITORS  LTD,1086517:145650908,"99,000.00",Legal Aid Payment Legal Help,
MINISTRY OF JUSTICE,LEGAL AID AGENCY,02/11/2016,Legal Help,LEGAL AID FUND,DUNCAN LEWIS SOLICITORS  LTD,1086517:145650913,"98,000.00",Legal Aid Payment Legal Help,
MINISTRY OF JUSTICE,LEGAL AID AGENCY,02/11/2016,Legal Help,LEGAL AID FUND,DUNCAN LEWIS SOLICITORS  LTD,1086518:145650705,"98,000.00",Legal Aid Payment Legal Help,
MINISTRY OF JUSTICE,LEGAL AID AGENCY,02/11/2016,Legal Help,LEGAL AID FUND,DUNCAN LEWIS SOLICITORS  LTD,1086518:145650704,"97,000.00",Legal Aid Payment Legal Help,
MINISTRY OF JUSTICE,LEGAL AID AGENCY,02/11/2016,Legal Help,LEGAL AID FUND,DUNCAN LEWIS SOLICITORS  LTD,1086518:145650703,"96,000.00",Legal Aid Payment Legal Help,
MINISTRY OF JUSTICE,LEGAL AID AGENCY,02/11/2016,Legal Help,LEGAL AID FUND,DUNCAN LEWIS SOLICITORS  LTD,1086518:145650693,"95,000.00",Legal Aid Payment Legal Help,
MINISTRY OF JUSTICE,LEGAL AID AGENCY,02/11/2016,Legal Help,LEGAL AID FUND,DUNCAN LEWIS SOLICITORS  LTD,1086517:145650915,"71,400.00",Legal Aid Payment Legal Help,
MINISTRY OF JUSTICE,LEGAL AID AGENCY,02/11/2016,Lower Crime,LEGAL AID FUND,DUNCAN LEWIS SOLICITORS  LTD,1086517:145675971,"70,100.00",Legal Aid Payment Lower Crime,
MINISTRY OF JUSTICE,LEGAL AID AGENCY,30/11/2016,Lower Crime,LEGAL AID FUND,DUNCAN LEWIS SOLICITORS  LTD,1106101:145911780,"70,100.00",Legal Aid Payment Lower Crime,
MINISTRY OF JUSTICE,LEGAL AID AGENCY,30/11/2016,Lower Crime,LEGAL AID FUND,DUNCAN LEWIS SOLICITORS  LTD,1106102:145912406,"61,692.00",Legal Aid Payment Lower Crime,
MINISTRY OF JUSTICE,LEGAL AID AGENCY,02/11/2016,Legal Help,LEGAL AID FUND,DUNCAN LEWIS SOLICITORS  LTD,1085409:145674909,"59,300.00",Legal Aid Payment Legal Help,
MINISTRY OF JUSTICE,LEGAL AID AGENCY,30/11/2016,Legal Help,LEGAL AID FUND,DUNCAN LEWIS SOLICITORS  LTD,1104387:145910706,"59,300.00",Legal Aid Payment Legal Help,
MINISTRY OF JUSTICE,LEGAL AID AGENCY,02/11/2016,Lower Crime,LEGAL AID FUND,DUNCAN LEWIS SOLICITORS  LTD,1086518:145676604,"54,977.00",Legal Aid Payment Lower Crime,
MINISTRY OF JUSTICE,LEGAL AID AGENCY,23/11/2016,Civil Representation,LEGAL AID FUND,DUNCAN LEWIS SOLICITORS  LTD,1103457:145841100,"42,171.55",Legal Aid Payment Civil Representation,
MINISTRY OF JUSTICE,LEGAL AID AGENCY,02/11/2016,Civil Representation,LEGAL AID FUND,DUNCAN LEWIS SOLICITORS  LTD,1086517:145641025,"31,642.00",Legal Aid Payment Civil Representation,
MINISTRY OF JUSTICE,LEGAL AID AGENCY,30/11/2016,Legal Help,LEGAL AID FUND,DUNCAN LEWIS SOLICITORS  LTD,1108260:145911547,"29,784.00",Legal Aid Payment Legal Help,
MINISTRY OF JUSTICE,LEGAL AID AGENCY,02/11/2016,Civil Representation,LEGAL AID FUND,DUNCAN LEWIS SOLICITORS  LTD,1086342:145650518,"28,844.93",Legal Aid Payment Civil Representation,
MINISTRY OF JUSTICE,LEGAL AID AGENCY,23/11/2016,Civil Representation,LEGAL AID FUND,DUNCAN LEWIS SOLICITORS  LTD,1103457:145841102,"-40,393.55",Legal Aid Payment Civil Representation,
MINISTRY OF JUSTICE,LEGAL AID AGENCY,23/11/2016,Higher Crime,LEGAL AID FUND,EBR ATTRIDGE LLP,1101084:145829971,"75,661.75",Legal Aid Payment Higher Crime,
MINISTRY OF JUSTICE,LEGAL AID AGENCY,23/11/2016,Higher Crime,LEGAL AID FUND,EBR ATTRIDGE LLP,1101084:145820602,"72,743.42",Legal Aid Payment Higher Crime,
MINISTRY OF JUSTICE,LEGAL AID AGENCY,30/11/2016,Higher Crime,LEGAL AID FUND,EBR ATTRIDGE LLP,1108363:145893408,"55,271.12",Legal Aid Payment Higher Crime,
MINISTRY OF JUSTICE,LEGAL AID AGENCY,30/11/2016,Higher Crime,LEGAL AID FUND,EBR ATTRIDGE LLP,1108373:145893994,"55,271.12",Legal Aid Payment Higher Crime,
MINISTRY OF JUSTICE,LEGAL AID AGENCY,02/11/2016,Higher Crime,LEGAL AID FUND,EBR ATTRIDGE LLP,1089805:145647693,"51,065.04",Legal Aid Payment Higher Crime,
MINISTRY OF JUSTICE,LEGAL AID AGENCY,30/11/2016,Higher Crime,LEGAL AID FUND,EBR ATTRIDGE LLP,1108375:145884521,"49,760.34",Legal Aid Payment Higher Crime,
MINISTRY OF JUSTICE,LEGAL AID AGENCY,30/11/2016,Higher Crime,LEGAL AID FUND,EBR ATTRIDGE LLP,1108375:145865837,"43,768.15",Legal Aid Payment Higher Crime,
MINISTRY OF JUSTICE,LEGAL AID AGENCY,02/11/2016,Lower Crime,LEGAL AID FUND,EBR ATTRIDGE LLP,1089804:145675932,"38,400.00",Legal Aid Payment Lower Crime,
MINISTRY OF JUSTICE,LEGAL AID AGENCY,30/11/2016,Lower Crime,LEGAL AID FUND,EBR ATTRIDGE LLP,1108375:145911744,"38,400.00",Legal Aid Payment Lower Crime,
MINISTRY OF JUSTICE,LEGAL AID AGENCY,23/11/2016,Higher Crime,LEGAL AID FUND,EBR ATTRIDGE LLP,1101082:145857878,"38,353.77",Legal Aid Payment Higher Crime,
MINISTRY OF JUSTICE,LEGAL AID AGENCY,23/11/2016,Higher Crime,LEGAL AID FUND,EBR ATTRIDGE LLP,1101084:145856806,"37,296.80",Legal Aid Payment Higher Crime,
MINISTRY OF JUSTICE,LEGAL AID AGENCY,23/11/2016,Higher Crime,LEGAL AID FUND,EBR ATTRIDGE LLP,1101082:145857880,"35,845.31",Legal Aid Payment Higher Crime,
MINISTRY OF JUSTICE,LEGAL AID AGENCY,02/11/2016,Lower Crime,LEGAL AID FUND,EBR ATTRIDGE LLP,1089802:145675941,"34,200.00",Legal Aid Payment Lower Crime,
MINISTRY OF JUSTICE,LEGAL AID AGENCY,30/11/2016,Lower Crime,LEGAL AID FUND,EBR ATTRIDGE LLP,1108373:145911752,"34,200.00",Legal Aid Payment Lower Crime,
MINISTRY OF JUSTICE,LEGAL AID AGENCY,30/11/2016,Lower Crime,LEGAL AID FUND,EDWARD FAIL BRADSHAW & WATERSON,1106721:145912452,"42,868.00",Legal Aid Payment Lower Crime,
MINISTRY OF JUSTICE,LEGAL AID AGENCY,02/11/2016,Lower Crime,LEGAL AID FUND,EDWARD FAIL BRADSHAW & WATERSON,1088687:145676646,"34,181.00",Legal Aid Payment Lower Crime,
MINISTRY OF JUSTICE,LEGAL AID AGENCY,09/11/2016,Higher Crime,LEGAL AID FUND,EDWARDS DUTHIE,1094859:145702048,"44,960.52",Legal Aid Payment Higher Crime,
MINISTRY OF JUSTICE,LEGAL AID AGENCY,02/11/2016,Lower Crime,LEGAL AID FUND,EDWARDS DUTHIE,1090338:145677267,"39,886.00",Legal Aid Payment Lower Crime,
MINISTRY OF JUSTICE,LEGAL AID AGENCY,30/11/2016,Lower Crime,LEGAL AID FUND,EDWARDS DUTHIE,1109291:145913067,"27,508.00",Legal Aid Payment Lower Crime,
MINISTRY OF JUSTICE,LEGAL AID AGENCY,30/11/2016,Civil Representation,LEGAL AID FUND,EDWARDS DUTHIE,1109291:145879192,"25,697.35",Legal Aid Payment Civil Representation,
MINISTRY OF JUSTICE,LEGAL AID AGENCY,02/11/2016,Legal Help,LEGAL AID FUND,ELDER RAHIMI LIMITED,1088305:145675240,"42,803.00",Legal Aid Payment Legal Help,
MINISTRY OF JUSTICE,LEGAL AID AGENCY,02/11/2016,Legal Help,LEGAL AID FUND,ELDER RAHIMI LIMITED,1089065:145675555,"32,354.00",Legal Aid Payment Legal Help,
MINISTRY OF JUSTICE,LEGAL AID AGENCY,09/11/2016,Civil Representation,LEGAL AID FUND,ELIZABETH MCGRATH,1091209:3000000938350002,"32,432.40",Legal Aid Payment Civil Representation,
MINISTRY OF JUSTICE,LEGAL AID AGENCY,02/11/2016,Higher Crime,LEGAL AID FUND,ELIZABETH SMALLER,1086183:145629841,"26,317.61",Legal Aid Payment Higher Crime,
MINISTRY OF JUSTICE,LEGAL AID AGENCY,30/11/2016,Lower Crime,LEGAL AID FUND,ELLIOT MATHER LLP,1108930:145911669,"28,500.00",Legal Aid Payment Lower Crime,
MINISTRY OF JUSTICE,LEGAL AID AGENCY,16/11/2016,Higher Crime,LEGAL AID FUND,ELLIOTT STERN SOLICITORS,1098977:145753420,"105,857.75",Legal Aid Payment Higher Crime,
MINISTRY OF JUSTICE,LEGAL AID AGENCY,30/11/2016,Higher Crime,LEGAL AID FUND,EMERSONS LAW LTD,1108210:145875967,"32,774.95",Legal Aid Payment Higher Crime,
MINISTRY OF JUSTICE,LEGAL AID AGENCY,02/11/2016,Higher Crime,LEGAL AID FUND,EMMA L SHAFTON,1087262:145638847,"28,168.16",Legal Aid Payment Higher Crime,
MINISTRY OF JUSTICE,LEGAL AID AGENCY,30/11/2016,Higher Crime,LEGAL AID FUND,ENNON & CO LTD,1108435:145885388,"69,218.44",Legal Aid Payment Higher Crime,
MINISTRY OF JUSTICE,LEGAL AID AGENCY,02/11/2016,Lower Crime,LEGAL AID FUND,EWINGS & CO,1086895:145675947,"27,100.00",Legal Aid Payment Lower Crime,
MINISTRY OF JUSTICE,LEGAL AID AGENCY,30/11/2016,Lower Crime,LEGAL AID FUND,EWINGS & CO,1106666:145911758,"27,100.00",Legal Aid Payment Lower Crime,
MINISTRY OF JUSTICE,LEGAL AID AGENCY,30/11/2016,Legal Help,LEGAL AID FUND,FADIGA & CO LTD,1106432:145910983,"48,301.00",Legal Aid Payment Legal Help,
MINISTRY OF JUSTICE,LEGAL AID AGENCY,02/11/2016,Legal Help,LEGAL AID FUND,FADIGA & CO LTD,1088468:145675178,"40,167.00",Legal Aid Payment Legal Help,
MINISTRY OF JUSTICE,LEGAL AID AGENCY,30/11/2016,Civil Representation,LEGAL AID FUND,FAISAL A SAIFEE,1104908:145878909,"35,247.65",Legal Aid Payment Civil Representation,
MINISTRY OF JUSTICE,LEGAL AID AGENCY,09/11/2016,Higher Crime,LEGAL AID FUND,FARADAYS SOLICITORS LTD,1092179:145710924,"37,107.53",Legal Aid Payment Higher Crime,
MINISTRY OF JUSTICE,LEGAL AID AGENCY,02/11/2016,Lower Crime,LEGAL AID FUND,FARLEYS SOLICITORS LLP,1088455:145676136,"29,900.00",Legal Aid Payment Lower Crime,
MINISTRY OF JUSTICE,LEGAL AID AGENCY,30/11/2016,Lower Crime,LEGAL AID FUND,FARLEYS SOLICITORS LLP,1106418:145911941,"29,900.00",Legal Aid Payment Lower Crime,
MINISTRY OF JUSTICE,LEGAL AID AGENCY,02/11/2016,Lower Crime,LEGAL AID FUND,FDR LAW,1090184:145676772,"33,364.00",Legal Aid Payment Lower Crime,
MINISTRY OF JUSTICE,LEGAL AID AGENCY,08/11/2016,Civil Representation,LEGAL AID FUND,FIELD FISHER WATERHOUSE LLP,1090497:145704635,"-27,441.56",Legal Aid Payment Civil Representation,
MINISTRY OF JUSTICE,LEGAL AID AGENCY,23/11/2016,Civil Representation,LEGAL AID FUND,FLG LTD,1101092:145849816,"26,303.47",Legal Aid Payment Civil Representation,
MINISTRY OF JUSTICE,LEGAL AID AGENCY,23/11/2016,Civil Representation,LEGAL AID FUND,FLG LTD,1101092:145850506,"26,237.67",Legal Aid Payment Civil Representation,
MINISTRY OF JUSTICE,LEGAL AID AGENCY,23/11/2016,Civil Representation,LEGAL AID FUND,FLG LTD,1101092:145850487,"-26,303.47",Legal Aid Payment Civil Representation,
MINISTRY OF JUSTICE,LEGAL AID AGENCY,02/11/2016,Lower Crime,LEGAL AID FUND,FMW LAW LTD,1090264:145675911,"69,300.00",Legal Aid Payment Lower Crime,
MINISTRY OF JUSTICE,LEGAL AID AGENCY,30/11/2016,Lower Crime,LEGAL AID FUND,FMW LAW LTD,1106515:145911721,"69,300.00",Legal Aid Payment Lower Crime,
MINISTRY OF JUSTICE,LEGAL AID AGENCY,16/11/2016,Higher Crime,LEGAL AID FUND,FORBES SOLICITORS,1096800:145801442,"42,120.59",Legal Aid Payment Higher Crime,
MINISTRY OF JUSTICE,LEGAL AID AGENCY,30/11/2016,Higher Crime,LEGAL AID FUND,FORBES SOLICITORS,1108743:145913402,"36,577.32",Legal Aid Payment Higher Crime,
MINISTRY OF JUSTICE,LEGAL AID AGENCY,16/11/2016,Higher Crime,LEGAL AID FUND,FORBES SOLICITORS,1096800:145772200,"29,516.05",Legal Aid Payment Higher Crime,
MINISTRY OF JUSTICE,LEGAL AID AGENCY,02/11/2016,Lower Crime,LEGAL AID FUND,FORBES SOLICITORS,1089971:145676150,"25,600.00",Legal Aid Payment Lower Crime,
MINISTRY OF JUSTICE,LEGAL AID AGENCY,30/11/2016,Lower Crime,LEGAL AID FUND,FORBES SOLICITORS,1108730:145911955,"25,600.00",Legal Aid Payment Lower Crime,
MINISTRY OF JUSTICE,LEGAL AID AGENCY,16/11/2016,Higher Crime,LEGAL AID FUND,FORTIS ROSE SOLICITORS LTD,1098685:145772149,"95,707.01",Legal Aid Payment Higher Crime,
MINISTRY OF JUSTICE,LEGAL AID AGENCY,02/11/2016,Legal Help,LEGAL AID FUND,FOUNTAIN SOLICITORS LTD,1086376:145674622,"36,000.00",Legal Aid Payment Legal Help,
MINISTRY OF JUSTICE,LEGAL AID AGENCY,30/11/2016,Legal Help,LEGAL AID FUND,FOUNTAIN SOLICITORS LTD,1105752:145910430,"36,000.00",Legal Aid Payment Legal Help,
MINISTRY OF JUSTICE,LEGAL AID AGENCY,30/11/2016,Higher Crime,LEGAL AID FUND,FOXES SOLICITORS,1108193:145894302,"29,002.12",Legal Aid Payment Higher Crime,
MINISTRY OF JUSTICE,LEGAL AID AGENCY,09/11/2016,Civil Representation,LEGAL AID FUND,FREEMANS SOLICITORS,1092648:145738651,"41,407.54",Legal Aid Payment Civil Representation,
MINISTRY OF JUSTICE,LEGAL AID AGENCY,02/11/2016,Lower Crime,LEGAL AID FUND,FREEMANS SOLICITORS,1090389:145675986,"27,900.00",Legal Aid Payment Lower Crime,
MINISTRY OF JUSTICE,LEGAL AID AGENCY,30/11/2016,Lower Crime,LEGAL AID FUND,FREEMANS SOLICITORS,1109235:145911795,"27,900.00",Legal Aid Payment Lower Crime,
MINISTRY OF JUSTICE,LEGAL AID AGENCY,09/11/2016,Civil Representation,LEGAL AID FUND,FREEMANS SOLICITORS,1092648:145748520,"-25,182.90",Legal Aid Payment Civil Representation,
MINISTRY OF JUSTICE,LEGAL AID AGENCY,09/11/2016,Higher Crime,LEGAL AID FUND,FRIDA K HUSSAIN,1091581:145691438,"27,287.64",Legal Aid Payment Higher Crime,
MINISTRY OF JUSTICE,LEGAL AID AGENCY,02/11/2016,Higher Crime,LEGAL AID FUND,FRISBY SOLICITORS LTD,1086466:145639134,"32,318.95",Legal Aid Payment Higher Crime,
MINISTRY OF JUSTICE,LEGAL AID AGENCY,02/11/2016,Lower Crime,LEGAL AID FUND,G T STEWART LTD,1088129:145676637,"59,018.00",Legal Aid Payment Lower Crime,
MINISTRY OF JUSTICE,LEGAL AID AGENCY,30/11/2016,Lower Crime,LEGAL AID FUND,G T STEWART LTD,1108397:145912443,"55,761.00",Legal Aid Payment Lower Crime,
MINISTRY OF JUSTICE,LEGAL AID AGENCY,02/11/2016,Lower Crime,LEGAL AID FUND,G T STEWART LTD,1089701:145677108,"49,832.00",Legal Aid Payment Lower Crime,
MINISTRY OF JUSTICE,LEGAL AID AGENCY,30/11/2016,Lower Crime,LEGAL AID FUND,G T STEWART LTD,1105647:145912915,"45,508.00",Legal Aid Payment Lower Crime,
MINISTRY OF JUSTICE,LEGAL AID AGENCY,02/11/2016,Lower Crime,LEGAL AID FUND,G T STEWART LTD,1089706:145677103,"41,715.00",Legal Aid Payment Lower Crime,
MINISTRY OF JUSTICE,LEGAL AID AGENCY,30/11/2016,Lower Crime,LEGAL AID FUND,G T STEWART LTD,1105653:145912910,"36,968.00",Legal Aid Payment Lower Crime,
MINISTRY OF JUSTICE,LEGAL AID AGENCY,09/11/2016,Higher Crime,LEGAL AID FUND,G T STEWART LTD,1091960:145710574,"30,202.37",Legal Aid Payment Higher Crime,
MINISTRY OF JUSTICE,LEGAL AID AGENCY,30/11/2016,Lower Crime,LEGAL AID FUND,G T STEWART LTD,1105652:145912911,"29,180.00",Legal Aid Payment Lower Crime,
MINISTRY OF JUSTICE,LEGAL AID AGENCY,02/11/2016,Lower Crime,LEGAL AID FUND,G T STEWART LTD,1089705:145677104,"27,525.00",Legal Aid Payment Lower Crime,
MINISTRY OF JUSTICE,LEGAL AID AGENCY,30/11/2016,Legal Help,LEGAL AID FUND,G T STEWART LTD,1108397:145911603,"26,277.00",Legal Aid Payment Legal Help,
MINISTRY OF JUSTICE,LEGAL AID AGENCY,02/11/2016,Lower Crime,LEGAL AID FUND,GALBRAITH BRANLEY SOLICITORS,1088243:145676591,"31,349.00",Legal Aid Payment Lower Crime,
MINISTRY OF JUSTICE,LEGAL AID AGENCY,02/11/2016,Lower Crime,LEGAL AID FUND,"GAMMON,PIERCY & GAIGER",1088699:145676894,"32,128.00",Legal Aid Payment Lower Crime,
MINISTRY OF JUSTICE,LEGAL AID AGENCY,16/11/2016,Higher Crime,LEGAL AID FUND,GANGAR & CO,1098822:145800461,"25,011.16",Legal Aid Payment Higher Crime,
MINISTRY OF JUSTICE,LEGAL AID AGENCY,16/11/2016,Civil Representation,LEGAL AID FUND,GANS & CO SOLICITORS LLP,1096566:145776818,"26,400.00",Legal Aid Payment Civil Representation,
MINISTRY OF JUSTICE,LEGAL AID AGENCY,02/11/2016,Higher Crime,LEGAL AID FUND,GARETH R W EVANS QC,1087655:145678374,"29,934.73",Legal Aid Payment Higher Crime,
MINISTRY OF JUSTICE,LEGAL AID AGENCY,16/11/2016,Higher Crime,LEGAL AID FUND,GARY T BELL QC,1098202:145776835,"42,112.07",Legal Aid Payment Higher Crime,
MINISTRY OF JUSTICE,LEGAL AID AGENCY,02/11/2016,Lower Crime,LEGAL AID FUND,GEOFF WHITE & CO,1087974:145676877,"62,820.00",Legal Aid Payment Lower Crime,
MINISTRY OF JUSTICE,LEGAL AID AGENCY,30/11/2016,Lower Crime,LEGAL AID FUND,GEOFF WHITE & CO,1108355:145912688,"47,383.00",Legal Aid Payment Lower Crime,
MINISTRY OF JUSTICE,LEGAL AID AGENCY,30/11/2016,Lower Crime,LEGAL AID FUND,GEOFFREY FORRESTER & CO,1109012:145911853,"46,700.00",Legal Aid Payment Lower Crime,
MINISTRY OF JUSTICE,LEGAL AID AGENCY,02/11/2016,Lower Crime,LEGAL AID FUND,GEOFFREY FORRESTER & CO,1090207:145676046,"35,100.00",Legal Aid Payment Lower Crime,
MINISTRY OF JUSTICE,LEGAL AID AGENCY,16/11/2016,Civil Representation,LEGAL AID FUND,GEORGE E H FAIRBURN,1096054:145795886,"31,059.45",Legal Aid Payment Civil Representation,
MINISTRY OF JUSTICE,LEGAL AID AGENCY,09/11/2016,Higher Crime,LEGAL AID FUND,GERALD ARMSTRONG,1092407:145742303,"68,065.99",Legal Aid Payment Higher Crime,
MINISTRY OF JUSTICE,LEGAL AID AGENCY,30/11/2016,Higher Crime,LEGAL AID FUND,GERARD M QUIRKE,1107672:145866415,"57,211.32",Legal Aid Payment Higher Crime,
MINISTRY OF JUSTICE,LEGAL AID AGENCY,30/11/2016,Higher Crime,LEGAL AID FUND,GERARD P HILLMAN,1105062:145866451,"27,280.20",Legal Aid Payment Higher Crime,
MINISTRY OF JUSTICE,LEGAL AID AGENCY,02/11/2016,Lower Crime,LEGAL AID FUND,GHP LEGAL,1086561:145675830,"43,800.00",Legal Aid Payment Lower Crime,
MINISTRY OF JUSTICE,LEGAL AID AGENCY,30/11/2016,Lower Crime,LEGAL AID FUND,GHP LEGAL,1106040:145911643,"43,800.00",Legal Aid Payment Lower Crime,
MINISTRY OF JUSTICE,LEGAL AID AGENCY,02/11/2016,Higher Crime,LEGAL AID FUND,GILES F COCKINGS,1087748:145656102,"27,528.00",Legal Aid Payment Higher Crime,
MINISTRY OF JUSTICE,LEGAL AID AGENCY,02/11/2016,Lower Crime,LEGAL AID FUND,GLAISYERS LLP,1086472:145676984,"34,937.00",Legal Aid Payment Lower Crime,
MINISTRY OF JUSTICE,LEGAL AID AGENCY,30/11/2016,Lower Crime,LEGAL AID FUND,GLAISYERS LLP,1108549:145912796,"29,600.00",Legal Aid Payment Lower Crime,
MINISTRY OF JUSTICE,LEGAL AID AGENCY,02/11/2016,Legal Help,LEGAL AID FUND,GLEDHILL SOLICITORS,1090341:145674975,"65,360.00",Legal Aid Payment Legal Help,
MINISTRY OF JUSTICE,LEGAL AID AGENCY,30/11/2016,Legal Help,LEGAL AID FUND,GLEDHILL SOLICITORS,1109300:145910773,"41,425.00",Legal Aid Payment Legal Help,
MINISTRY OF JUSTICE,LEGAL AID AGENCY,30/11/2016,Higher Crime,LEGAL AID FUND,GOLDKORNS,1106726:145913409,"71,919.54",Legal Aid Payment Higher Crime,
MINISTRY OF JUSTICE,LEGAL AID AGENCY,30/11/2016,Higher Crime,LEGAL AID FUND,GORDON COLE QC,1105174:145894421,"42,006.25",Legal Aid Payment Higher Crime,
MINISTRY OF JUSTICE,LEGAL AID AGENCY,16/11/2016,Higher Crime,LEGAL AID FUND,GQS SOLICITORS,1098767:145772176,"87,345.19",Legal Aid Payment Higher Crime,
MINISTRY OF JUSTICE,LEGAL AID AGENCY,02/11/2016,Lower Crime,LEGAL AID FUND,GRAHAM EVANS & PARTNERS LLP,1090288:145675822,"31,900.00",Legal Aid Payment Lower Crime,
MINISTRY OF JUSTICE,LEGAL AID AGENCY,30/11/2016,Lower Crime,LEGAL AID FUND,GRAHAM EVANS & PARTNERS LLP,1106538:145911635,"31,900.00",Legal Aid Payment Lower Crime,
MINISTRY OF JUSTICE,LEGAL AID AGENCY,16/11/2016,Civil Representation,LEGAL AID FUND,GRAHAME STOWE BATESON,1098886:145750456,"53,830.94",Legal Aid Payment Civil Representation,
MINISTRY OF JUSTICE,LEGAL AID AGENCY,02/11/2016,Legal Help,LEGAL AID FUND,GRAHAME STOWE BATESON,1089911:145675145,"35,000.00",Legal Aid Payment Legal Help,
MINISTRY OF JUSTICE,LEGAL AID AGENCY,30/11/2016,Legal Help,LEGAL AID FUND,GRAHAME STOWE BATESON,1105948:145910948,"25,235.00",Legal Aid Payment Legal Help,
MINISTRY OF JUSTICE,LEGAL AID AGENCY,02/11/2016,Lower Crime,LEGAL AID FUND,GRECH GOODEN SOLICITORS LTD,1086310:145676428,"63,116.00",Legal Aid Payment Lower Crime,
MINISTRY OF JUSTICE,LEGAL AID AGENCY,30/11/2016,Lower Crime,LEGAL AID FUND,GRECH GOODEN SOLICITORS LTD,1108318:145912231,"51,150.00",Legal Aid Payment Lower Crime,
MINISTRY OF JUSTICE,LEGAL AID AGENCY,02/11/2016,Legal Help,LEGAL AID FUND,GUILE NICHOLAS-INC DONALD GALBRAITH & CO,1086379:145674758,"73,400.00",Legal Aid Payment Legal Help,
MINISTRY OF JUSTICE,LEGAL AID AGENCY,30/11/2016,Legal Help,LEGAL AID FUND,GUILE NICHOLAS-INC DONALD GALBRAITH & CO,1105755:145910562,"73,400.00",Legal Aid Payment Legal Help,
MINISTRY OF JUSTICE,LEGAL AID AGENCY,30/11/2016,Legal Help,LEGAL AID FUND,GUILE NICHOLAS-INC DONALD GALBRAITH & CO,1104412:145911583,"31,564.00",Legal Aid Payment Legal Help,
MINISTRY OF JUSTICE,LEGAL AID AGENCY,23/11/2016,Higher Crime,LEGAL AID FUND,GUNEY CLARK & RYAN LTD CO,1103401:145830033,"89,975.11",Legal Aid Payment Higher Crime,
MINISTRY OF JUSTICE,LEGAL AID AGENCY,30/11/2016,Lower Crime,LEGAL AID FUND,GURNEY HARDEN SOLICITORS,1108337:145912678,"48,325.00",Legal Aid Payment Lower Crime,
MINISTRY OF JUSTICE,LEGAL AID AGENCY,02/11/2016,Lower Crime,LEGAL AID FUND,GURNEY HARDEN SOLICITORS,1087980:145676868,"32,758.00",Legal Aid Payment Lower Crime,
MINISTRY OF JUSTICE,LEGAL AID AGENCY,02/11/2016,Lower Crime,LEGAL AID FUND,GWB HARTHILLS LLP,1086399:145676729,"38,864.00",Legal Aid Payment Lower Crime,
MINISTRY OF JUSTICE,LEGAL AID AGENCY,30/11/2016,Lower Crime,LEGAL AID FUND,GWB HARTHILLS LLP,1108470:145912539,"32,834.00",Legal Aid Payment Lower Crime,
MINISTRY OF JUSTICE,LEGAL AID AGENCY,30/11/2016,Lower Crime,LEGAL AID FUND,GWB HARTHILLS LLP,1108280:145912540,"27,709.00",Legal Aid Payment Lower Crime,
MINISTRY OF JUSTICE,LEGAL AID AGENCY,02/11/2016,Lower Crime,LEGAL AID FUND,GWB HARTHILLS LLP,1088006:145676730,"27,131.00",Legal Aid Payment Lower Crime,
MINISTRY OF JUSTICE,LEGAL AID AGENCY,02/11/2016,Lower Crime,LEGAL AID FUND,H P GOWER SOLICITORS,1089655:145677159,"78,737.00",Legal Aid Payment Lower Crime,
MINISTRY OF JUSTICE,LEGAL AID AGENCY,30/11/2016,Lower Crime,LEGAL AID FUND,H P GOWER SOLICITORS,1108234:145912959,"77,590.00",Legal Aid Payment Lower Crime,
MINISTRY OF JUSTICE,LEGAL AID AGENCY,30/11/2016,Legal Help,LEGAL AID FUND,HALLIDAY REEVES LAW FIRM,1105562:145911301,"32,177.00",Legal Aid Payment Legal Help,
MINISTRY OF JUSTICE,LEGAL AID AGENCY,02/11/2016,Legal Help,LEGAL AID FUND,HALLIDAY REEVES LAW FIRM,1088035:145675389,"27,256.00",Legal Aid Payment Legal Help,
MINISTRY OF JUSTICE,LEGAL AID AGENCY,02/11/2016,Legal Help,LEGAL AID FUND,HALLIDAY REEVES LAW FIRM,1090202:145675114,"25,559.00",Legal Aid Payment Legal Help,
MINISTRY OF JUSTICE,LEGAL AID AGENCY,02/11/2016,Legal Help,LEGAL AID FUND,HALLIDAY REEVES LAW FIRM,1087907:145675499,"25,094.00",Legal Aid Payment Legal Help,
MINISTRY OF JUSTICE,LEGAL AID AGENCY,02/11/2016,Higher Crime,LEGAL AID FUND,HALLINAN BLACKBURN GITTINGS & NOTT,1090398:145628411,"95,707.01",Legal Aid Payment Higher Crime,
MINISTRY OF JUSTICE,LEGAL AID AGENCY,02/11/2016,Lower Crime,LEGAL AID FUND,HAMER CHILDS,1086857:145676308,"25,000.00",Legal Aid Payment Lower Crime,
MINISTRY OF JUSTICE,LEGAL AID AGENCY,30/11/2016,Lower Crime,LEGAL AID FUND,HAMER CHILDS,1109082:145912113,"25,000.00",Legal Aid Payment Lower Crime,
MINISTRY OF JUSTICE,LEGAL AID AGENCY,16/11/2016,Civil Representation,LEGAL AID FUND,HANNE LTD,1097288:145794310,"95,416.33",Legal Aid Payment Civil Representation,
MINISTRY OF JUSTICE,LEGAL AID AGENCY,16/11/2016,Civil Representation,LEGAL AID FUND,HANNE LTD,1097288:145805200,"-44,280.00",Legal Aid Payment Civil Representation,
MINISTRY OF JUSTICE,LEGAL AID AGENCY,23/11/2016,Higher Crime,LEGAL AID FUND,HANRATTY & CO,1101726:145829661,"26,820.01",Legal Aid Payment Higher Crime,
MINISTRY OF JUSTICE,LEGAL AID AGENCY,09/11/2016,Civil Representation,LEGAL AID FUND,HARNEY & WELLS,1094231:145651339,"41,585.05",Legal Aid Payment Civil Representation,
MINISTRY OF JUSTICE,LEGAL AID AGENCY,02/11/2016,Lower Crime,LEGAL AID FUND,HARRIS CUFFARO & NICHOLS,1088514:145675883,"48,200.00",Legal Aid Payment Lower Crime,
MINISTRY OF JUSTICE,LEGAL AID AGENCY,30/11/2016,Lower Crime,LEGAL AID FUND,HARRIS CUFFARO & NICHOLS,1106489:145911693,"48,200.00",Legal Aid Payment Lower Crime,
MINISTRY OF JUSTICE,LEGAL AID AGENCY,23/11/2016,Higher Crime,LEGAL AID FUND,HARRIS CUFFARO & NICHOLS,1103718:145820041,"25,881.12",Legal Aid Payment Higher Crime,
MINISTRY OF JUSTICE,LEGAL AID AGENCY,09/11/2016,Higher Crime,LEGAL AID FUND,HARRIS SOLICITORS,1091915:145691348,"95,707.01",Legal Aid Payment Higher Crime,
MINISTRY OF JUSTICE,LEGAL AID AGENCY,16/11/2016,Higher Crime,LEGAL AID FUND,HARRIS SOLICITORS,1096571:145753322,"32,184.01",Legal Aid Payment Higher Crime,
MINISTRY OF JUSTICE,LEGAL AID AGENCY,30/11/2016,Lower Crime,LEGAL AID FUND,HARRIS SOLICITORS,1108200:145912937,"26,422.00",Legal Aid Payment Lower Crime,
MINISTRY OF JUSTICE,LEGAL AID AGENCY,02/11/2016,Lower Crime,LEGAL AID FUND,HARRIS SOLICITORS,1086284:145677133,"25,449.00",Legal Aid Payment Lower Crime,
MINISTRY OF JUSTICE,LEGAL AID AGENCY,30/11/2016,Civil Representation,LEGAL AID FUND,HARRIS TEMPERLEY LLP,1106218:141840754,"27,016.94",Legal Aid Payment Civil Representation,
MINISTRY OF JUSTICE,LEGAL AID AGENCY,23/11/2016,Civil Representation,LEGAL AID FUND,HARTLEY & WORSTENHOLME,1101481:3000000750870005,"29,424.46",Legal Aid Payment Civil Representation,
MINISTRY OF JUSTICE,LEGAL AID AGENCY,02/11/2016,Civil Representation,LEGAL AID FUND,HARVEY MURRAY,1089541:145471397,"25,660.80",Legal Aid Payment Civil Representation,
MINISTRY OF JUSTICE,LEGAL AID AGENCY,02/11/2016,Higher Crime,LEGAL AID FUND,HARVEYS,1089902:145647979,"102,523.07",Legal Aid Payment Higher Crime,
MINISTRY OF JUSTICE,LEGAL AID AGENCY,30/11/2016,Higher Crime,LEGAL AID FUND,HASAN SOLICITORS,1106324:145894405,"59,490.37",Legal Aid Payment Higher Crime,
MINISTRY OF JUSTICE,LEGAL AID AGENCY,16/11/2016,Higher Crime,LEGAL AID FUND,HASAN SOLICITORS,1096961:145780706,"38,126.46",Legal Aid Payment Higher Crime,
MINISTRY OF JUSTICE,LEGAL AID AGENCY,02/11/2016,Lower Crime,LEGAL AID FUND,HASKELL & CO,1086366:145676866,"42,138.00",Legal Aid Payment Lower Crime,
MINISTRY OF JUSTICE,LEGAL AID AGENCY,30/11/2016,Lower Crime,LEGAL AID FUND,HASKELL & CO,1105837:145912676,"37,540.00",Legal Aid Payment Lower Crime,
MINISTRY OF JUSTICE,LEGAL AID AGENCY,23/11/2016,Civil Representation,LEGAL AID FUND,HATTEN WYATT,1101760:145841537,"28,435.07",Legal Aid Payment Civil Representation,
MINISTRY OF JUSTICE,LEGAL AID AGENCY,08/11/2016,Lower Crime,LEGAL AID FUND,HAWKINS RYAN SOLICITORS,1090493:144485780,"-33,738.83",Legal Aid Payment Lower Crime,
MINISTRY OF JUSTICE,LEGAL AID AGENCY,30/11/2016,Lower Crime,LEGAL AID FUND,HAYES LAW SOLICITORS AND ADVOCATES LLP,1104672:145913068,"28,649.00",Legal Aid Payment Lower Crime,
MINISTRY OF JUSTICE,LEGAL AID AGENCY,02/11/2016,Civil Representation,LEGAL AID FUND,HAYGARTH JONES,1088450:145685080,"56,198.57",Legal Aid Payment Civil Representation,
MINISTRY OF JUSTICE,LEGAL AID AGENCY,02/11/2016,Civil Representation,LEGAL AID FUND,HAYGARTH JONES,1088450:145685082,"-52,229.55",Legal Aid Payment Civil Representation,
MINISTRY OF JUSTICE,LEGAL AID AGENCY,02/11/2016,Lower Crime,LEGAL AID FUND,"HAYWOOD, LUNN & ALLEN SOLICITORS",1089663:145677163,"25,824.00",Legal Aid Payment Lower Crime,
MINISTRY OF JUSTICE,LEGAL AID AGENCY,09/11/2016,Civil Representation,LEGAL AID FUND,HCB WIDDOWS MASON LTD,1094778:145715650,"27,520.33",Legal Aid Payment Civil Representation,
MINISTRY OF JUSTICE,LEGAL AID AGENCY,02/11/2016,Lower Crime,LEGAL AID FUND,HDH LAW,1089641:145676340,"25,000.00",Legal Aid Payment Lower Crime,
MINISTRY OF JUSTICE,LEGAL AID AGENCY,30/11/2016,Lower Crime,LEGAL AID FUND,HDH LAW,1108220:145912143,"25,000.00",Legal Aid Payment Lower Crime,
MINISTRY OF JUSTICE,LEGAL AID AGENCY,02/11/2016,Lower Crime,LEGAL AID FUND,HE LAW LTD,1086265:145677197,"30,758.00",Legal Aid Payment Lower Crime,
MINISTRY OF JUSTICE,LEGAL AID AGENCY,30/11/2016,Lower Crime,LEGAL AID FUND,HE LAW LTD,1108181:145912996,"29,401.00",Legal Aid Payment Lower Crime,
MINISTRY OF JUSTICE,LEGAL AID AGENCY,02/11/2016,Lower Crime,LEGAL AID FUND,HEALEY COLBON,1088011:145675881,"27,300.00",Legal Aid Payment Lower Crime,
MINISTRY OF JUSTICE,LEGAL AID AGENCY,30/11/2016,Lower Crime,LEGAL AID FUND,HEALEY COLBON,1108285:145911691,"27,300.00",Legal Aid Payment Lower Crime,
MINISTRY OF JUSTICE,LEGAL AID AGENCY,02/11/2016,Civil Representation,LEGAL AID FUND,HEANEY WATSON LTD,1085596:3000000995850013,"27,941.99",Legal Aid Payment Civil Representation,
MINISTRY OF JUSTICE,LEGAL AID AGENCY,02/11/2016,Lower Crime,LEGAL AID FUND,HENNESSY & HAMMUDI,1086340:145676232,"50,000.00",Legal Aid Payment Lower Crime,
MINISTRY OF JUSTICE,LEGAL AID AGENCY,30/11/2016,Lower Crime,LEGAL AID FUND,HENNESSY & HAMMUDI,1105802:145912038,"50,000.00",Legal Aid Payment Lower Crime,
MINISTRY OF JUSTICE,LEGAL AID AGENCY,23/11/2016,Higher Crime,LEGAL AID FUND,HENNESSY & HAMMUDI,1101139:145857232,"28,763.08",Legal Aid Payment Higher Crime,
MINISTRY OF JUSTICE,LEGAL AID AGENCY,30/11/2016,Lower Crime,LEGAL AID FUND,HENRY HYAMS,1106393:145912568,"52,413.00",Legal Aid Payment Lower Crime,
MINISTRY OF JUSTICE,LEGAL AID AGENCY,02/11/2016,Lower Crime,LEGAL AID FUND,HENRY HYAMS,1086774:145676758,"40,728.00",Legal Aid Payment Lower Crime,
MINISTRY OF JUSTICE,LEGAL AID AGENCY,02/11/2016,Lower Crime,LEGAL AID FUND,HENRY'S SOLICITORS LTD,1089887:145676182,"73,900.00",Legal Aid Payment Lower Crime,
MINISTRY OF JUSTICE,LEGAL AID AGENCY,30/11/2016,Lower Crime,LEGAL AID FUND,HENRY'S SOLICITORS LTD,1106003:145911988,"73,900.00",Legal Aid Payment Lower Crime,
MINISTRY OF JUSTICE,LEGAL AID AGENCY,02/11/2016,Lower Crime,LEGAL AID FUND,HENSCOTT SOLICITORS,1089854:145676594,"29,857.00",Legal Aid Payment Lower Crime,
MINISTRY OF JUSTICE,LEGAL AID AGENCY,30/11/2016,Higher Crime,LEGAL AID FUND,HENSCOTT SOLICITORS,1108516:145867308,"25,133.69",Legal Aid Payment Higher Crime,
MINISTRY OF JUSTICE,LEGAL AID AGENCY,02/11/2016,Lower Crime,LEGAL AID FUND,HERMANS,1089901:145676140,"27,200.00",Legal Aid Payment Lower Crime,
MINISTRY OF JUSTICE,LEGAL AID AGENCY,30/11/2016,Lower Crime,LEGAL AID FUND,HERMANS,1105935:145911945,"27,200.00",Legal Aid Payment Lower Crime,
MINISTRY OF JUSTICE,LEGAL AID AGENCY,30/11/2016,Lower Crime,LEGAL AID FUND,HGH CRIMINAL DEFENCE SOLICITORS,1105773:145912801,"28,121.00",Legal Aid Payment Lower Crime,
MINISTRY OF JUSTICE,LEGAL AID AGENCY,30/11/2016,Lower Crime,LEGAL AID FUND,HILL TWINE,1107023:145913058,"27,333.00",Legal Aid Payment Lower Crime,
MINISTRY OF JUSTICE,LEGAL AID AGENCY,02/11/2016,Lower Crime,LEGAL AID FUND,HILL TWINE,1085440:145677258,"26,956.00",Legal Aid Payment Lower Crime,
MINISTRY OF JUSTICE,LEGAL AID AGENCY,30/11/2016,Lower Crime,LEGAL AID FUND,HINE SOLICITORS,1105658:145912922,"77,370.00",Legal Aid Payment Lower Crime,
MINISTRY OF JUSTICE,LEGAL AID AGENCY,02/11/2016,Lower Crime,LEGAL AID FUND,HINE SOLICITORS,1089712:145677115,"58,588.00",Legal Aid Payment Lower Crime,
MINISTRY OF JUSTICE,LEGAL AID AGENCY,02/11/2016,Lower Crime,LEGAL AID FUND,HINE SOLICITORS,1089711:145677116,"46,831.00",Legal Aid Payment Lower Crime,
MINISTRY OF JUSTICE,LEGAL AID AGENCY,02/11/2016,Lower Crime,LEGAL AID FUND,HINE SOLICITORS,1086273:145677112,"41,451.00",Legal Aid Payment Lower Crime,
MINISTRY OF JUSTICE,LEGAL AID AGENCY,30/11/2016,Lower Crime,LEGAL AID FUND,HINE SOLICITORS,1105657:145912923,"38,802.00",Legal Aid Payment Lower Crime,
MINISTRY OF JUSTICE,LEGAL AID AGENCY,30/11/2016,Lower Crime,LEGAL AID FUND,HINE SOLICITORS,1108189:145912919,"37,488.00",Legal Aid Payment Lower Crime,
MINISTRY OF JUSTICE,LEGAL AID AGENCY,30/11/2016,Lower Crime,LEGAL AID FUND,HINE SOLICITORS,1105659:145912921,"36,675.00",Legal Aid Payment Lower Crime,
MINISTRY OF JUSTICE,LEGAL AID AGENCY,02/11/2016,Lower Crime,LEGAL AID FUND,HINE SOLICITORS,1089713:145677114,"34,907.00",Legal Aid Payment Lower Crime,
MINISTRY OF JUSTICE,LEGAL AID AGENCY,02/11/2016,Lower Crime,LEGAL AID FUND,HINE SOLICITORS,1089714:145677113,"33,527.00",Legal Aid Payment Lower Crime,
MINISTRY OF JUSTICE,LEGAL AID AGENCY,30/11/2016,Lower Crime,LEGAL AID FUND,HINE SOLICITORS,1108192:145912917,"32,585.00",Legal Aid Payment Lower Crime,
MINISTRY OF JUSTICE,LEGAL AID AGENCY,30/11/2016,Lower Crime,LEGAL AID FUND,HINE SOLICITORS,1105660:145912920,"30,022.00",Legal Aid Payment Lower Crime,
MINISTRY OF JUSTICE,LEGAL AID AGENCY,09/11/2016,Civil Representation,LEGAL AID FUND,HLW KEEBLE HAWSON LLP,1092455:145705213,"25,161.95",Legal Aid Payment Civil Representation,
MINISTRY OF JUSTICE,LEGAL AID AGENCY,02/11/2016,Lower Crime,LEGAL AID FUND,HODGE JONES & ALLEN LLP,1088549:145676621,"101,407.00",Legal Aid Payment Lower Crime,
MINISTRY OF JUSTICE,LEGAL AID AGENCY,30/11/2016,Lower Crime,LEGAL AID FUND,HODGE JONES & ALLEN LLP,1109217:145912425,"94,256.00",Legal Aid Payment Lower Crime,
MINISTRY OF JUSTICE,LEGAL AID AGENCY,02/11/2016,Higher Crime,LEGAL AID FUND,HODGE JONES & ALLEN LLP,1088549:145638319,"41,181.82",Legal Aid Payment Higher Crime,
MINISTRY OF JUSTICE,LEGAL AID AGENCY,30/11/2016,Legal Help,LEGAL AID FUND,HODGE JONES & ALLEN LLP,1109217:145911026,"32,909.00",Legal Aid Payment Legal Help,
MINISTRY OF JUSTICE,LEGAL AID AGENCY,18/11/2016,Civil Representation,LEGAL AID FUND,HODGE JONES & ALLEN LLP,1099573:145823796,"-39,598.50",Legal Aid Payment Civil Representation,
MINISTRY OF JUSTICE,LEGAL AID AGENCY,30/11/2016,Lower Crime,LEGAL AID FUND,HODGSON COULTHARD & CO,1108944:145912497,"25,213.00",Legal Aid Payment Lower Crime,
MINISTRY OF JUSTICE,LEGAL AID AGENCY,02/11/2016,Civil Representation,LEGAL AID FUND,HOLLY COATES,1089532:145404184,"60,944.40",Legal Aid Payment Civil Representation,
MINISTRY OF JUSTICE,LEGAL AID AGENCY,02/11/2016,Civil Representation,LEGAL AID FUND,HOLLY COATES,1089532:145441794,"-35,795.21",Legal Aid Payment Civil Representation,
MINISTRY OF JUSTICE,LEGAL AID AGENCY,30/11/2016,Lower Crime,LEGAL AID FUND,HORSMAN SOLICITORS LTD,1108979:145912680,"33,990.00",Legal Aid Payment Lower Crime,
MINISTRY OF JUSTICE,LEGAL AID AGENCY,30/11/2016,Higher Crime,LEGAL AID FUND,HOUZLA B M RAWAT,1107648:145866768,"27,584.35",Legal Aid Payment Higher Crime,
MINISTRY OF JUSTICE,LEGAL AID AGENCY,02/11/2016,Lower Crime,LEGAL AID FUND,HOWARD & BYRNE SOLICITORS,1086475:145676092,"43,000.00",Legal Aid Payment Lower Crime,
MINISTRY OF JUSTICE,LEGAL AID AGENCY,30/11/2016,Lower Crime,LEGAL AID FUND,HOWARD & BYRNE SOLICITORS,1108528:145911899,"43,000.00",Legal Aid Payment Lower Crime,
MINISTRY OF JUSTICE,LEGAL AID AGENCY,02/11/2016,Lower Crime,LEGAL AID FUND,HOWARD BERNSTEIN SOLICITORS,1086280:145677097,"30,164.00",Legal Aid Payment Lower Crime,
MINISTRY OF JUSTICE,LEGAL AID AGENCY,02/11/2016,Legal Help,LEGAL AID FUND,HOWE & CO,1086401:145651046,"90,000.00",Legal Aid Payment Legal Help,
MINISTRY OF JUSTICE,LEGAL AID AGENCY,30/11/2016,Legal Help,LEGAL AID FUND,HOWE & CO,1108471:145911044,"79,589.00",Legal Aid Payment Legal Help,
MINISTRY OF JUSTICE,LEGAL AID AGENCY,09/11/2016,Higher Crime,LEGAL AID FUND,HOWELLS LLP,1091974:145702232,"56,130.96",Legal Aid Payment Higher Crime,
MINISTRY OF JUSTICE,LEGAL AID AGENCY,02/11/2016,Lower Crime,LEGAL AID FUND,HOWELLS LLP,1088403:145676074,"52,900.00",Legal Aid Payment Lower Crime,
MINISTRY OF JUSTICE,LEGAL AID AGENCY,30/11/2016,Lower Crime,LEGAL AID FUND,HOWELLS LLP,1108887:145911881,"52,900.00",Legal Aid Payment Lower Crime,
MINISTRY OF JUSTICE,LEGAL AID AGENCY,02/11/2016,Legal Help,LEGAL AID FUND,HOWELLS LLP,1088403:145674710,"34,800.00",Legal Aid Payment Legal Help,
MINISTRY OF JUSTICE,LEGAL AID AGENCY,30/11/2016,Legal Help,LEGAL AID FUND,HOWELLS LLP,1108887:145910517,"34,800.00",Legal Aid Payment Legal Help,
MINISTRY OF JUSTICE,LEGAL AID AGENCY,16/11/2016,Higher Crime,LEGAL AID FUND,HSR SOLICITORS,1096589:145762831,"116,008.49",Legal Aid Payment Higher Crime,
MINISTRY OF JUSTICE,LEGAL AID AGENCY,02/11/2016,Legal Help,LEGAL AID FUND,HUNT & COOMBS LLP,1090059:145674688,"32,200.00",Legal Aid Payment Legal Help,
MINISTRY OF JUSTICE,LEGAL AID AGENCY,30/11/2016,Legal Help,LEGAL AID FUND,HUNT & COOMBS LLP,1106307:145910499,"32,200.00",Legal Aid Payment Legal Help,
MINISTRY OF JUSTICE,LEGAL AID AGENCY,30/11/2016,Civil Representation,LEGAL AID FUND,HURLOWS FAMILY LAW PRACTICE SOLICITORS,1106530:145921036,"35,963.73",Legal Aid Payment Civil Representation,
MINISTRY OF JUSTICE,LEGAL AID AGENCY,16/11/2016,Civil Representation,LEGAL AID FUND,HURLOWS FAMILY LAW PRACTICE SOLICITORS,1099309:145759670,"35,884.73",Legal Aid Payment Civil Representation,
MINISTRY OF JUSTICE,LEGAL AID AGENCY,30/11/2016,Civil Representation,LEGAL AID FUND,HURLOWS FAMILY LAW PRACTICE SOLICITORS,1106530:145921037,"-35,884.73",Legal Aid Payment Civil Representation,
MINISTRY OF JUSTICE,LEGAL AID AGENCY,16/11/2016,Higher Crime,LEGAL AID FUND,HUSSAIN SOLICITORS LTD,1096671:145772056,"38,202.34",Legal Aid Payment Higher Crime,
MINISTRY OF JUSTICE,LEGAL AID AGENCY,02/11/2016,Lower Crime,LEGAL AID FUND,I B B SOLICITORS,1086434:145675951,"98,100.00",Legal Aid Payment Lower Crime,
MINISTRY OF JUSTICE,LEGAL AID AGENCY,30/11/2016,Lower Crime,LEGAL AID FUND,I B B SOLICITORS,1105856:145911762,"98,100.00",Legal Aid Payment Lower Crime,
MINISTRY OF JUSTICE,LEGAL AID AGENCY,16/11/2016,Higher Crime,LEGAL AID FUND,I B B SOLICITORS,1098809:145801936,"31,473.07",Legal Aid Payment Higher Crime,
MINISTRY OF JUSTICE,LEGAL AID AGENCY,09/11/2016,Higher Crime,LEGAL AID FUND,IAN F HENDERSON,1091402:145710807,"28,463.00",Legal Aid Payment Higher Crime,
MINISTRY OF JUSTICE,LEGAL AID AGENCY,30/11/2016,Higher Crime,LEGAL AID FUND,IAN HENERY LTD,1108529:145867158,"28,071.07",Legal Aid Payment Higher Crime,
MINISTRY OF JUSTICE,LEGAL AID AGENCY,02/11/2016,Higher Crime,LEGAL AID FUND,IAN J WHITEHURST,1085899:145656818,"35,434.27",Legal Aid Payment Higher Crime,
MINISTRY OF JUSTICE,LEGAL AID AGENCY,16/11/2016,Higher Crime,LEGAL AID FUND,IAN JOBLING,1098319:145761968,"26,177.40",Legal Aid Payment Higher Crime,
MINISTRY OF JUSTICE,LEGAL AID AGENCY,30/11/2016,Higher Crime,LEGAL AID FUND,IMRAN KHAN & PARTNERS,1106758:145885374,"105,857.75",Legal Aid Payment Higher Crime,
MINISTRY OF JUSTICE,LEGAL AID AGENCY,16/11/2016,Higher Crime,LEGAL AID FUND,IMRAN KHAN & PARTNERS,1097297:145801483,"43,427.94",Legal Aid Payment Higher Crime,
MINISTRY OF JUSTICE,LEGAL AID AGENCY,02/11/2016,Lower Crime,LEGAL AID FUND,INGRAMS SOLICITORS,1089840:145676768,"27,509.00",Legal Aid Payment Lower Crime,
MINISTRY OF JUSTICE,LEGAL AID AGENCY,02/11/2016,Lower Crime,LEGAL AID FUND,INSTALAW,1088795:145677329,"35,717.00",Legal Aid Payment Lower Crime,
MINISTRY OF JUSTICE,LEGAL AID AGENCY,30/11/2016,Lower Crime,LEGAL AID FUND,INSTALAW,1104317:145913131,"25,779.00",Legal Aid Payment Lower Crime,
MINISTRY OF JUSTICE,LEGAL AID AGENCY,30/11/2016,Legal Help,LEGAL AID FUND,IRIS LAW SOLICITORS,1107258:145911358,"25,030.00",Legal Aid Payment Legal Help,
MINISTRY OF JUSTICE,LEGAL AID AGENCY,30/11/2016,Higher Crime,LEGAL AID FUND,IRVINE THANVI NATAS SOLICITORS,1106022:145885376,"78,276.54",Legal Aid Payment Higher Crime,
MINISTRY OF JUSTICE,LEGAL AID AGENCY,30/11/2016,Lower Crime,LEGAL AID FUND,IRVINE THANVI NATAS SOLICITORS,1106022:145911738,"70,400.00",Legal Aid Payment Lower Crime,
MINISTRY OF JUSTICE,LEGAL AID AGENCY,02/11/2016,Lower Crime,LEGAL AID FUND,IRVINE THANVI NATAS SOLICITORS,1089894:145675926,"50,000.00",Legal Aid Payment Lower Crime,
MINISTRY OF JUSTICE,LEGAL AID AGENCY,30/11/2016,Higher Crime,LEGAL AID FUND,ISABELLA L FORSHALL QC,1107567:145865782,"42,646.15",Legal Aid Payment Higher Crime,
MINISTRY OF JUSTICE,LEGAL AID AGENCY,02/11/2016,Civil Representation,LEGAL AID FUND,ISON HARRISON LTD,1089845:145643064,"56,932.88",Legal Aid Payment Civil Representation,
MINISTRY OF JUSTICE,LEGAL AID AGENCY,02/11/2016,Legal Help,LEGAL AID FUND,ISON HARRISON LTD,1089845:145675142,"28,499.00",Legal Aid Payment Legal Help,
MINISTRY OF JUSTICE,LEGAL AID AGENCY,02/11/2016,Lower Crime,LEGAL AID FUND,ISON HARRISON LTD,1089844:145676112,"26,200.00",Legal Aid Payment Lower Crime,
MINISTRY OF JUSTICE,LEGAL AID AGENCY,30/11/2016,Lower Crime,LEGAL AID FUND,ISON HARRISON LTD,1108505:145911917,"26,200.00",Legal Aid Payment Lower Crime,
MINISTRY OF JUSTICE,LEGAL AID AGENCY,30/11/2016,Lower Crime,LEGAL AID FUND,J D SOLICITORS,1108214:145912893,"58,506.00",Legal Aid Payment Lower Crime,
MINISTRY OF JUSTICE,LEGAL AID AGENCY,02/11/2016,Lower Crime,LEGAL AID FUND,J D SOLICITORS,1089731:145677083,"50,719.00",Legal Aid Payment Lower Crime,
MINISTRY OF JUSTICE,LEGAL AID AGENCY,30/11/2016,Lower Crime,LEGAL AID FUND,J D SOLICITORS,1105916:145912829,"50,510.00",Legal Aid Payment Lower Crime,
MINISTRY OF JUSTICE,LEGAL AID AGENCY,09/11/2016,Higher Crime,LEGAL AID FUND,J D SOLICITORS,1091925:145690808,"38,118.36",Legal Aid Payment Higher Crime,
MINISTRY OF JUSTICE,LEGAL AID AGENCY,23/11/2016,Higher Crime,LEGAL AID FUND,J D SOLICITORS,1103378:145820663,"36,075.29",Legal Aid Payment Higher Crime,
MINISTRY OF JUSTICE,LEGAL AID AGENCY,02/11/2016,Lower Crime,LEGAL AID FUND,J D SOLICITORS,1088074:145677018,"34,793.00",Legal Aid Payment Lower Crime,
MINISTRY OF JUSTICE,LEGAL AID AGENCY,30/11/2016,Lower Crime,LEGAL AID FUND,J D SPICER ZEB,1109220:145912387,"96,332.00",Legal Aid Payment Lower Crime,
MINISTRY OF JUSTICE,LEGAL AID AGENCY,02/11/2016,Higher Crime,LEGAL AID FUND,J D SPICER ZEB,1088552:145679122,"89,975.11",Legal Aid Payment Higher Crime,
MINISTRY OF JUSTICE,LEGAL AID AGENCY,02/11/2016,Lower Crime,LEGAL AID FUND,J D SPICER ZEB,1088552:145676584,"88,604.00",Legal Aid Payment Lower Crime,
MINISTRY OF JUSTICE,LEGAL AID AGENCY,30/11/2016,Higher Crime,LEGAL AID FUND,J D SPICER ZEB,1109218:145885394,"64,161.26",Legal Aid Payment Higher Crime,
MINISTRY OF JUSTICE,LEGAL AID AGENCY,16/11/2016,Higher Crime,LEGAL AID FUND,J D SPICER ZEB,1095276:145762545,"54,497.60",Legal Aid Payment Higher Crime,
MINISTRY OF JUSTICE,LEGAL AID AGENCY,23/11/2016,Higher Crime,LEGAL AID FUND,J D SPICER ZEB,1101704:145811399,"53,907.49",Legal Aid Payment Higher Crime,
MINISTRY OF JUSTICE,LEGAL AID AGENCY,23/11/2016,Higher Crime,LEGAL AID FUND,J D SPICER ZEB,1099743:145855962,"42,550.08",Legal Aid Payment Higher Crime,
MINISTRY OF JUSTICE,LEGAL AID AGENCY,02/11/2016,Civil Representation,LEGAL AID FUND,JACKSON QUINN,1086485:3000000735340018,"27,680.27",Legal Aid Payment Civil Representation,
MINISTRY OF JUSTICE,LEGAL AID AGENCY,30/11/2016,Higher Crime,LEGAL AID FUND,JACOBS & TRICKS,1107198:145914468,"40,673.69",Legal Aid Payment Higher Crime,
MINISTRY OF JUSTICE,LEGAL AID AGENCY,16/11/2016,Civil Representation,LEGAL AID FUND,JAMES H H TILLYARD QC,1098308:145759740,"27,442.80",Legal Aid Payment Civil Representation,
MINISTRY OF JUSTICE,LEGAL AID AGENCY,30/11/2016,Lower Crime,LEGAL AID FUND,JAMES MURRAY SOLICITORS,1108735:145912473,"28,122.00",Legal Aid Payment Lower Crime,
MINISTRY OF JUSTICE,LEGAL AID AGENCY,02/11/2016,Lower Crime,LEGAL AID FUND,JAMES MURRAY SOLICITORS,1089955:145676666,"27,672.00",Legal Aid Payment Lower Crime,
MINISTRY OF JUSTICE,LEGAL AID AGENCY,30/11/2016,Higher Crime,LEGAL AID FUND,JAMES T N SCOBIE QC,1107066:145914831,"36,141.31",Legal Aid Payment Higher Crime,
MINISTRY OF JUSTICE,LEGAL AID AGENCY,02/11/2016,Higher Crime,LEGAL AID FUND,JAMES T N SCOBIE QC,1085494:145628569,"27,551.44",Legal Aid Payment Higher Crime,
MINISTRY OF JUSTICE,LEGAL AID AGENCY,24/11/2016,Civil Representation,LEGAL AID FUND,JAN M LUBA QC,1104131:145123817,"-29,561.49",Legal Aid Payment Civil Representation,
MINISTRY OF JUSTICE,LEGAL AID AGENCY,30/11/2016,Higher Crime,LEGAL AID FUND,JANE C HUMPHRYES QC,1107995:145874735,"58,849.40",Legal Aid Payment Higher Crime,
MINISTRY OF JUSTICE,LEGAL AID AGENCY,16/11/2016,Higher Crime,LEGAL AID FUND,JANES SOLICITORS,1099252:145752943,"37,296.80",Legal Aid Payment Higher Crime,
MINISTRY OF JUSTICE,LEGAL AID AGENCY,09/11/2016,Civil Representation,LEGAL AID FUND,JANET C BAZLEY QC,1091569:145180760,"84,067.62",Legal Aid Payment Civil Representation,
MINISTRY OF JUSTICE,LEGAL AID AGENCY,09/11/2016,Civil Representation,LEGAL AID FUND,JANET C BAZLEY QC,1091569:144952950,"82,158.60",Legal Aid Payment Civil Representation,
MINISTRY OF JUSTICE,LEGAL AID AGENCY,09/11/2016,Civil Representation,LEGAL AID FUND,JANET C BAZLEY QC,1091569:145248792,"59,130.00",Legal Aid Payment Civil Representation,
MINISTRY OF JUSTICE,LEGAL AID AGENCY,16/11/2016,Civil Representation,LEGAL AID FUND,JANET C BAZLEY QC,1096120:145747901,"43,687.22",Legal Aid Payment Civil Representation,
MINISTRY OF JUSTICE,LEGAL AID AGENCY,09/11/2016,Civil Representation,LEGAL AID FUND,JANET C BAZLEY QC,1091569:145736429,"40,722.95",Legal Aid Payment Civil Representation,
MINISTRY OF JUSTICE,LEGAL AID AGENCY,09/11/2016,Civil Representation,LEGAL AID FUND,JANET C BAZLEY QC,1091569:145297564,"-56,635.20",Legal Aid Payment Civil Representation,
MINISTRY OF JUSTICE,LEGAL AID AGENCY,09/11/2016,Civil Representation,LEGAL AID FUND,JANET C BAZLEY QC,1091569:145006102,"-62,461.80",Legal Aid Payment Civil Representation,
MINISTRY OF JUSTICE,LEGAL AID AGENCY,09/11/2016,Civil Representation,LEGAL AID FUND,JANET C BAZLEY QC,1091569:145180764,"-82,158.60",Legal Aid Payment Civil Representation,
MINISTRY OF JUSTICE,LEGAL AID AGENCY,23/11/2016,Higher Crime,LEGAL AID FUND,JASON K PITTER,1100250:145815767,"48,360.00",Legal Aid Payment Higher Crime,
MINISTRY OF JUSTICE,LEGAL AID AGENCY,23/11/2016,Higher Crime,LEGAL AID FUND,JBR MORGAN LTD,1101030:145855986,"32,449.16",Legal Aid Payment Higher Crime,
MINISTRY OF JUSTICE,LEGAL AID AGENCY,02/11/2016,Higher Crime,LEGAL AID FUND,JEREMY R HILL-BAKER,1088914:145648048,"26,622.00",Legal Aid Payment Higher Crime,
MINISTRY OF JUSTICE,LEGAL AID AGENCY,23/11/2016,Higher Crime,LEGAL AID FUND,JEREMY V BARNETT,1102556:145811018,"62,151.60",Legal Aid Payment Higher Crime,
MINISTRY OF JUSTICE,LEGAL AID AGENCY,02/11/2016,Lower Crime,LEGAL AID FUND,JERMAN SAMUELS & PEARSON LLP,1086580:145675889,"37,600.00",Legal Aid Payment Lower Crime,
MINISTRY OF JUSTICE,LEGAL AID AGENCY,30/11/2016,Lower Crime,LEGAL AID FUND,JERMAN SAMUELS & PEARSON LLP,1108590:145911699,"37,600.00",Legal Aid Payment Lower Crime,
MINISTRY OF JUSTICE,LEGAL AID AGENCY,02/11/2016,Lower Crime,LEGAL AID FUND,JERMAN SAMUELS & PEARSON LLP,1086581:145675888,"35,000.00",Legal Aid Payment Lower Crime,
MINISTRY OF JUSTICE,LEGAL AID AGENCY,30/11/2016,Lower Crime,LEGAL AID FUND,JERMAN SAMUELS & PEARSON LLP,1108591:145911698,"35,000.00",Legal Aid Payment Lower Crime,
MINISTRY OF JUSTICE,LEGAL AID AGENCY,02/11/2016,Legal Help,LEGAL AID FUND,JESSE DOUGLAS & AASKELLS SOLICITORS,1088633:145675193,"57,001.00",Legal Aid Payment Legal Help,
MINISTRY OF JUSTICE,LEGAL AID AGENCY,30/11/2016,Legal Help,LEGAL AID FUND,JESSE DOUGLAS & AASKELLS SOLICITORS,1106763:145911000,"44,499.00",Legal Aid Payment Legal Help,
MINISTRY OF JUSTICE,LEGAL AID AGENCY,02/11/2016,Higher Crime,LEGAL AID FUND,JMW SOLICITORS LLP,1086796:145648080,"57,413.40",Legal Aid Payment Higher Crime,
MINISTRY OF JUSTICE,LEGAL AID AGENCY,23/11/2016,Higher Crime,LEGAL AID FUND,JMW SOLICITORS LLP,1101562:145857693,"27,053.64",Legal Aid Payment Higher Crime,
MINISTRY OF JUSTICE,LEGAL AID AGENCY,02/11/2016,Lower Crime,LEGAL AID FUND,JNP LEGAL LTD,1090287:145675834,"25,400.00",Legal Aid Payment Lower Crime,
MINISTRY OF JUSTICE,LEGAL AID AGENCY,30/11/2016,Lower Crime,LEGAL AID FUND,JNP LEGAL LTD,1106537:145911647,"25,400.00",Legal Aid Payment Lower Crime,
MINISTRY OF JUSTICE,LEGAL AID AGENCY,23/11/2016,Higher Crime,LEGAL AID FUND,JOEL N BENNATHAN QC,1103207:145857140,"38,396.44",Legal Aid Payment Higher Crime,
MINISTRY OF JUSTICE,LEGAL AID AGENCY,01/11/2016,Civil Representation,LEGAL AID FUND,JOHN A HAYES QC,1085248:3000000353920022RC,"-55,331.10",Legal Aid Payment Civil Representation,
MINISTRY OF JUSTICE,LEGAL AID AGENCY,01/11/2016,Civil Representation,LEGAL AID FUND,JOHN A HAYES QC,1085248:300000035392DCL54,"-55,331.10",Legal Aid Payment Civil Representation,
MINISTRY OF JUSTICE,LEGAL AID AGENCY,02/11/2016,Higher Crime,LEGAL AID FUND,JOHN C TOWNSEND,1086974:145686133,"35,620.00",Legal Aid Payment Higher Crime,
MINISTRY OF JUSTICE,LEGAL AID AGENCY,02/11/2016,Higher Crime,LEGAL AID FUND,JOHN C TOWNSEND,1086974:145686643,"35,620.00",Legal Aid Payment Higher Crime,
MINISTRY OF JUSTICE,LEGAL AID AGENCY,02/11/2016,Lower Crime,LEGAL AID FUND,JOHN DELANEY & CO SOLICITORS,1089846:145676111,"30,000.00",Legal Aid Payment Lower Crime,
MINISTRY OF JUSTICE,LEGAL AID AGENCY,30/11/2016,Lower Crime,LEGAL AID FUND,JOHN DELANEY & CO SOLICITORS,1108507:145911916,"30,000.00",Legal Aid Payment Lower Crime,
MINISTRY OF JUSTICE,LEGAL AID AGENCY,02/11/2016,Higher Crime,LEGAL AID FUND,JOHN E L WARRINGTON,1088902:145648532,"32,176.44",Legal Aid Payment Higher Crime,
MINISTRY OF JUSTICE,LEGAL AID AGENCY,30/11/2016,Higher Crime,LEGAL AID FUND,JOHN FULLER & PARTNERS,1108323:145893957,"27,599.46",Legal Aid Payment Higher Crime,
MINISTRY OF JUSTICE,LEGAL AID AGENCY,16/11/2016,Civil Representation,LEGAL AID FUND,JOHN JACKSON,1098185:145757283,"50,781.60",Legal Aid Payment Civil Representation,
MINISTRY OF JUSTICE,LEGAL AID AGENCY,02/11/2016,Lower Crime,LEGAL AID FUND,JOHN ONIONS SOLICITORS,1086858:145676971,"39,692.00",Legal Aid Payment Lower Crime,
MINISTRY OF JUSTICE,LEGAL AID AGENCY,30/11/2016,Lower Crime,LEGAL AID FUND,JOHN ONIONS SOLICITORS,1109084:145912784,"35,796.00",Legal Aid Payment Lower Crime,
MINISTRY OF JUSTICE,LEGAL AID AGENCY,09/11/2016,Higher Crime,LEGAL AID FUND,JOHN R JONES QC,1093024:145720071,"58,691.46",Legal Aid Payment Higher Crime,
MINISTRY OF JUSTICE,LEGAL AID AGENCY,15/11/2016,Higher Crime,LEGAL AID FUND,JOHN R JONES QC,1095082:145801228,"-58,943.46",Legal Aid Payment Higher Crime,
MINISTRY OF JUSTICE,LEGAL AID AGENCY,23/11/2016,Higher Crime,LEGAL AID FUND,JON MAIL SOLICITORS & CO LTD,1103346:145819966,"48,629.38",Legal Aid Payment Higher Crime,
MINISTRY OF JUSTICE,LEGAL AID AGENCY,02/11/2016,Lower Crime,LEGAL AID FUND,JONAS ROY BLOOM,1086462:145676301,"57,500.00",Legal Aid Payment Lower Crime,
MINISTRY OF JUSTICE,LEGAL AID AGENCY,30/11/2016,Lower Crime,LEGAL AID FUND,JONAS ROY BLOOM,1105896:145912106,"57,500.00",Legal Aid Payment Lower Crime,
MINISTRY OF JUSTICE,LEGAL AID AGENCY,02/11/2016,Higher Crime,LEGAL AID FUND,JONAS ROY BLOOM,1086462:145638667,"45,869.72",Legal Aid Payment Higher Crime,
MINISTRY OF JUSTICE,LEGAL AID AGENCY,23/11/2016,Civil Representation,LEGAL AID FUND,JONATHAN L COHEN QC,1102910:145823569,"31,760.40",Legal Aid Payment Civil Representation,
MINISTRY OF JUSTICE,LEGAL AID AGENCY,02/11/2016,Lower Crime,LEGAL AID FUND,JORDANS LLP,1086771:145676722,"27,040.00",Legal Aid Payment Lower Crime,
MINISTRY OF JUSTICE,LEGAL AID AGENCY,30/11/2016,Higher Crime,LEGAL AID FUND,JOSEPH HILL & CO,1108852:145884543,"114,848.41",Legal Aid Payment Higher Crime,
MINISTRY OF JUSTICE,LEGAL AID AGENCY,16/11/2016,Higher Crime,LEGAL AID FUND,JOSEPH HILL & CO,1099102:145772179,"81,347.36",Legal Aid Payment Higher Crime,
MINISTRY OF JUSTICE,LEGAL AID AGENCY,02/11/2016,Lower Crime,LEGAL AID FUND,JOSEPH HILL & CO,1088370:145676586,"52,656.00",Legal Aid Payment Lower Crime,
MINISTRY OF JUSTICE,LEGAL AID AGENCY,30/11/2016,Lower Crime,LEGAL AID FUND,JOSEPH HILL & CO,1108852:145912389,"47,494.00",Legal Aid Payment Lower Crime,
MINISTRY OF JUSTICE,LEGAL AID AGENCY,30/11/2016,Higher Crime,LEGAL AID FUND,JOSEPH HILL & CO-ADVOCATE,1107860:145875332,"30,605.64",Legal Aid Payment Higher Crime,
MINISTRY OF JUSTICE,LEGAL AID AGENCY,30/11/2016,Lower Crime,LEGAL AID FUND,JSP LAW LTD,1105728:145912958,"73,695.00",Legal Aid Payment Lower Crime,
MINISTRY OF JUSTICE,LEGAL AID AGENCY,02/11/2016,Lower Crime,LEGAL AID FUND,JSP LAW LTD,1089672:145677158,"66,056.00",Legal Aid Payment Lower Crime,
MINISTRY OF JUSTICE,LEGAL AID AGENCY,30/11/2016,Civil Representation,LEGAL AID FUND,JULIE A OKINE,1107961:145888308,"27,360.00",Legal Aid Payment Civil Representation,
MINISTRY OF JUSTICE,LEGAL AID AGENCY,09/11/2016,Civil Representation,LEGAL AID FUND,JULIE A SLATER,1093683:145736819,"43,875.00",Legal Aid Payment Civil Representation,
MINISTRY OF JUSTICE,LEGAL AID AGENCY,09/11/2016,Civil Representation,LEGAL AID FUND,JULIE R MOSELEY,1091470:3000000938350003,"25,660.80",Legal Aid Payment Civil Representation,
MINISTRY OF JUSTICE,LEGAL AID AGENCY,16/11/2016,Higher Crime,LEGAL AID FUND,JUSTIN C D ROUSE,1096414:145782007,"26,239.78",Legal Aid Payment Higher Crime,
MINISTRY OF JUSTICE,LEGAL AID AGENCY,16/11/2016,Higher Crime,LEGAL AID FUND,JUSTIN C GAU,1096470:145801217,"25,254.91",Legal Aid Payment Higher Crime,
MINISTRY OF JUSTICE,LEGAL AID AGENCY,02/11/2016,Civil Representation,LEGAL AID FUND,JUSTIN H W GRAY,1089554:3000000414380012,"31,665.60",Legal Aid Payment Civil Representation,
MINISTRY OF JUSTICE,LEGAL AID AGENCY,30/11/2016,Lower Crime,LEGAL AID FUND,K LEGAL SOLICITORS,1105592:145912984,"43,564.00",Legal Aid Payment Lower Crime,
MINISTRY OF JUSTICE,LEGAL AID AGENCY,02/11/2016,Lower Crime,LEGAL AID FUND,K LEGAL SOLICITORS,1086300:145677184,"42,574.00",Legal Aid Payment Lower Crime,
MINISTRY OF JUSTICE,LEGAL AID AGENCY,02/11/2016,Higher Crime,LEGAL AID FUND,KAIM TODNER SOLICITORS LIMITED,1090323:145647754,"89,355.31",Legal Aid Payment Higher Crime,
MINISTRY OF JUSTICE,LEGAL AID AGENCY,02/11/2016,Lower Crime,LEGAL AID FUND,KAIM TODNER SOLICITORS LIMITED,1090324:145676565,"54,657.00",Legal Aid Payment Lower Crime,
MINISTRY OF JUSTICE,LEGAL AID AGENCY,30/11/2016,Lower Crime,LEGAL AID FUND,KAIM TODNER SOLICITORS LIMITED,1109240:145912372,"48,909.00",Legal Aid Payment Lower Crime,
MINISTRY OF JUSTICE,LEGAL AID AGENCY,30/11/2016,Lower Crime,LEGAL AID FUND,KAIM TODNER SOLICITORS LIMITED,1109239:145912373,"40,530.00",Legal Aid Payment Lower Crime,
MINISTRY OF JUSTICE,LEGAL AID AGENCY,02/11/2016,Lower Crime,LEGAL AID FUND,KAIM TODNER SOLICITORS LIMITED,1090323:145676566,"34,233.00",Legal Aid Payment Lower Crime,
MINISTRY OF JUSTICE,LEGAL AID AGENCY,23/11/2016,Civil Representation,LEGAL AID FUND,KAMILA DEVI,1104116:1000000503460002,"107,304.50",Legal Aid Payment Civil Representation,
MINISTRY OF JUSTICE,LEGAL AID AGENCY,16/11/2016,Higher Crime,LEGAL AID FUND,KAMRANS SOLICITORS,1096808:145771899,"95,707.01",Legal Aid Payment Higher Crime,
MINISTRY OF JUSTICE,LEGAL AID AGENCY,23/11/2016,Higher Crime,LEGAL AID FUND,KAMRANS SOLICITORS,1101286:145830051,"50,213.96",Legal Aid Payment Higher Crime,
MINISTRY OF JUSTICE,LEGAL AID AGENCY,09/11/2016,Higher Crime,LEGAL AID FUND,KANGS SOLICITORS,1094753:145711252,"54,497.60",Legal Aid Payment Higher Crime,
MINISTRY OF JUSTICE,LEGAL AID AGENCY,02/11/2016,Higher Crime,LEGAL AID FUND,KANGS SOLICITORS,1090265:145655927,"44,960.52",Legal Aid Payment Higher Crime,
MINISTRY OF JUSTICE,LEGAL AID AGENCY,23/11/2016,Higher Crime,LEGAL AID FUND,KANGS SOLICITORS,1103817:145811954,"33,636.91",Legal Aid Payment Higher Crime,
MINISTRY OF JUSTICE,LEGAL AID AGENCY,09/11/2016,Civil Representation,LEGAL AID FUND,KARL BERRY,1093331:145698147,"31,392.00",Legal Aid Payment Civil Representation,
MINISTRY OF JUSTICE,LEGAL AID AGENCY,23/11/2016,Civil Representation,LEGAL AID FUND,KARL J ROWLEY,1100807:145825267,"38,296.80",Legal Aid Payment Civil Representation,
MINISTRY OF JUSTICE,LEGAL AID AGENCY,02/11/2016,Higher Crime,LEGAL AID FUND,KATHERINE BRUNNER,1085781:145686648,"38,000.00",Legal Aid Payment Higher Crime,
MINISTRY OF JUSTICE,LEGAL AID AGENCY,16/11/2016,Higher Crime,LEGAL AID FUND,KATHERINE BRUNNER,1095798:145752835,"37,321.09",Legal Aid Payment Higher Crime,
MINISTRY OF JUSTICE,LEGAL AID AGENCY,09/11/2016,Civil Representation,LEGAL AID FUND,KATHRYN HUGHES,1093499:145715668,"35,699.40",Legal Aid Payment Civil Representation,
MINISTRY OF JUSTICE,LEGAL AID AGENCY,09/11/2016,Civil Representation,LEGAL AID FUND,KATY S RENSTEN,1093845:145738674,"44,496.00",Legal Aid Payment Civil Representation,
MINISTRY OF JUSTICE,LEGAL AID AGENCY,09/11/2016,Civil Representation,LEGAL AID FUND,KATY S RENSTEN,1093845:145748521,"-33,372.00",Legal Aid Payment Civil Representation,
MINISTRY OF JUSTICE,LEGAL AID AGENCY,30/11/2016,Lower Crime,LEGAL AID FUND,KEANEY WHITEHEAD PARTNERSHIP,1108306:145912480,"46,441.00",Legal Aid Payment Lower Crime,
MINISTRY OF JUSTICE,LEGAL AID AGENCY,16/11/2016,Higher Crime,LEGAL AID FUND,KELLY L SCRIVENER,1098586:145772587,"30,355.49",Legal Aid Payment Higher Crime,
MINISTRY OF JUSTICE,LEGAL AID AGENCY,02/11/2016,Lower Crime,LEGAL AID FUND,KELLYS,1086923:145676879,"33,813.00",Legal Aid Payment Lower Crime,
MINISTRY OF JUSTICE,LEGAL AID AGENCY,30/11/2016,Lower Crime,LEGAL AID FUND,KELLYS,1106616:145912690,"28,348.00",Legal Aid Payment Lower Crime,
MINISTRY OF JUSTICE,LEGAL AID AGENCY,02/11/2016,Lower Crime,LEGAL AID FUND,KEMPS SOLICITORS,1088429:145676790,"25,384.00",Legal Aid Payment Lower Crime,
MINISTRY OF JUSTICE,LEGAL AID AGENCY,02/11/2016,Lower Crime,LEGAL AID FUND,KENT DEFENCE,1087950:145676331,"27,000.00",Legal Aid Payment Lower Crime,
MINISTRY OF JUSTICE,LEGAL AID AGENCY,02/11/2016,Lower Crime,LEGAL AID FUND,KESAR & CO SOLICITORS,1086292:145677186,"32,001.00",Legal Aid Payment Lower Crime,
MINISTRY OF JUSTICE,LEGAL AID AGENCY,30/11/2016,Lower Crime,LEGAL AID FUND,KESAR & CO SOLICITORS,1105585:145912986,"31,535.00",Legal Aid Payment Lower Crime,
MINISTRY OF JUSTICE,LEGAL AID AGENCY,02/11/2016,Higher Crime,LEGAL AID FUND,KEVIN J HEGARTY QC,1085923:145629470,"35,906.83",Legal Aid Payment Higher Crime,
MINISTRY OF JUSTICE,LEGAL AID AGENCY,16/11/2016,Higher Crime,LEGAL AID FUND,KHAN SOLICITORS LTD,1096480:145771902,"81,347.36",Legal Aid Payment Higher Crime,
MINISTRY OF JUSTICE,LEGAL AID AGENCY,09/11/2016,Higher Crime,LEGAL AID FUND,KHAN SOLICITORS LTD,1094526:145711880,"59,109.24",Legal Aid Payment Higher Crime,
MINISTRY OF JUSTICE,LEGAL AID AGENCY,23/11/2016,Higher Crime,LEGAL AID FUND,KHAN SOLICITORS LTD,1103693:145838205,"43,690.74",Legal Aid Payment Higher Crime,
MINISTRY OF JUSTICE,LEGAL AID AGENCY,30/11/2016,Higher Crime,LEGAL AID FUND,KHAN'S LAW FIRM LTD TA KK & CO,1108199:145883944,"45,756.80",Legal Aid Payment Higher Crime,
MINISTRY OF JUSTICE,LEGAL AID AGENCY,02/11/2016,Lower Crime,LEGAL AID FUND,KIRWANS,1089957:145676663,"39,646.00",Legal Aid Payment Lower Crime,
MINISTRY OF JUSTICE,LEGAL AID AGENCY,30/11/2016,Lower Crime,LEGAL AID FUND,KIRWANS,1108738:145912470,"31,853.00",Legal Aid Payment Lower Crime,
MINISTRY OF JUSTICE,LEGAL AID AGENCY,30/11/2016,Lower Crime,LEGAL AID FUND,KSP SOLICITORS,1108228:145912968,"30,503.00",Legal Aid Payment Lower Crime,
MINISTRY OF JUSTICE,LEGAL AID AGENCY,16/11/2016,Civil Representation,LEGAL AID FUND,KUNDERT SOLICITORS LLP,1097113:145766440,"30,921.48",Legal Aid Payment Civil Representation,
MINISTRY OF JUSTICE,LEGAL AID AGENCY,02/11/2016,Lower Crime,LEGAL AID FUND,KYLE LEGAL PRACTICE,1089732:145677044,"36,585.00",Legal Aid Payment Lower Crime,
MINISTRY OF JUSTICE,LEGAL AID AGENCY,30/11/2016,Lower Crime,LEGAL AID FUND,KYLE LEGAL PRACTICE,1108215:145912854,"35,310.00",Legal Aid Payment Lower Crime,
MINISTRY OF JUSTICE,LEGAL AID AGENCY,02/11/2016,Higher Crime,LEGAL AID FUND,L P EVANS SOLICITORS,1089683:145639285,"34,830.65",Legal Aid Payment Higher Crime,
MINISTRY OF JUSTICE,LEGAL AID AGENCY,09/11/2016,Higher Crime,LEGAL AID FUND,L P EVANS SOLICITORS,1091950:145701351,"29,532.86",Legal Aid Payment Higher Crime,
MINISTRY OF JUSTICE,LEGAL AID AGENCY,02/11/2016,Lower Crime,LEGAL AID FUND,LANSBURY WORTHINGTON,1088510:145675912,"54,900.00",Legal Aid Payment Lower Crime,
MINISTRY OF JUSTICE,LEGAL AID AGENCY,30/11/2016,Lower Crime,LEGAL AID FUND,LANSBURY WORTHINGTON,1106485:145911722,"54,900.00",Legal Aid Payment Lower Crime,
MINISTRY OF JUSTICE,LEGAL AID AGENCY,30/11/2016,Higher Crime,LEGAL AID FUND,LAURENCE LEE & CO,1108787:145914215,"72,372.67",Legal Aid Payment Higher Crime,
MINISTRY OF JUSTICE,LEGAL AID AGENCY,02/11/2016,Legal Help,LEGAL AID FUND,LAWANA & CO,1086323:145674742,"79,000.00",Legal Aid Payment Legal Help,
MINISTRY OF JUSTICE,LEGAL AID AGENCY,30/11/2016,Legal Help,LEGAL AID FUND,LAWANA & CO,1108331:145910547,"79,000.00",Legal Aid Payment Legal Help,
MINISTRY OF JUSTICE,LEGAL AID AGENCY,02/11/2016,Lower Crime,LEGAL AID FUND,LAWRENCE & CO,1088371:145675991,"35,000.00",Legal Aid Payment Lower Crime,
MINISTRY OF JUSTICE,LEGAL AID AGENCY,30/11/2016,Lower Crime,LEGAL AID FUND,LAWRENCE & CO,1108853:145911800,"35,000.00",Legal Aid Payment Lower Crime,
MINISTRY OF JUSTICE,LEGAL AID AGENCY,30/11/2016,Civil Representation,LEGAL AID FUND,LAWRENCE & CO,1108853:145888233,"34,971.56",Legal Aid Payment Civil Representation,
MINISTRY OF JUSTICE,LEGAL AID AGENCY,02/11/2016,Legal Help,LEGAL AID FUND,LAWRENCE LUPIN SOLICITORS LTD,1086526:145651040,"90,000.00",Legal Aid Payment Legal Help,
MINISTRY OF JUSTICE,LEGAL AID AGENCY,30/11/2016,Legal Help,LEGAL AID FUND,LAWRENCE LUPIN SOLICITORS LTD,1106110:145910997,"66,419.27",Legal Aid Payment Legal Help,
MINISTRY OF JUSTICE,LEGAL AID AGENCY,02/11/2016,Legal Help,LEGAL AID FUND,LAWRENCE LUPIN SOLICITORS LTD,1086526:145651041,"35,429.00",Legal Aid Payment Legal Help,
MINISTRY OF JUSTICE,LEGAL AID AGENCY,02/11/2016,Lower Crime,LEGAL AID FUND,LAWTONS SOLICITORS LTD,1089645:145676344,"85,000.00",Legal Aid Payment Lower Crime,
MINISTRY OF JUSTICE,LEGAL AID AGENCY,30/11/2016,Lower Crime,LEGAL AID FUND,LAWTONS SOLICITORS LTD,1108224:145912147,"85,000.00",Legal Aid Payment Lower Crime,
MINISTRY OF JUSTICE,LEGAL AID AGENCY,02/11/2016,Lower Crime,LEGAL AID FUND,LAWTONS SOLICITORS LTD,1088109:145675878,"25,000.00",Legal Aid Payment Lower Crime,
MINISTRY OF JUSTICE,LEGAL AID AGENCY,30/11/2016,Lower Crime,LEGAL AID FUND,LAWTONS SOLICITORS LTD,1105845:145911688,"25,000.00",Legal Aid Payment Lower Crime,
MINISTRY OF JUSTICE,LEGAL AID AGENCY,30/11/2016,Legal Help,LEGAL AID FUND,LEGAL JUSTICE SOLICITORS,1106963:145911484,"38,170.00",Legal Aid Payment Legal Help,
MINISTRY OF JUSTICE,LEGAL AID AGENCY,30/11/2016,Civil Representation,LEGAL AID FUND,LEGAL SERVICES FOR CHILDREN,1108458:145775895,"30,138.00",Legal Aid Payment Civil Representation,
MINISTRY OF JUSTICE,LEGAL AID AGENCY,02/11/2016,Legal Help,LEGAL AID FUND,LEI DAT BAIG SOLICITORS LIMITED,1087930:145675524,"42,668.00",Legal Aid Payment Legal Help,
MINISTRY OF JUSTICE,LEGAL AID AGENCY,30/11/2016,Legal Help,LEGAL AID FUND,LEI DAT BAIG SOLICITORS LIMITED,1108106:145911329,"38,526.00",Legal Aid Payment Legal Help,
MINISTRY OF JUSTICE,LEGAL AID AGENCY,09/11/2016,Civil Representation,LEGAL AID FUND,LEIGH DAY & CO,1094262:145469874,"-34,198.50",Legal Aid Payment Civil Representation,
MINISTRY OF JUSTICE,LEGAL AID AGENCY,04/11/2016,Lower Crime,LEGAL AID FUND,LEIGH TURTON DIXON,1090486:142324284,"-25,697.14",Legal Aid Payment Lower Crime,
MINISTRY OF JUSTICE,LEGAL AID AGENCY,23/11/2016,Civil Representation,LEGAL AID FUND,LEONIE CAPLAN,1100730:145832236,"29,899.80",Legal Aid Payment Civil Representation,
MINISTRY OF JUSTICE,LEGAL AID AGENCY,23/11/2016,Civil Representation,LEGAL AID FUND,LEONIE CAPLAN,1100730:145832237,"-29,430.00",Legal Aid Payment Civil Representation,
MINISTRY OF JUSTICE,LEGAL AID AGENCY,30/11/2016,Lower Crime,LEGAL AID FUND,LESLIE FRANKS SOLICITORS,1108453:145912428,"87,895.00",Legal Aid Payment Lower Crime,
MINISTRY OF JUSTICE,LEGAL AID AGENCY,02/11/2016,Lower Crime,LEGAL AID FUND,LESLIE FRANKS SOLICITORS,1089774:145676624,"81,666.00",Legal Aid Payment Lower Crime,
MINISTRY OF JUSTICE,LEGAL AID AGENCY,02/11/2016,Legal Help,LEGAL AID FUND,LESTER MORRILL INC DAVIES GORE LOMAX,1088382:145675143,"28,119.00",Legal Aid Payment Legal Help,
MINISTRY OF JUSTICE,LEGAL AID AGENCY,02/11/2016,Lower Crime,LEGAL AID FUND,LEVY & CO SOLICITORS LLP,1086319:145675890,"42,100.00",Legal Aid Payment Lower Crime,
MINISTRY OF JUSTICE,LEGAL AID AGENCY,30/11/2016,Lower Crime,LEGAL AID FUND,LEVY & CO SOLICITORS LLP,1108326:145911700,"42,100.00",Legal Aid Payment Lower Crime,
MINISTRY OF JUSTICE,LEGAL AID AGENCY,16/11/2016,Higher Crime,LEGAL AID FUND,LEWIS NEDAS & CO,1097203:145752677,"89,975.11",Legal Aid Payment Higher Crime,
MINISTRY OF JUSTICE,LEGAL AID AGENCY,02/11/2016,Lower Crime,LEGAL AID FUND,LEWIS NEDAS & CO,1086901:145675980,"35,800.00",Legal Aid Payment Lower Crime,
MINISTRY OF JUSTICE,LEGAL AID AGENCY,30/11/2016,Lower Crime,LEGAL AID FUND,LEWIS NEDAS & CO,1106673:145911789,"35,800.00",Legal Aid Payment Lower Crime,
MINISTRY OF JUSTICE,LEGAL AID AGENCY,30/11/2016,Higher Crime,LEGAL AID FUND,LHD SOLICITORS LTD,1108398:145913492,"34,007.02",Legal Aid Payment Higher Crime,
MINISTRY OF JUSTICE,LEGAL AID AGENCY,30/11/2016,Lower Crime,LEGAL AID FUND,LHD SOLICITORS LTD,1108398:145911932,"30,000.00",Legal Aid Payment Lower Crime,
MINISTRY OF JUSTICE,LEGAL AID AGENCY,30/11/2016,Higher Crime,LEGAL AID FUND,LHS SOLICITORS LLP,1108212:145884584,"81,347.36",Legal Aid Payment Higher Crime,
MINISTRY OF JUSTICE,LEGAL AID AGENCY,30/11/2016,Higher Crime,LEGAL AID FUND,LIBERTY LAW SOLICITORS LTD,1105764:145884533,"96,480.82",Legal Aid Payment Higher Crime,
MINISTRY OF JUSTICE,LEGAL AID AGENCY,16/11/2016,Civil Representation,LEGAL AID FUND,LISA J THOMAS,1097552:145759741,"39,873.60",Legal Aid Payment Civil Representation,
MINISTRY OF JUSTICE,LEGAL AID AGENCY,16/11/2016,Civil Representation,LEGAL AID FUND,LISA J THOMAS,1097552:145775994,"-29,905.20",Legal Aid Payment Civil Representation,
MINISTRY OF JUSTICE,LEGAL AID AGENCY,30/11/2016,Legal Help,LEGAL AID FUND,LISA MARIE MCNULTY SOLICITOR,1108753:145911070,"28,625.00",Legal Aid Payment Legal Help,
MINISTRY OF JUSTICE,LEGAL AID AGENCY,02/11/2016,Legal Help,LEGAL AID FUND,LISA MARIE MCNULTY SOLICITOR,1089981:145675265,"28,185.00",Legal Aid Payment Legal Help,
MINISTRY OF JUSTICE,LEGAL AID AGENCY,16/11/2016,Civil Representation,LEGAL AID FUND,LIVINGSTONS SOLICITORS LTD,1099369:145748376,"64,791.86",Legal Aid Payment Civil Representation,
MINISTRY OF JUSTICE,LEGAL AID AGENCY,30/11/2016,Lower Crime,LEGAL AID FUND,LLM SOLICITORS (LONDON) LTD,1108221:145912973,"39,829.00",Legal Aid Payment Lower Crime,
MINISTRY OF JUSTICE,LEGAL AID AGENCY,02/11/2016,Lower Crime,LEGAL AID FUND,LLM SOLICITORS (LONDON) LTD,1089642:145677173,"37,082.00",Legal Aid Payment Lower Crime,
MINISTRY OF JUSTICE,LEGAL AID AGENCY,30/11/2016,Lower Crime,LEGAL AID FUND,LLOYD & ROWE,1106608:145911638,"43,000.00",Legal Aid Payment Lower Crime,
MINISTRY OF JUSTICE,LEGAL AID AGENCY,02/11/2016,Lower Crime,LEGAL AID FUND,LLOYD & ROWE,1086915:145675825,"30,600.00",Legal Aid Payment Lower Crime,
MINISTRY OF JUSTICE,LEGAL AID AGENCY,23/11/2016,Higher Crime,LEGAL AID FUND,LLOYDS PR SOLICITORS,1101161:145830090,"81,347.36",Legal Aid Payment Higher Crime,
MINISTRY OF JUSTICE,LEGAL AID AGENCY,02/11/2016,Higher Crime,LEGAL AID FUND,LLOYDS PR SOLICITORS,1088008:145639130,"57,259.21",Legal Aid Payment Higher Crime,
MINISTRY OF JUSTICE,LEGAL AID AGENCY,30/11/2016,Lower Crime,LEGAL AID FUND,LLOYDS PR SOLICITORS,1108282:145912306,"28,901.00",Legal Aid Payment Lower Crime,
MINISTRY OF JUSTICE,LEGAL AID AGENCY,16/11/2016,Civil Representation,LEGAL AID FUND,LORNA G MEYER QC,1098204:145759671,"32,822.28",Legal Aid Payment Civil Representation,
MINISTRY OF JUSTICE,LEGAL AID AGENCY,02/11/2016,Lower Crime,LEGAL AID FUND,LUMB & MACGILL,1089915:145676096,"35,000.00",Legal Aid Payment Lower Crime,
MINISTRY OF JUSTICE,LEGAL AID AGENCY,30/11/2016,Lower Crime,LEGAL AID FUND,LUMB & MACGILL,1108480:145911903,"35,000.00",Legal Aid Payment Lower Crime,
MINISTRY OF JUSTICE,LEGAL AID AGENCY,02/11/2016,Legal Help,LEGAL AID FUND,LUQMANI THOMPSON & PARTNERS,1088191:145675166,"39,930.00",Legal Aid Payment Legal Help,
MINISTRY OF JUSTICE,LEGAL AID AGENCY,30/11/2016,Legal Help,LEGAL AID FUND,LUQMANI THOMPSON & PARTNERS,1108654:145910971,"38,743.00",Legal Aid Payment Legal Help,
MINISTRY OF JUSTICE,LEGAL AID AGENCY,09/11/2016,Higher Crime,LEGAL AID FUND,M & M SOLICITORS,1092072:145701408,"81,347.36",Legal Aid Payment Higher Crime,
MINISTRY OF JUSTICE,LEGAL AID AGENCY,30/11/2016,Lower Crime,LEGAL AID FUND,M B LAW LTD,1105766:145912382,"33,796.00",Legal Aid Payment Lower Crime,
MINISTRY OF JUSTICE,LEGAL AID AGENCY,02/11/2016,Higher Crime,LEGAL AID FUND,M B LAW LTD,1089823:145678401,"32,466.47",Legal Aid Payment Higher Crime,
MINISTRY OF JUSTICE,LEGAL AID AGENCY,30/11/2016,Legal Help,LEGAL AID FUND,M H LEGAL,1105869:145911141,"30,856.00",Legal Aid Payment Legal Help,
MINISTRY OF JUSTICE,LEGAL AID AGENCY,02/11/2016,Lower Crime,LEGAL AID FUND,M K LAW SOLICITORS LTD,1086255:145677121,"79,383.00",Legal Aid Payment Lower Crime,
MINISTRY OF JUSTICE,LEGAL AID AGENCY,30/11/2016,Lower Crime,LEGAL AID FUND,M K LAW SOLICITORS LTD,1108266:145912927,"61,812.00",Legal Aid Payment Lower Crime,
MINISTRY OF JUSTICE,LEGAL AID AGENCY,09/11/2016,Higher Crime,LEGAL AID FUND,M.H.SOLICITORS,1094234:145690380,"59,109.24",Legal Aid Payment Higher Crime,
MINISTRY OF JUSTICE,LEGAL AID AGENCY,02/11/2016,Higher Crime,LEGAL AID FUND,MANDLA BHOMRA & CO,1086868:145648031,"44,947.68",Legal Aid Payment Higher Crime,
MINISTRY OF JUSTICE,LEGAL AID AGENCY,09/11/2016,Higher Crime,LEGAL AID FUND,MANN & CO SOLICITORS,1094394:145691256,"81,997.52",Legal Aid Payment Higher Crime,
MINISTRY OF JUSTICE,LEGAL AID AGENCY,02/11/2016,Lower Crime,LEGAL AID FUND,MANN & CO SOLICITORS,1086536:145676286,"27,600.00",Legal Aid Payment Lower Crime,
MINISTRY OF JUSTICE,LEGAL AID AGENCY,30/11/2016,Lower Crime,LEGAL AID FUND,MANN & CO SOLICITORS,1106095:145912091,"27,600.00",Legal Aid Payment Lower Crime,
MINISTRY OF JUSTICE,LEGAL AID AGENCY,09/11/2016,Higher Crime,LEGAL AID FUND,MARIE SPENWYN,1093558:145719584,"42,597.84",Legal Aid Payment Higher Crime,
MINISTRY OF JUSTICE,LEGAL AID AGENCY,23/11/2016,Higher Crime,LEGAL AID FUND,MARTIN J TAYLOR,1102642:145810895,"33,503.27",Legal Aid Payment Higher Crime,
MINISTRY OF JUSTICE,LEGAL AID AGENCY,30/11/2016,Lower Crime,LEGAL AID FUND,MARTIN MURRAY & ASSOCIATES,1106742:145912380,"80,067.00",Legal Aid Payment Lower Crime,
MINISTRY OF JUSTICE,LEGAL AID AGENCY,02/11/2016,Lower Crime,LEGAL AID FUND,MARTIN MURRAY & ASSOCIATES,1088646:145676575,"72,296.00",Legal Aid Payment Lower Crime,
MINISTRY OF JUSTICE,LEGAL AID AGENCY,30/11/2016,Lower Crime,LEGAL AID FUND,MARTIN MURRAY & ASSOCIATES,1106741:145912719,"54,519.00",Legal Aid Payment Lower Crime,
MINISTRY OF JUSTICE,LEGAL AID AGENCY,02/11/2016,Lower Crime,LEGAL AID FUND,MARTIN MURRAY & ASSOCIATES,1088645:145676907,"48,066.00",Legal Aid Payment Lower Crime,
MINISTRY OF JUSTICE,LEGAL AID AGENCY,23/11/2016,Higher Crime,LEGAL AID FUND,MARTIN MURRAY & ASSOCIATES,1101752:145856893,"33,861.49",Legal Aid Payment Higher Crime,
MINISTRY OF JUSTICE,LEGAL AID AGENCY,02/11/2016,Lower Crime,LEGAL AID FUND,MARTYN HEWETT,1088661:145676195,"33,900.00",Legal Aid Payment Lower Crime,
MINISTRY OF JUSTICE,LEGAL AID AGENCY,30/11/2016,Lower Crime,LEGAL AID FUND,MARTYN HEWETT,1106767:145912002,"33,900.00",Legal Aid Payment Lower Crime,
MINISTRY OF JUSTICE,LEGAL AID AGENCY,30/11/2016,Higher Crime,LEGAL AID FUND,MARTYN PROWEL LTD,1106550:145913400,"29,283.30",Legal Aid Payment Higher Crime,
MINISTRY OF JUSTICE,LEGAL AID AGENCY,02/11/2016,Higher Crime,LEGAL AID FUND,MARY MONSON SOLICITORS,1089661:145677749,"28,229.11",Legal Aid Payment Higher Crime,
MINISTRY OF JUSTICE,LEGAL AID AGENCY,09/11/2016,Higher Crime,LEGAL AID FUND,MATTHEW P BUTT,1094043:145701165,"35,207.04",Legal Aid Payment Higher Crime,
MINISTRY OF JUSTICE,LEGAL AID AGENCY,02/11/2016,Lower Crime,LEGAL AID FUND,MCGANNS LAW LTD,1088088:145676471,"80,678.00",Legal Aid Payment Lower Crime,
MINISTRY OF JUSTICE,LEGAL AID AGENCY,30/11/2016,Lower Crime,LEGAL AID FUND,MCGANNS LAW LTD,1105907:145912275,"71,498.00",Legal Aid Payment Lower Crime,
MINISTRY OF JUSTICE,LEGAL AID AGENCY,02/11/2016,Lower Crime,LEGAL AID FUND,MCGRATH & CO SOLICITORS,1086464:145676300,"30,000.00",Legal Aid Payment Lower Crime,
MINISTRY OF JUSTICE,LEGAL AID AGENCY,30/11/2016,Lower Crime,LEGAL AID FUND,MCGRATH & CO SOLICITORS,1108540:145912105,"30,000.00",Legal Aid Payment Lower Crime,
MINISTRY OF JUSTICE,LEGAL AID AGENCY,02/11/2016,Lower Crime,LEGAL AID FUND,MCMILLAN WILLIAMS SOLICITORS LTD,1090261:145675948,"62,200.00",Legal Aid Payment Lower Crime,
MINISTRY OF JUSTICE,LEGAL AID AGENCY,30/11/2016,Lower Crime,LEGAL AID FUND,MCMILLAN WILLIAMS SOLICITORS LTD,1106513:145911759,"62,200.00",Legal Aid Payment Lower Crime,
MINISTRY OF JUSTICE,LEGAL AID AGENCY,30/11/2016,Higher Crime,LEGAL AID FUND,MCMILLAN WILLIAMS SOLICITORS LTD,1106513:145913437,"52,612.54",Legal Aid Payment Higher Crime,
MINISTRY OF JUSTICE,LEGAL AID AGENCY,23/11/2016,Higher Crime,LEGAL AID FUND,MESSRS WATERFORDS SOLICITORS,1101719:145810629,"43,427.94",Legal Aid Payment Higher Crime,
MINISTRY OF JUSTICE,LEGAL AID AGENCY,30/11/2016,Lower Crime,LEGAL AID FUND,METCALFE COPEMAN & PETTEFAR,1106278:145911715,"38,700.00",Legal Aid Payment Lower Crime,
MINISTRY OF JUSTICE,LEGAL AID AGENCY,02/11/2016,Lower Crime,LEGAL AID FUND,MIAN & CO SOLICITORS,1088254:145676985,"26,792.00",Legal Aid Payment Lower Crime,
MINISTRY OF JUSTICE,LEGAL AID AGENCY,02/11/2016,Civil Representation,LEGAL AID FUND,MICHAEL BATT,1085459:145404183,"98,679.60",Legal Aid Payment Civil Representation,
MINISTRY OF JUSTICE,LEGAL AID AGENCY,02/11/2016,Civil Representation,LEGAL AID FUND,MICHAEL BATT,1085459:145441817,"-35,315.50",Legal Aid Payment Civil Representation,
MINISTRY OF JUSTICE,LEGAL AID AGENCY,02/11/2016,Civil Representation,LEGAL AID FUND,MICHAEL BATT,1085459:145441781,"-47,679.14",Legal Aid Payment Civil Representation,
MINISTRY OF JUSTICE,LEGAL AID AGENCY,16/11/2016,Higher Crime,LEGAL AID FUND,MICHAEL F R HOLLAND QC,1096402:145801895,"44,988.17",Legal Aid Payment Higher Crime,
MINISTRY OF JUSTICE,LEGAL AID AGENCY,02/11/2016,Lower Crime,LEGAL AID FUND,MICHAEL PURDON,1090168:145676699,"41,677.00",Legal Aid Payment Lower Crime,
MINISTRY OF JUSTICE,LEGAL AID AGENCY,30/11/2016,Lower Crime,LEGAL AID FUND,MICHAEL PURDON,1108959:145912509,"27,392.00",Legal Aid Payment Lower Crime,
MINISTRY OF JUSTICE,LEGAL AID AGENCY,30/11/2016,Higher Crime,LEGAL AID FUND,MIDDLEWEEKS LEGAL LTD,1106572:145914039,"31,021.67",Legal Aid Payment Higher Crime,
MINISTRY OF JUSTICE,LEGAL AID AGENCY,02/11/2016,Legal Help,LEGAL AID FUND,MIGRANT LEGAL PROJECT,1088822:145675694,"30,966.00",Legal Aid Payment Legal Help,
MINISTRY OF JUSTICE,LEGAL AID AGENCY,30/11/2016,Legal Help,LEGAL AID FUND,MIGRANT LEGAL PROJECT,1107003:145911498,"28,180.00",Legal Aid Payment Legal Help,
MINISTRY OF JUSTICE,LEGAL AID AGENCY,02/11/2016,Legal Help,LEGAL AID FUND,MIGRANT LEGAL PROJECT,1087273:145675595,"25,047.00",Legal Aid Payment Legal Help,
MINISTRY OF JUSTICE,LEGAL AID AGENCY,23/11/2016,Civil Representation,LEGAL AID FUND,MILLICHIPS,1103857:145862367,"55,675.31",Legal Aid Payment Civil Representation,
MINISTRY OF JUSTICE,LEGAL AID AGENCY,15/11/2016,Civil Representation,LEGAL AID FUND,MINTONS,1095081:8236800,"30,933.08",Legal Aid Payment Civil Representation,
MINISTRY OF JUSTICE,LEGAL AID AGENCY,25/11/2016,Higher Crime,LEGAL AID FUND,MOHABIRS SOLICITORS,1104140:143110004,"28,445.46",Legal Aid Payment Higher Crime,
MINISTRY OF JUSTICE,LEGAL AID AGENCY,09/11/2016,Higher Crime,LEGAL AID FUND,MOHAMMED HUSSAIN SOLICITORS,1092050:145691596,"30,741.79",Legal Aid Payment Higher Crime,
MINISTRY OF JUSTICE,LEGAL AID AGENCY,23/11/2016,Higher Crime,LEGAL AID FUND,MORGAN BROWN & CO,1101146:145856043,"38,115.27",Legal Aid Payment Higher Crime,
MINISTRY OF JUSTICE,LEGAL AID AGENCY,02/11/2016,Lower Crime,LEGAL AID FUND,MORGAN CULLEN & BALL LTD,1089005:145677235,"30,768.00",Legal Aid Payment Lower Crime,
MINISTRY OF JUSTICE,LEGAL AID AGENCY,16/11/2016,Higher Crime,LEGAL AID FUND,MORGAN CULLEN & BALL LTD,1097692:145771688,"26,230.39",Legal Aid Payment Higher Crime,
MINISTRY OF JUSTICE,LEGAL AID AGENCY,09/11/2016,Higher Crime,LEGAL AID FUND,MORRISON SPOWART LTD,1094354:145691715,"25,353.66",Legal Aid Payment Higher Crime,
MINISTRY OF JUSTICE,LEGAL AID AGENCY,30/11/2016,Lower Crime,LEGAL AID FUND,MORTONS SOLICITORS LTD,1109046:145912664,"29,507.00",Legal Aid Payment Lower Crime,
MINISTRY OF JUSTICE,LEGAL AID AGENCY,09/11/2016,Higher Crime,LEGAL AID FUND,MPR SOLICITORS LLP,1094447:145691344,"89,975.11",Legal Aid Payment Higher Crime,
MINISTRY OF JUSTICE,LEGAL AID AGENCY,09/11/2016,Civil Representation,LEGAL AID FUND,MSB LAW LLP,1092476:145650711,"29,181.60",Legal Aid Payment Civil Representation,
MINISTRY OF JUSTICE,LEGAL AID AGENCY,23/11/2016,Higher Crime,LEGAL AID FUND,MTC & CO SOLICITORS,1101137:145819748,"35,784.43",Legal Aid Payment Higher Crime,
MINISTRY OF JUSTICE,LEGAL AID AGENCY,02/11/2016,Legal Help,LEGAL AID FUND,MTG SOLICITORS,1089868:145674755,"32,000.00",Legal Aid Payment Legal Help,
MINISTRY OF JUSTICE,LEGAL AID AGENCY,30/11/2016,Legal Help,LEGAL AID FUND,MTG SOLICITORS,1106010:145910560,"32,000.00",Legal Aid Payment Legal Help,
MINISTRY OF JUSTICE,LEGAL AID AGENCY,02/11/2016,Lower Crime,LEGAL AID FUND,MURRAY BRANKIN,1085623:145676350,"30,000.00",Legal Aid Payment Lower Crime,
MINISTRY OF JUSTICE,LEGAL AID AGENCY,30/11/2016,Lower Crime,LEGAL AID FUND,MURRAY BRANKIN,1107317:145912153,"30,000.00",Legal Aid Payment Lower Crime,
MINISTRY OF JUSTICE,LEGAL AID AGENCY,09/11/2016,Higher Crime,LEGAL AID FUND,MURRAYS PARTNERSHIP,1094664:145701595,"40,464.48",Legal Aid Payment Higher Crime,
MINISTRY OF JUSTICE,LEGAL AID AGENCY,02/11/2016,Lower Crime,LEGAL AID FUND,MURRAYS PARTNERSHIP,1088432:145676636,"28,401.00",Legal Aid Payment Lower Crime,
MINISTRY OF JUSTICE,LEGAL AID AGENCY,09/11/2016,Higher Crime,LEGAL AID FUND,MURRIA SOLICITORS LTD,1094306:145691363,"53,436.95",Legal Aid Payment Higher Crime,
MINISTRY OF JUSTICE,LEGAL AID AGENCY,09/11/2016,Higher Crime,LEGAL AID FUND,MUSA PATELS SOLICITORS,1092443:145702074,"60,995.31",Legal Aid Payment Higher Crime,
MINISTRY OF JUSTICE,LEGAL AID AGENCY,30/11/2016,Legal Help,LEGAL AID FUND,NATIONAL COUNCIL FOR CIVIL LIBERTIES,1105987:145890540,"133,482.00",Legal Aid Payment Legal Help,
MINISTRY OF JUSTICE,LEGAL AID AGENCY,02/11/2016,Lower Crime,LEGAL AID FUND,NEEDHAM POULIER LTD,1088189:145676651,"25,719.00",Legal Aid Payment Lower Crime,
MINISTRY OF JUSTICE,LEGAL AID AGENCY,30/11/2016,Lower Crime,LEGAL AID FUND,NEEDHAM POULIER LTD,1108652:145912457,"25,712.00",Legal Aid Payment Lower Crime,
MINISTRY OF JUSTICE,LEGAL AID AGENCY,02/11/2016,Lower Crime,LEGAL AID FUND,NELSON GUEST & PARTNERS,1088655:145675955,"26,900.00",Legal Aid Payment Lower Crime,
MINISTRY OF JUSTICE,LEGAL AID AGENCY,30/11/2016,Lower Crime,LEGAL AID FUND,NELSON GUEST & PARTNERS,1106749:145911766,"26,900.00",Legal Aid Payment Lower Crime,
MINISTRY OF JUSTICE,LEGAL AID AGENCY,02/11/2016,Higher Crime,LEGAL AID FUND,NEWTON LAW PRACTICE,1089788:145678236,"52,035.29",Legal Aid Payment Higher Crime,
MINISTRY OF JUSTICE,LEGAL AID AGENCY,16/11/2016,Higher Crime,LEGAL AID FUND,NICHOLAS AND PARTNERS,1099354:145801320,"25,716.54",Legal Aid Payment Higher Crime,
MINISTRY OF JUSTICE,LEGAL AID AGENCY,16/11/2016,Higher Crime,LEGAL AID FUND,NICHOLAS DE LA POER,1095739:145801301,"49,503.00",Legal Aid Payment Higher Crime,
MINISTRY OF JUSTICE,LEGAL AID AGENCY,30/11/2016,Higher Crime,LEGAL AID FUND,NIGEL J POWER QC,1107625:145884149,"37,221.64",Legal Aid Payment Higher Crime,
MINISTRY OF JUSTICE,LEGAL AID AGENCY,23/11/2016,Higher Crime,LEGAL AID FUND,NIGEL R W LAMBERT,1102637:145811946,"44,154.29",Legal Aid Payment Higher Crime,
MINISTRY OF JUSTICE,LEGAL AID AGENCY,30/11/2016,Lower Crime,LEGAL AID FUND,NIGEL WELLER & CO,1106303:145921274,"45,000.00",Legal Aid Payment Lower Crime,
MINISTRY OF JUSTICE,LEGAL AID AGENCY,14/11/2016,Lower Crime,LEGAL AID FUND,NILE ARNALL,1095077:144270337,"-25,714.38",Legal Aid Payment Lower Crime,
MINISTRY OF JUSTICE,LEGAL AID AGENCY,30/11/2016,Lower Crime,LEGAL AID FUND,NOBLE SOLICITORS,1108347:145912312,"73,126.00",Legal Aid Payment Lower Crime,
MINISTRY OF JUSTICE,LEGAL AID AGENCY,16/11/2016,Higher Crime,LEGAL AID FUND,NOBLE SOLICITORS,1096831:145801432,"65,378.40",Legal Aid Payment Higher Crime,
MINISTRY OF JUSTICE,LEGAL AID AGENCY,02/11/2016,Lower Crime,LEGAL AID FUND,NOBLE SOLICITORS,1087991:145676506,"46,905.00",Legal Aid Payment Lower Crime,
MINISTRY OF JUSTICE,LEGAL AID AGENCY,23/11/2016,Higher Crime,LEGAL AID FUND,NOBLE SOLICITORS,1103512:145857112,"34,442.05",Legal Aid Payment Higher Crime,
MINISTRY OF JUSTICE,LEGAL AID AGENCY,02/11/2016,Lower Crime,LEGAL AID FUND,NOBLE SOLICITORS,1088246:145676503,"33,701.00",Legal Aid Payment Lower Crime,
MINISTRY OF JUSTICE,LEGAL AID AGENCY,30/11/2016,Lower Crime,LEGAL AID FUND,NOBLE SOLICITORS,1108270:145912869,"32,002.00",Legal Aid Payment Lower Crime,
MINISTRY OF JUSTICE,LEGAL AID AGENCY,02/11/2016,Lower Crime,LEGAL AID FUND,NOBLE SOLICITORS,1086258:145677059,"28,153.00",Legal Aid Payment Lower Crime,
MINISTRY OF JUSTICE,LEGAL AID AGENCY,30/11/2016,Lower Crime,LEGAL AID FUND,NOBLE SOLICITORS,1108715:145912309,"26,453.00",Legal Aid Payment Lower Crime,
MINISTRY OF JUSTICE,LEGAL AID AGENCY,02/11/2016,Lower Crime,LEGAL AID FUND,NUMBER ONE LAW LLP,1087960:145677033,"38,945.00",Legal Aid Payment Lower Crime,
MINISTRY OF JUSTICE,LEGAL AID AGENCY,30/11/2016,Lower Crime,LEGAL AID FUND,NUMBER ONE LAW LLP,1105699:145912844,"31,258.00",Legal Aid Payment Lower Crime,
MINISTRY OF JUSTICE,LEGAL AID AGENCY,02/11/2016,Lower Crime,LEGAL AID FUND,OBW PERERA LTD,1086427:145675901,"29,000.00",Legal Aid Payment Lower Crime,
MINISTRY OF JUSTICE,LEGAL AID AGENCY,30/11/2016,Lower Crime,LEGAL AID FUND,OBW PERERA LTD,1105884:145911711,"29,000.00",Legal Aid Payment Lower Crime,
MINISTRY OF JUSTICE,LEGAL AID AGENCY,02/11/2016,Legal Help,LEGAL AID FUND,O'DONNELLS SOLICITORS,1086508:145675264,"29,507.00",Legal Aid Payment Legal Help,
MINISTRY OF JUSTICE,LEGAL AID AGENCY,30/11/2016,Legal Help,LEGAL AID FUND,O'DONNELLS SOLICITORS,1108615:145911069,"26,751.00",Legal Aid Payment Legal Help,
MINISTRY OF JUSTICE,LEGAL AID AGENCY,09/11/2016,Higher Crime,LEGAL AID FUND,O'GARRA'S SOLICITORS,1092259:145701174,"35,731.74",Legal Aid Payment Higher Crime,
MINISTRY OF JUSTICE,LEGAL AID AGENCY,02/11/2016,Lower Crime,LEGAL AID FUND,O'GARRA'S SOLICITORS,1086548:145676113,"28,000.00",Legal Aid Payment Lower Crime,
MINISTRY OF JUSTICE,LEGAL AID AGENCY,09/11/2016,Higher Crime,LEGAL AID FUND,O'KEEFFE SOLICITORS,1092699:145691362,"91,713.91",Legal Aid Payment Higher Crime,
MINISTRY OF JUSTICE,LEGAL AID AGENCY,30/11/2016,Higher Crime,LEGAL AID FUND,O'KEEFFE SOLICITORS,1106761:145884525,"62,452.54",Legal Aid Payment Higher Crime,
MINISTRY OF JUSTICE,LEGAL AID AGENCY,30/11/2016,Lower Crime,LEGAL AID FUND,O'KEEFFE SOLICITORS,1106761:145912430,"41,684.00",Legal Aid Payment Lower Crime,
MINISTRY OF JUSTICE,LEGAL AID AGENCY,16/11/2016,Higher Crime,LEGAL AID FUND,O'KEEFFE SOLICITORS,1097299:145752980,"33,254.47",Legal Aid Payment Higher Crime,
MINISTRY OF JUSTICE,LEGAL AID AGENCY,23/11/2016,Higher Crime,LEGAL AID FUND,O'KEEFFE SOLICITORS,1101741:145856720,"26,820.01",Legal Aid Payment Higher Crime,
MINISTRY OF JUSTICE,LEGAL AID AGENCY,16/11/2016,Higher Crime,LEGAL AID FUND,O'KEEFFE SOLICITORS,1097299:145752701,"25,432.43",Legal Aid Payment Higher Crime,
MINISTRY OF JUSTICE,LEGAL AID AGENCY,02/11/2016,Higher Crime,LEGAL AID FUND,OLD BAILEY SOLICITORS LTD,1087250:145648451,"47,691.89",Legal Aid Payment Higher Crime,
MINISTRY OF JUSTICE,LEGAL AID AGENCY,02/11/2016,Lower Crime,LEGAL AID FUND,OLIVER D'SA SOLICITORS,1086867:145676458,"45,263.00",Legal Aid Payment Lower Crime,
MINISTRY OF JUSTICE,LEGAL AID AGENCY,30/11/2016,Lower Crime,LEGAL AID FUND,OLIVER D'SA SOLICITORS,1109108:145912262,"37,005.00",Legal Aid Payment Lower Crime,
MINISTRY OF JUSTICE,LEGAL AID AGENCY,02/11/2016,Lower Crime,LEGAL AID FUND,OLLIERS SOLICITORS LTD,1086551:145676814,"39,874.00",Legal Aid Payment Lower Crime,
MINISTRY OF JUSTICE,LEGAL AID AGENCY,30/11/2016,Lower Crime,LEGAL AID FUND,OLLIERS SOLICITORS LTD,1106028:145912625,"30,831.00",Legal Aid Payment Lower Crime,
MINISTRY OF JUSTICE,LEGAL AID AGENCY,02/11/2016,Higher Crime,LEGAL AID FUND,OLLIERS SOLICITORS LTD,1086551:145628881,"29,447.85",Legal Aid Payment Higher Crime,
MINISTRY OF JUSTICE,LEGAL AID AGENCY,30/11/2016,Lower Crime,LEGAL AID FUND,ONE LEGAL,1106806:145913143,"41,803.00",Legal Aid Payment Lower Crime,
MINISTRY OF JUSTICE,LEGAL AID AGENCY,02/11/2016,Lower Crime,LEGAL AID FUND,"O'NEILL, WRIGHT & NASH",1086285:145677046,"36,176.00",Legal Aid Payment Lower Crime,
MINISTRY OF JUSTICE,LEGAL AID AGENCY,30/11/2016,Lower Crime,LEGAL AID FUND,"O'NEILL, WRIGHT & NASH",1108201:145912856,"34,942.00",Legal Aid Payment Lower Crime,
MINISTRY OF JUSTICE,LEGAL AID AGENCY,02/11/2016,Lower Crime,LEGAL AID FUND,ONUMA & CO LLP,1088714:145677338,"30,338.00",Legal Aid Payment Lower Crime,
MINISTRY OF JUSTICE,LEGAL AID AGENCY,30/11/2016,Lower Crime,LEGAL AID FUND,ONUMA & CO LLP,1104309:145913137,"26,657.00",Legal Aid Payment Lower Crime,
MINISTRY OF JUSTICE,LEGAL AID AGENCY,30/11/2016,Lower Crime,LEGAL AID FUND,ORACLE SOLICITORS,1108594:145912437,"44,652.00",Legal Aid Payment Lower Crime,
MINISTRY OF JUSTICE,LEGAL AID AGENCY,02/11/2016,Lower Crime,LEGAL AID FUND,ORACLE SOLICITORS,1086488:145676632,"42,820.00",Legal Aid Payment Lower Crime,
MINISTRY OF JUSTICE,LEGAL AID AGENCY,02/11/2016,Legal Help,LEGAL AID FUND,OSBORNES SOLICITORS LLP,1090310:145674746,"33,200.00",Legal Aid Payment Legal Help,
MINISTRY OF JUSTICE,LEGAL AID AGENCY,30/11/2016,Legal Help,LEGAL AID FUND,OSBORNES SOLICITORS LLP,1109257:145910551,"33,200.00",Legal Aid Payment Legal Help,
MINISTRY OF JUSTICE,LEGAL AID AGENCY,02/11/2016,Lower Crime,LEGAL AID FUND,OSLERS SOLICITORS,1087987:145675896,"29,700.00",Legal Aid Payment Lower Crime,
MINISTRY OF JUSTICE,LEGAL AID AGENCY,02/11/2016,Legal Help,LEGAL AID FUND,OTTEN PENNA LTD,1089974:145674793,"29,000.00",Legal Aid Payment Legal Help,
MINISTRY OF JUSTICE,LEGAL AID AGENCY,30/11/2016,Legal Help,LEGAL AID FUND,OTTEN PENNA LTD,1108745:145910595,"29,000.00",Legal Aid Payment Legal Help,
MINISTRY OF JUSTICE,LEGAL AID AGENCY,30/11/2016,Lower Crime,LEGAL AID FUND,OWEN NASH & CO,1109194:145912116,"41,000.00",Legal Aid Payment Lower Crime,
MINISTRY OF JUSTICE,LEGAL AID AGENCY,02/11/2016,Lower Crime,LEGAL AID FUND,OWEN NASH & CO,1088537:145676311,"40,000.00",Legal Aid Payment Lower Crime,
MINISTRY OF JUSTICE,LEGAL AID AGENCY,02/11/2016,Lower Crime,LEGAL AID FUND,PALMERS CRIMINAL DEFENCE SOLICITORS,1089771:145676196,"28,100.00",Legal Aid Payment Lower Crime,
MINISTRY OF JUSTICE,LEGAL AID AGENCY,30/11/2016,Lower Crime,LEGAL AID FUND,PALMERS CRIMINAL DEFENCE SOLICITORS,1108450:145912003,"28,100.00",Legal Aid Payment Lower Crime,
MINISTRY OF JUSTICE,LEGAL AID AGENCY,16/11/2016,Civil Representation,LEGAL AID FUND,PAMELA SCRIVEN QC,1097631:145794398,"66,564.00",Legal Aid Payment Civil Representation,
MINISTRY OF JUSTICE,LEGAL AID AGENCY,16/11/2016,Civil Representation,LEGAL AID FUND,PAMELA SCRIVEN QC,1097631:145794066,"47,333.24",Legal Aid Payment Civil Representation,
MINISTRY OF JUSTICE,LEGAL AID AGENCY,16/11/2016,Civil Representation,LEGAL AID FUND,PAMELA SCRIVEN QC,1097631:145794069,"-43,456.75",Legal Aid Payment Civil Representation,
MINISTRY OF JUSTICE,LEGAL AID AGENCY,16/11/2016,Civil Representation,LEGAL AID FUND,PAMELA SCRIVEN QC,1097631:145805231,"-63,792.00",Legal Aid Payment Civil Representation,
MINISTRY OF JUSTICE,LEGAL AID AGENCY,02/11/2016,Legal Help,LEGAL AID FUND,PARAGON LAW LTD,1086445:145674865,"40,000.00",Legal Aid Payment Legal Help,
MINISTRY OF JUSTICE,LEGAL AID AGENCY,30/11/2016,Legal Help,LEGAL AID FUND,PARAGON LAW LTD,1105868:145910664,"40,000.00",Legal Aid Payment Legal Help,
MINISTRY OF JUSTICE,LEGAL AID AGENCY,16/11/2016,Higher Crime,LEGAL AID FUND,PARDOES SOLICITORS LLP,1097226:145801194,"26,820.01",Legal Aid Payment Higher Crime,
MINISTRY OF JUSTICE,LEGAL AID AGENCY,16/11/2016,Higher Crime,LEGAL AID FUND,PARKER BIRD WHITELEY,1096595:145772121,"81,347.36",Legal Aid Payment Higher Crime,
MINISTRY OF JUSTICE,LEGAL AID AGENCY,02/11/2016,Lower Crime,LEGAL AID FUND,PARKER BIRD WHITELEY,1089785:145676748,"29,236.00",Legal Aid Payment Lower Crime,
MINISTRY OF JUSTICE,LEGAL AID AGENCY,30/11/2016,Lower Crime,LEGAL AID FUND,PARKER BIRD WHITELEY,1108440:145912560,"29,102.00",Legal Aid Payment Lower Crime,
MINISTRY OF JUSTICE,LEGAL AID AGENCY,02/11/2016,Civil Representation,LEGAL AID FUND,PATRICK LAWRENCE SOLICITORS,1089961:145615837,"40,617.00",Legal Aid Payment Civil Representation,
MINISTRY OF JUSTICE,LEGAL AID AGENCY,30/11/2016,Higher Crime,LEGAL AID FUND,PATTICHI HILL & CROQUES LTD,1106121:145885397,"73,247.18",Legal Aid Payment Higher Crime,
MINISTRY OF JUSTICE,LEGAL AID AGENCY,23/11/2016,Higher Crime,LEGAL AID FUND,PAUL CROWLEY & CO SOLICITORS LTD,1103454:145820096,"39,420.66",Legal Aid Payment Higher Crime,
MINISTRY OF JUSTICE,LEGAL AID AGENCY,30/11/2016,Higher Crime,LEGAL AID FUND,PAUL CROWLEY & CO SOLICITORS LTD,1108620:145914770,"27,704.39",Legal Aid Payment Higher Crime,
MINISTRY OF JUSTICE,LEGAL AID AGENCY,23/11/2016,Higher Crime,LEGAL AID FUND,PAUL M MENDELLE QC,1103064:145811979,"58,849.40",Legal Aid Payment Higher Crime,
MINISTRY OF JUSTICE,LEGAL AID AGENCY,30/11/2016,Civil Representation,LEGAL AID FUND,PAUL M STOREY QC,1104953:145906577,"54,465.90",Legal Aid Payment Civil Representation,
MINISTRY OF JUSTICE,LEGAL AID AGENCY,16/11/2016,Higher Crime,LEGAL AID FUND,PAUL MARTIN & CO,1096751:145762613,"69,732.24",Legal Aid Payment Higher Crime,
MINISTRY OF JUSTICE,LEGAL AID AGENCY,30/11/2016,Higher Crime,LEGAL AID FUND,PAUL R CLIFF,1105339:145894301,"37,201.44",Legal Aid Payment Higher Crime,
MINISTRY OF JUSTICE,LEGAL AID AGENCY,30/11/2016,Higher Crime,LEGAL AID FUND,PAYTON'S SOLICITORS,1106103:145875482,"32,909.22",Legal Aid Payment Higher Crime,
MINISTRY OF JUSTICE,LEGAL AID AGENCY,02/11/2016,Civil Representation,LEGAL AID FUND,PEARSONS,1086589:145668831,"42,268.86",Legal Aid Payment Civil Representation,
MINISTRY OF JUSTICE,LEGAL AID AGENCY,02/11/2016,Lower Crime,LEGAL AID FUND,PENFOLD & MCPHERSON,1086852:145676909,"26,523.00",Legal Aid Payment Lower Crime,
MINISTRY OF JUSTICE,LEGAL AID AGENCY,30/11/2016,Lower Crime,LEGAL AID FUND,PENFOLD & MCPHERSON,1109077:145912721,"25,021.00",Legal Aid Payment Lower Crime,
MINISTRY OF JUSTICE,LEGAL AID AGENCY,30/11/2016,Higher Crime,LEGAL AID FUND,PEPPERELLS SOLICITORS,1105670:145867233,"30,951.08",Legal Aid Payment Higher Crime,
MINISTRY OF JUSTICE,LEGAL AID AGENCY,16/11/2016,Higher Crime,LEGAL AID FUND,PETER C ROUCH QC,1095887:145761949,"38,495.89",Legal Aid Payment Higher Crime,
MINISTRY OF JUSTICE,LEGAL AID AGENCY,09/11/2016,Higher Crime,LEGAL AID FUND,PETER C ROUCH QC,1093483:145711772,"32,902.72",Legal Aid Payment Higher Crime,
MINISTRY OF JUSTICE,LEGAL AID AGENCY,30/11/2016,Higher Crime,LEGAL AID FUND,PETER D MARSHALL,1107156:145874700,"32,646.68",Legal Aid Payment Higher Crime,
MINISTRY OF JUSTICE,LEGAL AID AGENCY,02/11/2016,Legal Help,LEGAL AID FUND,PETER EDWARDS LAW LTD,1086502:145674736,"59,200.00",Legal Aid Payment Legal Help,
MINISTRY OF JUSTICE,LEGAL AID AGENCY,30/11/2016,Legal Help,LEGAL AID FUND,PETER EDWARDS LAW LTD,1108609:145910541,"59,200.00",Legal Aid Payment Legal Help,
MINISTRY OF JUSTICE,LEGAL AID AGENCY,30/11/2016,Higher Crime,LEGAL AID FUND,PETER L GUEST,1105044:145914818,"31,906.13",Legal Aid Payment Higher Crime,
MINISTRY OF JUSTICE,LEGAL AID AGENCY,30/11/2016,Higher Crime,LEGAL AID FUND,PETHERBRIDGE BASSRA SOLICITORS LTD,1108483:145885378,"64,685.34",Legal Aid Payment Higher Crime,
MINISTRY OF JUSTICE,LEGAL AID AGENCY,30/11/2016,Higher Crime,LEGAL AID FUND,PETHERBRIDGE BASSRA SOLICITORS LTD,1108483:145866214,"29,055.36",Legal Aid Payment Higher Crime,
MINISTRY OF JUSTICE,LEGAL AID AGENCY,02/11/2016,Civil Representation,LEGAL AID FUND,PHILIP A BOOTH,1087413:145650995,"27,075.60",Legal Aid Payment Civil Representation,
MINISTRY OF JUSTICE,LEGAL AID AGENCY,30/11/2016,Lower Crime,LEGAL AID FUND,PHILIP HANBY LTD T/A ANDREW JAY & CO,1106290:145912295,"30,437.00",Legal Aid Payment Lower Crime,
MINISTRY OF JUSTICE,LEGAL AID AGENCY,09/11/2016,Higher Crime,LEGAL AID FUND,PICKUP & SCOTT SOLICITORS,1094804:145701610,"58,399.76",Legal Aid Payment Higher Crime,
MINISTRY OF JUSTICE,LEGAL AID AGENCY,16/11/2016,Higher Crime,LEGAL AID FUND,PIERS G R NORSWORTHY,1095377:145752785,"26,535.59",Legal Aid Payment Higher Crime,
MINISTRY OF JUSTICE,LEGAL AID AGENCY,02/11/2016,Higher Crime,LEGAL AID FUND,PILLAI & JONES,1088681:145647351,"127,029.30",Legal Aid Payment Higher Crime,
MINISTRY OF JUSTICE,LEGAL AID AGENCY,02/11/2016,Higher Crime,LEGAL AID FUND,PILLAI & JONES,1088681:145638990,"31,021.67",Legal Aid Payment Higher Crime,
MINISTRY OF JUSTICE,LEGAL AID AGENCY,16/11/2016,Civil Representation,LEGAL AID FUND,PLATT & FISHWICK SOLICITORS,1099217:145708021,"35,823.60",Legal Aid Payment Civil Representation,
MINISTRY OF JUSTICE,LEGAL AID AGENCY,09/11/2016,Civil Representation,LEGAL AID FUND,PLATT & FISHWICK SOLICITORS,1094672:145092438,"31,372.52",Legal Aid Payment Civil Representation,
MINISTRY OF JUSTICE,LEGAL AID AGENCY,30/11/2016,Lower Crime,LEGAL AID FUND,PLUCK ANDREW & CO,1106461:145912595,"29,320.00",Legal Aid Payment Lower Crime,
MINISTRY OF JUSTICE,LEGAL AID AGENCY,09/11/2016,Higher Crime,LEGAL AID FUND,POOLE ALCOCK LLP,1094503:145700993,"35,731.74",Legal Aid Payment Higher Crime,
MINISTRY OF JUSTICE,LEGAL AID AGENCY,30/11/2016,Lower Crime,LEGAL AID FUND,POOLE ALCOCK LLP,1108836:145912616,"31,724.00",Legal Aid Payment Lower Crime,
MINISTRY OF JUSTICE,LEGAL AID AGENCY,02/11/2016,Lower Crime,LEGAL AID FUND,POOLE ALCOCK LLP,1086606:145676804,"27,875.00",Legal Aid Payment Lower Crime,
MINISTRY OF JUSTICE,LEGAL AID AGENCY,30/11/2016,Higher Crime,LEGAL AID FUND,POTTER DERBY SOLICITORS,1109127:145914411,"62,747.92",Legal Aid Payment Higher Crime,
MINISTRY OF JUSTICE,LEGAL AID AGENCY,02/11/2016,Lower Crime,LEGAL AID FUND,POTTER SHELLEY & CO,1089826:145676543,"28,785.00",Legal Aid Payment Lower Crime,
MINISTRY OF JUSTICE,LEGAL AID AGENCY,30/11/2016,Lower Crime,LEGAL AID FUND,POTTER SHELLEY & CO,1105769:145912349,"25,532.00",Legal Aid Payment Lower Crime,
MINISTRY OF JUSTICE,LEGAL AID AGENCY,02/11/2016,Lower Crime,LEGAL AID FUND,POWELL SPENCER AND PARTNERS,1088553:145675927,"42,600.00",Legal Aid Payment Lower Crime,
MINISTRY OF JUSTICE,LEGAL AID AGENCY,30/11/2016,Lower Crime,LEGAL AID FUND,POWELL SPENCER AND PARTNERS,1109221:145911739,"42,600.00",Legal Aid Payment Lower Crime,
MINISTRY OF JUSTICE,LEGAL AID AGENCY,30/11/2016,Lower Crime,LEGAL AID FUND,PURCELL PARKER LTD,1106197:145912107,"110,300.00",Legal Aid Payment Lower Crime,
MINISTRY OF JUSTICE,LEGAL AID AGENCY,02/11/2016,Lower Crime,LEGAL AID FUND,PURCELL PARKER LTD,1088252:145676302,"85,000.00",Legal Aid Payment Lower Crime,
MINISTRY OF JUSTICE,LEGAL AID AGENCY,23/11/2016,Higher Crime,LEGAL AID FUND,PUSHPANJALI GOHIL,1100440:145811178,"37,201.44",Legal Aid Payment Higher Crime,
MINISTRY OF JUSTICE,LEGAL AID AGENCY,30/11/2016,Legal Help,LEGAL AID FUND,QS JACKSON CANTER LTD,1107281:145890541,"104,166.00",Legal Aid Payment Legal Help,
MINISTRY OF JUSTICE,LEGAL AID AGENCY,02/11/2016,Legal Help,LEGAL AID FUND,QS JACKSON CANTER LTD,1089047:145675741,"97,574.00",Legal Aid Payment Legal Help,
MINISTRY OF JUSTICE,LEGAL AID AGENCY,02/11/2016,Lower Crime,LEGAL AID FUND,QS JACKSON CANTER LTD,1089047:145677237,"89,295.00",Legal Aid Payment Lower Crime,
MINISTRY OF JUSTICE,LEGAL AID AGENCY,30/11/2016,Lower Crime,LEGAL AID FUND,QS JACKSON CANTER LTD,1107281:145913036,"52,629.00",Legal Aid Payment Lower Crime,
MINISTRY OF JUSTICE,LEGAL AID AGENCY,02/11/2016,Legal Help,LEGAL AID FUND,QS JACKSON CANTER LTD,1086822:145675157,"38,419.00",Legal Aid Payment Legal Help,
MINISTRY OF JUSTICE,LEGAL AID AGENCY,30/11/2016,Legal Help,LEGAL AID FUND,QUALITY SOLICITORS CMHT,1109205:145910738,"53,474.00",Legal Aid Payment Legal Help,
MINISTRY OF JUSTICE,LEGAL AID AGENCY,02/11/2016,Legal Help,LEGAL AID FUND,QUALITY SOLICITORS CMHT,1088526:145674941,"42,322.00",Legal Aid Payment Legal Help,
MINISTRY OF JUSTICE,LEGAL AID AGENCY,30/11/2016,Lower Crime,LEGAL AID FUND,QUALITYSOLICITORS HPJV,1106536:145912195,"29,461.00",Legal Aid Payment Lower Crime,
MINISTRY OF JUSTICE,LEGAL AID AGENCY,02/11/2016,Lower Crime,LEGAL AID FUND,QUALITYSOLICITORS HPJV,1090286:145676392,"26,546.00",Legal Aid Payment Lower Crime,
MINISTRY OF JUSTICE,LEGAL AID AGENCY,02/11/2016,Lower Crime,LEGAL AID FUND,QUALITYSOLICITORS JONES ROBERTSON,1088203:145676773,"30,662.00",Legal Aid Payment Lower Crime,
MINISTRY OF JUSTICE,LEGAL AID AGENCY,30/11/2016,Lower Crime,LEGAL AID FUND,QUALITYSOLICITORS JONES ROBERTSON,1108570:145912583,"26,831.00",Legal Aid Payment Lower Crime,
MINISTRY OF JUSTICE,LEGAL AID AGENCY,09/11/2016,Higher Crime,LEGAL AID FUND,QUALITYSOLICITORS MIRZA,1092249:145691370,"74,301.85",Legal Aid Payment Higher Crime,
MINISTRY OF JUSTICE,LEGAL AID AGENCY,02/11/2016,Legal Help,LEGAL AID FUND,QUALITYSOLICITORS PUNCH ROBSON,1090127:145675293,"27,002.00",Legal Aid Payment Legal Help,
MINISTRY OF JUSTICE,LEGAL AID AGENCY,09/11/2016,Higher Crime,LEGAL AID FUND,QUINN MELVILLE,1094342:145691585,"37,296.80",Legal Aid Payment Higher Crime,
MINISTRY OF JUSTICE,LEGAL AID AGENCY,09/11/2016,Higher Crime,LEGAL AID FUND,QUINN MELVILLE,1094342:145691417,"27,531.71",Legal Aid Payment Higher Crime,
MINISTRY OF JUSTICE,LEGAL AID AGENCY,23/11/2016,Civil Representation,LEGAL AID FUND,RACHAEL A PARKHOUSE,1102291:145825109,"42,914.56",Legal Aid Payment Civil Representation,
MINISTRY OF JUSTICE,LEGAL AID AGENCY,23/11/2016,Civil Representation,LEGAL AID FUND,RACHAEL A PARKHOUSE,1102291:145851861,"-38,610.00",Legal Aid Payment Civil Representation,
MINISTRY OF JUSTICE,LEGAL AID AGENCY,09/11/2016,Civil Representation,LEGAL AID FUND,RACHAEL E BANKS,1093382:145266655,"30,607.20",Legal Aid Payment Civil Representation,
MINISTRY OF JUSTICE,LEGAL AID AGENCY,09/11/2016,Civil Representation,LEGAL AID FUND,RACHAEL E BANKS,1093382:145266667,"-34,138.80",Legal Aid Payment Civil Representation,
MINISTRY OF JUSTICE,LEGAL AID AGENCY,30/11/2016,Higher Crime,LEGAL AID FUND,RACHEL PENNINGTON,1106797:145893668,"37,160.57",Legal Aid Payment Higher Crime,
MINISTRY OF JUSTICE,LEGAL AID AGENCY,09/11/2016,Higher Crime,LEGAL AID FUND,RAHMAN RAVELLI SOLICTORS LTD,1092238:145711525,"32,655.42",Legal Aid Payment Higher Crime,
MINISTRY OF JUSTICE,LEGAL AID AGENCY,09/11/2016,Civil Representation,LEGAL AID FUND,RAMSDENS SOLICITORS LLP,1094903:3000000347560013,"52,043.30",Legal Aid Payment Civil Representation,
MINISTRY OF JUSTICE,LEGAL AID AGENCY,09/11/2016,Civil Representation,LEGAL AID FUND,RAMSDENS SOLICITORS LLP,1095039:3000000347560013,"52,043.30",Legal Aid Payment Civil Representation,
MINISTRY OF JUSTICE,LEGAL AID AGENCY,23/11/2016,Civil Representation,LEGAL AID FUND,RAMSDENS SOLICITORS LLP,1100054:145613074,"36,460.80",Legal Aid Payment Civil Representation,
MINISTRY OF JUSTICE,LEGAL AID AGENCY,09/11/2016,Civil Representation,LEGAL AID FUND,RAMSDENS SOLICITORS LLP,1094903:3000000347560013,"-52,043.30",Legal Aid Payment Civil Representation,
MINISTRY OF JUSTICE,LEGAL AID AGENCY,30/11/2016,Higher Crime,LEGAL AID FUND,REEDS SOLICITORS LTD,1104468:145884560,"97,258.75",Legal Aid Payment Higher Crime,
MINISTRY OF JUSTICE,LEGAL AID AGENCY,16/11/2016,Higher Crime,LEGAL AID FUND,REEDS SOLICITORS LTD,1095331:145800379,"69,218.44",Legal Aid Payment Higher Crime,
MINISTRY OF JUSTICE,LEGAL AID AGENCY,30/11/2016,Lower Crime,LEGAL AID FUND,REEDS SOLICITORS LTD,1106204:145912727,"67,412.00",Legal Aid Payment Lower Crime,
MINISTRY OF JUSTICE,LEGAL AID AGENCY,30/11/2016,Higher Crime,LEGAL AID FUND,REEDS SOLICITORS LTD,1106204:145866686,"59,109.24",Legal Aid Payment Higher Crime,
MINISTRY OF JUSTICE,LEGAL AID AGENCY,02/11/2016,Lower Crime,LEGAL AID FUND,REEDS SOLICITORS LTD,1088259:145676914,"56,181.00",Legal Aid Payment Lower Crime,
MINISTRY OF JUSTICE,LEGAL AID AGENCY,02/11/2016,Lower Crime,LEGAL AID FUND,REEDS SOLICITORS LTD,1087379:145677236,"48,693.00",Legal Aid Payment Lower Crime,
MINISTRY OF JUSTICE,LEGAL AID AGENCY,30/11/2016,Lower Crime,LEGAL AID FUND,REEDS SOLICITORS LTD,1104785:145913035,"47,215.00",Legal Aid Payment Lower Crime,
MINISTRY OF JUSTICE,LEGAL AID AGENCY,02/11/2016,Lower Crime,LEGAL AID FUND,REEDS SOLICITORS LTD,1085271:145677348,"44,209.00",Legal Aid Payment Lower Crime,
MINISTRY OF JUSTICE,LEGAL AID AGENCY,02/11/2016,Civil Representation,LEGAL AID FUND,REEDS SOLICITORS LTD,1087160:3000000627240006,"37,546.86",Legal Aid Payment Civil Representation,
MINISTRY OF JUSTICE,LEGAL AID AGENCY,23/11/2016,Higher Crime,LEGAL AID FUND,REEDS SOLICITORS LTD,1103525:145819350,"37,414.22",Legal Aid Payment Higher Crime,
MINISTRY OF JUSTICE,LEGAL AID AGENCY,30/11/2016,Lower Crime,LEGAL AID FUND,REEDS SOLICITORS LTD,1104468:145913071,"36,745.00",Legal Aid Payment Lower Crime,
MINISTRY OF JUSTICE,LEGAL AID AGENCY,30/11/2016,Lower Crime,LEGAL AID FUND,REEDS SOLICITORS LTD,1106846:145913146,"36,415.00",Legal Aid Payment Lower Crime,
MINISTRY OF JUSTICE,LEGAL AID AGENCY,16/11/2016,Higher Crime,LEGAL AID FUND,REEDS SOLICITORS LTD,1096839:145800444,"31,442.11",Legal Aid Payment Higher Crime,
MINISTRY OF JUSTICE,LEGAL AID AGENCY,09/11/2016,Civil Representation,LEGAL AID FUND,REEDS SOLICITORS LTD,1094480:145737222,"29,813.64",Legal Aid Payment Civil Representation,
MINISTRY OF JUSTICE,LEGAL AID AGENCY,02/11/2016,Lower Crime,LEGAL AID FUND,REEDS SOLICITORS LTD,1089723:145677078,"27,321.00",Legal Aid Payment Lower Crime,
MINISTRY OF JUSTICE,LEGAL AID AGENCY,23/11/2016,Higher Crime,LEGAL AID FUND,REEDS SOLICITORS LTD-ADVOCATE,1100062:145811583,"27,952.73",Legal Aid Payment Higher Crime,
MINISTRY OF JUSTICE,LEGAL AID AGENCY,23/11/2016,Higher Crime,LEGAL AID FUND,REEDS SOLICITORS LTD-ADVOCATE,1100062:145856745,"25,524.48",Legal Aid Payment Higher Crime,
MINISTRY OF JUSTICE,LEGAL AID AGENCY,02/11/2016,Lower Crime,LEGAL AID FUND,REEVES  & CO SOLICITORS,1086392:145676869,"37,394.00",Legal Aid Payment Lower Crime,
MINISTRY OF JUSTICE,LEGAL AID AGENCY,30/11/2016,Lower Crime,LEGAL AID FUND,REEVES  & CO SOLICITORS,1108305:145912679,"34,435.00",Legal Aid Payment Lower Crime,
MINISTRY OF JUSTICE,LEGAL AID AGENCY,02/11/2016,Lower Crime,LEGAL AID FUND,RENSHAW DERRICK & CO,1090354:145676923,"34,382.00",Legal Aid Payment Lower Crime,
MINISTRY OF JUSTICE,LEGAL AID AGENCY,30/11/2016,Lower Crime,LEGAL AID FUND,RENSHAW DERRICK & CO,1106657:145912736,"27,269.00",Legal Aid Payment Lower Crime,
MINISTRY OF JUSTICE,LEGAL AID AGENCY,09/11/2016,Civil Representation,LEGAL AID FUND,REX A HOWLING QC,1092959:3000000984860033,"54,885.60",Legal Aid Payment Civil Representation,
MINISTRY OF JUSTICE,LEGAL AID AGENCY,16/11/2016,Civil Representation,LEGAL AID FUND,REX A HOWLING QC,1097525:145793657,"27,442.80",Legal Aid Payment Civil Representation,
MINISTRY OF JUSTICE,LEGAL AID AGENCY,02/11/2016,Lower Crime,LEGAL AID FUND,RICHARD BODY & CO,1086497:145676194,"31,400.00",Legal Aid Payment Lower Crime,
MINISTRY OF JUSTICE,LEGAL AID AGENCY,30/11/2016,Lower Crime,LEGAL AID FUND,RICHARD BODY & CO,1108604:145912001,"31,400.00",Legal Aid Payment Lower Crime,
MINISTRY OF JUSTICE,LEGAL AID AGENCY,16/11/2016,Higher Crime,LEGAL AID FUND,RICHARD GRIFFITHS & CO,1096529:145771898,"81,347.36",Legal Aid Payment Higher Crime,
MINISTRY OF JUSTICE,LEGAL AID AGENCY,02/11/2016,Lower Crime,LEGAL AID FUND,RICHARD GRIFFITHS & CO,1090102:145676961,"38,278.00",Legal Aid Payment Lower Crime,
MINISTRY OF JUSTICE,LEGAL AID AGENCY,02/11/2016,Lower Crime,LEGAL AID FUND,RICHARD GRIFFITHS & CO,1090101:145676958,"31,820.00",Legal Aid Payment Lower Crime,
MINISTRY OF JUSTICE,LEGAL AID AGENCY,30/11/2016,Higher Crime,LEGAL AID FUND,RICHARD HASWELL SOLICITORS LLP,1106483:145893845,"34,471.18",Legal Aid Payment Higher Crime,
MINISTRY OF JUSTICE,LEGAL AID AGENCY,02/11/2016,Lower Crime,LEGAL AID FUND,RICHARD HASWELL SOLICITORS LLP,1088508:145676697,"25,837.00",Legal Aid Payment Lower Crime,
MINISTRY OF JUSTICE,LEGAL AID AGENCY,30/11/2016,Higher Crime,LEGAL AID FUND,RICHARD J PRATT QC,1107677:145893700,"50,669.89",Legal Aid Payment Higher Crime,
MINISTRY OF JUSTICE,LEGAL AID AGENCY,30/11/2016,Higher Crime,LEGAL AID FUND,RICHARD M LITTLER,1107504:145866059,"25,826.65",Legal Aid Payment Higher Crime,
MINISTRY OF JUSTICE,LEGAL AID AGENCY,02/11/2016,Lower Crime,LEGAL AID FUND,RICHARDSON SOLICITORS,1089993:145676207,"27,700.00",Legal Aid Payment Lower Crime,
MINISTRY OF JUSTICE,LEGAL AID AGENCY,30/11/2016,Lower Crime,LEGAL AID FUND,RICHARDSON SOLICITORS,1108670:145912013,"27,700.00",Legal Aid Payment Lower Crime,
MINISTRY OF JUSTICE,LEGAL AID AGENCY,09/11/2016,Civil Representation,LEGAL AID FUND,RIDLEY & HALL LEGAL LTD,1092098:3000000390690015,"53,001.39",Legal Aid Payment Civil Representation,
MINISTRY OF JUSTICE,LEGAL AID AGENCY,23/11/2016,Civil Representation,LEGAL AID FUND,RIDLEY & HALL LEGAL LTD,1101226:3000001305140009,"47,520.00",Legal Aid Payment Civil Representation,
MINISTRY OF JUSTICE,LEGAL AID AGENCY,02/11/2016,Lower Crime,LEGAL AID FUND,RILEY HAYES & CO,1088253:145676327,"47,000.00",Legal Aid Payment Lower Crime,
MINISTRY OF JUSTICE,LEGAL AID AGENCY,30/11/2016,Lower Crime,LEGAL AID FUND,RILEY HAYES & CO,1106198:145912131,"47,000.00",Legal Aid Payment Lower Crime,
MINISTRY OF JUSTICE,LEGAL AID AGENCY,30/11/2016,Lower Crime,LEGAL AID FUND,RMNJ SOLICITORS ***,1106176:145912469,"48,099.00",Legal Aid Payment Lower Crime,
MINISTRY OF JUSTICE,LEGAL AID AGENCY,02/11/2016,Lower Crime,LEGAL AID FUND,RMNJ SOLICITORS ***,1086590:145676662,"35,119.00",Legal Aid Payment Lower Crime,
MINISTRY OF JUSTICE,LEGAL AID AGENCY,02/11/2016,Lower Crime,LEGAL AID FUND,ROACH PITTIS,1090387:145676223,"26,400.00",Legal Aid Payment Lower Crime,
MINISTRY OF JUSTICE,LEGAL AID AGENCY,30/11/2016,Lower Crime,LEGAL AID FUND,ROACH PITTIS,1109233:145912028,"26,400.00",Legal Aid Payment Lower Crime,
MINISTRY OF JUSTICE,LEGAL AID AGENCY,02/11/2016,Lower Crime,LEGAL AID FUND,ROBERT LIZAR,1086785:145676178,"35,000.00",Legal Aid Payment Lower Crime,
MINISTRY OF JUSTICE,LEGAL AID AGENCY,30/11/2016,Lower Crime,LEGAL AID FUND,ROBERT LIZAR,1109097:145911984,"35,000.00",Legal Aid Payment Lower Crime,
MINISTRY OF JUSTICE,LEGAL AID AGENCY,16/11/2016,Higher Crime,LEGAL AID FUND,ROBERT LIZAR,1097059:145800339,"33,798.90",Legal Aid Payment Higher Crime,
MINISTRY OF JUSTICE,LEGAL AID AGENCY,30/11/2016,Legal Help,LEGAL AID FUND,ROBERT LIZAR,1109097:145911361,"25,480.00",Legal Aid Payment Legal Help,
MINISTRY OF JUSTICE,LEGAL AID AGENCY,02/11/2016,Lower Crime,LEGAL AID FUND,ROBERTSON'S SOLICITORS,1090081:145676090,"25,900.00",Legal Aid Payment Lower Crime,
MINISTRY OF JUSTICE,LEGAL AID AGENCY,30/11/2016,Lower Crime,LEGAL AID FUND,ROBERTSON'S SOLICITORS,1106234:145911897,"25,900.00",Legal Aid Payment Lower Crime,
MINISTRY OF JUSTICE,LEGAL AID AGENCY,16/11/2016,Higher Crime,LEGAL AID FUND,ROBIN J S SHELLARD,1095969:145781758,"37,837.44",Legal Aid Payment Higher Crime,
MINISTRY OF JUSTICE,LEGAL AID AGENCY,02/11/2016,Lower Crime,LEGAL AID FUND,RODNEY WARREN & CO LTD,1086924:145676190,"41,800.00",Legal Aid Payment Lower Crime,
MINISTRY OF JUSTICE,LEGAL AID AGENCY,30/11/2016,Lower Crime,LEGAL AID FUND,RODNEY WARREN & CO LTD,1106617:145911997,"41,800.00",Legal Aid Payment Lower Crime,
MINISTRY OF JUSTICE,LEGAL AID AGENCY,23/11/2016,Higher Crime,LEGAL AID FUND,ROEBUCKS SOLICITORS,1103735:145830084,"40,131.69",Legal Aid Payment Higher Crime,
MINISTRY OF JUSTICE,LEGAL AID AGENCY,02/11/2016,Lower Crime,LEGAL AID FUND,ROGERS & CO,1088597:145676276,"28,100.00",Legal Aid Payment Lower Crime,
MINISTRY OF JUSTICE,LEGAL AID AGENCY,23/11/2016,Civil Representation,LEGAL AID FUND,ROOTES & ALLIOTT,1101771:145841799,"97,861.21",Legal Aid Payment Civil Representation,
MINISTRY OF JUSTICE,LEGAL AID AGENCY,23/11/2016,Civil Representation,LEGAL AID FUND,ROOTES & ALLIOTT,1101771:145841801,"-96,633.61",Legal Aid Payment Civil Representation,
MINISTRY OF JUSTICE,LEGAL AID AGENCY,02/11/2016,Lower Crime,LEGAL AID FUND,ROSS SOLICITORS LTD,1086889:145676266,"35,000.00",Legal Aid Payment Lower Crime,
MINISTRY OF JUSTICE,LEGAL AID AGENCY,30/11/2016,Lower Crime,LEGAL AID FUND,ROSS SOLICITORS LTD,1106681:145912071,"35,000.00",Legal Aid Payment Lower Crime,
MINISTRY OF JUSTICE,LEGAL AID AGENCY,02/11/2016,Lower Crime,LEGAL AID FUND,ROWE SPARKES SOLICITORS LTD,1088044:145676217,"29,800.00",Legal Aid Payment Lower Crime,
MINISTRY OF JUSTICE,LEGAL AID AGENCY,30/11/2016,Lower Crime,LEGAL AID FUND,ROWE SPARKES SOLICITORS LTD,1108409:145912023,"29,800.00",Legal Aid Payment Lower Crime,
MINISTRY OF JUSTICE,LEGAL AID AGENCY,02/11/2016,Higher Crime,LEGAL AID FUND,RUDI F FORTSON QC,1086121:145678935,"61,495.96",Legal Aid Payment Higher Crime,
MINISTRY OF JUSTICE,LEGAL AID AGENCY,09/11/2016,Civil Representation,LEGAL AID FUND,RUDLINGS & WAKELAM,1094424:145749210,"29,022.61",Legal Aid Payment Civil Representation,
MINISTRY OF JUSTICE,LEGAL AID AGENCY,02/11/2016,Lower Crime,LEGAL AID FUND,RUSSELL & RUSSELL SOLICITORS,1088461:145676776,"35,804.00",Legal Aid Payment Lower Crime,
MINISTRY OF JUSTICE,LEGAL AID AGENCY,30/11/2016,Lower Crime,LEGAL AID FUND,RUSSELL & RUSSELL SOLICITORS,1106425:145912586,"29,748.00",Legal Aid Payment Lower Crime,
MINISTRY OF JUSTICE,LEGAL AID AGENCY,30/11/2016,Lower Crime,LEGAL AID FUND,RUSSELL & RUSSELL SOLICITORS,1106424:145912849,"26,924.00",Legal Aid Payment Lower Crime,
MINISTRY OF JUSTICE,LEGAL AID AGENCY,02/11/2016,Lower Crime,LEGAL AID FUND,S A LAW CHAMBERS SOLICITORS,1088140:145675921,"65,000.00",Legal Aid Payment Lower Crime,
MINISTRY OF JUSTICE,LEGAL AID AGENCY,30/11/2016,Lower Crime,LEGAL AID FUND,S A LAW CHAMBERS SOLICITORS,1105972:145911731,"65,000.00",Legal Aid Payment Lower Crime,
MINISTRY OF JUSTICE,LEGAL AID AGENCY,16/11/2016,Higher Crime,LEGAL AID FUND,S SATHA & CO LTD,1096959:145753534,"27,088.21",Legal Aid Payment Higher Crime,
MINISTRY OF JUSTICE,LEGAL AID AGENCY,23/11/2016,Higher Crime,LEGAL AID FUND,SAHOTA & SAHOTA SOLICITORS,1101843:145857808,"48,736.60",Legal Aid Payment Higher Crime,
MINISTRY OF JUSTICE,LEGAL AID AGENCY,02/11/2016,Lower Crime,LEGAL AID FUND,SAKHI LEGAL SERVICES LTD,1088087:145676463,"30,423.00",Legal Aid Payment Lower Crime,
MINISTRY OF JUSTICE,LEGAL AID AGENCY,30/11/2016,Lower Crime,LEGAL AID FUND,SAKHI LEGAL SERVICES LTD,1105906:145912267,"25,684.00",Legal Aid Payment Lower Crime,
MINISTRY OF JUSTICE,LEGAL AID AGENCY,23/11/2016,Higher Crime,LEGAL AID FUND,SALHAN & CO LTD,1101192:145857172,"26,587.14",Legal Aid Payment Higher Crime,
MINISTRY OF JUSTICE,LEGAL AID AGENCY,30/11/2016,Higher Crime,LEGAL AID FUND,SALLIE A BENNETT JENKINS QC,1107738:145885172,"36,103.87",Legal Aid Payment Higher Crime,
MINISTRY OF JUSTICE,LEGAL AID AGENCY,09/11/2016,Civil Representation,LEGAL AID FUND,SALLY C BRADLEY,1091143:3000000968860016,"30,647.82",Legal Aid Payment Civil Representation,
MINISTRY OF JUSTICE,LEGAL AID AGENCY,09/11/2016,Higher Crime,LEGAL AID FUND,SALLY J ONEILL QC,1093796:145720705,"37,074.83",Legal Aid Payment Higher Crime,
MINISTRY OF JUSTICE,LEGAL AID AGENCY,16/11/2016,Higher Crime,LEGAL AID FUND,SAMUEL & CO SOLICITORS,1098815:145800431,"34,376.56",Legal Aid Payment Higher Crime,
MINISTRY OF JUSTICE,LEGAL AID AGENCY,16/11/2016,Civil Representation,LEGAL AID FUND,SANDERSONS SOLICITORS LTD,1096996:3000000827680014,"33,321.60",Legal Aid Payment Civil Representation,
MINISTRY OF JUSTICE,LEGAL AID AGENCY,02/11/2016,Lower Crime,LEGAL AID FUND,SANSBURY DOUGLAS,1089722:145676336,"50,000.00",Legal Aid Payment Lower Crime,
MINISTRY OF JUSTICE,LEGAL AID AGENCY,30/11/2016,Lower Crime,LEGAL AID FUND,SANSBURY DOUGLAS,1105668:145912139,"50,000.00",Legal Aid Payment Lower Crime,
MINISTRY OF JUSTICE,LEGAL AID AGENCY,02/11/2016,Higher Crime,LEGAL AID FUND,SANSBURY DOUGLAS,1089722:145638691,"39,263.80",Legal Aid Payment Higher Crime,
MINISTRY OF JUSTICE,LEGAL AID AGENCY,09/11/2016,Higher Crime,LEGAL AID FUND,SANSBURY DOUGLAS,1094220:145701769,"28,536.00",Legal Aid Payment Higher Crime,
MINISTRY OF JUSTICE,LEGAL AID AGENCY,16/11/2016,Higher Crime,LEGAL AID FUND,SAUL A BRODY,1096235:145781738,"35,659.92",Legal Aid Payment Higher Crime,
MINISTRY OF JUSTICE,LEGAL AID AGENCY,02/11/2016,Lower Crime,LEGAL AID FUND,SAUNDERS SOLICITORS LTD,1088624:145675987,"25,700.00",Legal Aid Payment Lower Crime,
MINISTRY OF JUSTICE,LEGAL AID AGENCY,30/11/2016,Lower Crime,LEGAL AID FUND,SAUNDERS SOLICITORS LTD,1106754:145911796,"25,700.00",Legal Aid Payment Lower Crime,
MINISTRY OF JUSTICE,LEGAL AID AGENCY,02/11/2016,Higher Crime,LEGAL AID FUND,SCOTT DOYLE MOLYNEUX SOLICITORS,1088026:145679033,"60,110.77",Legal Aid Payment Higher Crime,
MINISTRY OF JUSTICE,LEGAL AID AGENCY,02/11/2016,Legal Help,LEGAL AID FUND,SCOTT-MONCRIEFF & ASSOCIATES LLP,1088640:145674762,"49,300.00",Legal Aid Payment Legal Help,
MINISTRY OF JUSTICE,LEGAL AID AGENCY,30/11/2016,Legal Help,LEGAL AID FUND,SCOTT-MONCRIEFF & ASSOCIATES LLP,1106736:145910567,"49,300.00",Legal Aid Payment Legal Help,
MINISTRY OF JUSTICE,LEGAL AID AGENCY,02/11/2016,Lower Crime,LEGAL AID FUND,SCOTT-MONCRIEFF & ASSOCIATES LLP,1088640:145676620,"39,763.00",Legal Aid Payment Lower Crime,
MINISTRY OF JUSTICE,LEGAL AID AGENCY,30/11/2016,Higher Crime,LEGAL AID FUND,SEAN T MINIHAN,1108164:145894570,"29,657.27",Legal Aid Payment Higher Crime,
MINISTRY OF JUSTICE,LEGAL AID AGENCY,02/11/2016,Lower Crime,LEGAL AID FUND,SEDGWICK CHUDLEIGH MCKENN SOLICITORS,1086370:145676374,"26,409.00",Legal Aid Payment Lower Crime,
MINISTRY OF JUSTICE,LEGAL AID AGENCY,23/11/2016,Higher Crime,LEGAL AID FUND,SHAIKH AYUB SOLICITORS,1101009:145830043,"81,347.36",Legal Aid Payment Higher Crime,
MINISTRY OF JUSTICE,LEGAL AID AGENCY,02/11/2016,Higher Crime,LEGAL AID FUND,SHEARMAN BOWEN & CO-ADVOCATE,1087358:145638728,"41,849.64",Legal Aid Payment Higher Crime,
MINISTRY OF JUSTICE,LEGAL AID AGENCY,30/11/2016,Legal Help,LEGAL AID FUND,SHELTER.,1105686:145890849,"37,546.73",Legal Aid Payment Legal Help,
MINISTRY OF JUSTICE,LEGAL AID AGENCY,09/11/2016,Higher Crime,LEGAL AID FUND,SHEPHERD HARRIS & CO LTD,1092520:145691177,"32,133.70",Legal Aid Payment Higher Crime,
MINISTRY OF JUSTICE,LEGAL AID AGENCY,02/11/2016,Lower Crime,LEGAL AID FUND,SHEPHERD SOLICITORS LTD,1088010:145676852,"25,561.00",Legal Aid Payment Lower Crime,
MINISTRY OF JUSTICE,LEGAL AID AGENCY,30/11/2016,Higher Crime,LEGAL AID FUND,SHEPPARDS SOLICITORS LTD,1105968:145875408,"28,944.00",Legal Aid Payment Higher Crime,
MINISTRY OF JUSTICE,LEGAL AID AGENCY,16/11/2016,Civil Representation,LEGAL AID FUND,SILVER FITZGERALD,1099260:145755912,"33,646.09",Legal Aid Payment Civil Representation,
MINISTRY OF JUSTICE,LEGAL AID AGENCY,16/11/2016,Civil Representation,LEGAL AID FUND,SILVER FITZGERALD,1099260:145755913,"-33,609.37",Legal Aid Payment Civil Representation,
MINISTRY OF JUSTICE,LEGAL AID AGENCY,09/11/2016,Higher Crime,LEGAL AID FUND,SIMON BAKER,1093799:145702037,"27,015.60",Legal Aid Payment Higher Crime,
MINISTRY OF JUSTICE,LEGAL AID AGENCY,16/11/2016,Higher Crime,LEGAL AID FUND,SIMON BETHEL SOLICITORS,1098800:145772137,"77,232.82",Legal Aid Payment Higher Crime,
MINISTRY OF JUSTICE,LEGAL AID AGENCY,08/11/2016,Civil Representation,LEGAL AID FUND,SIMON J G CRABTREE,1090494:145623802,"-38,619.00",Legal Aid Payment Civil Representation,
MINISTRY OF JUSTICE,LEGAL AID AGENCY,30/11/2016,Higher Crime,LEGAL AID FUND,SIMON J RIPPON,1105504:145885310,"57,638.52",Legal Aid Payment Higher Crime,
MINISTRY OF JUSTICE,LEGAL AID AGENCY,23/11/2016,Civil Representation,LEGAL AID FUND,SIMON STEPHENSON,1102533:145833379,"35,088.56",Legal Aid Payment Civil Representation,
MINISTRY OF JUSTICE,LEGAL AID AGENCY,30/11/2016,Legal Help,LEGAL AID FUND,SIMPSON MILLAR SOLICITORS LLP,1108115:145834543,"156,413.48",Legal Aid Payment Legal Help,
MINISTRY OF JUSTICE,LEGAL AID AGENCY,23/11/2016,Civil Representation,LEGAL AID FUND,SIMPSON MILLAR SOLICITORS LLP,1103139:144411618,"26,311.23",Legal Aid Payment Civil Representation,
MINISTRY OF JUSTICE,LEGAL AID AGENCY,02/11/2016,Lower Crime,LEGAL AID FUND,SJ LAW SOLICITORS,1089988:145676593,"57,827.00",Legal Aid Payment Lower Crime,
MINISTRY OF JUSTICE,LEGAL AID AGENCY,30/11/2016,Lower Crime,LEGAL AID FUND,SJ LAW SOLICITORS,1108664:145912395,"36,728.00",Legal Aid Payment Lower Crime,
MINISTRY OF JUSTICE,LEGAL AID AGENCY,30/11/2016,Civil Representation,LEGAL AID FUND,SJ SOLICITORS,1106113:145898384,"32,982.54",Legal Aid Payment Civil Representation,
MINISTRY OF JUSTICE,LEGAL AID AGENCY,16/11/2016,Civil Representation,LEGAL AID FUND,SJ SOLICITORS,1098971:145793648,"32,747.54",Legal Aid Payment Civil Representation,
MINISTRY OF JUSTICE,LEGAL AID AGENCY,30/11/2016,Civil Representation,LEGAL AID FUND,SJ SOLICITORS,1106113:145898385,"-32,747.54",Legal Aid Payment Civil Representation,
MINISTRY OF JUSTICE,LEGAL AID AGENCY,09/11/2016,Higher Crime,LEGAL AID FUND,SKR LEGAL SOLICITORS,1091946:145691291,"95,707.01",Legal Aid Payment Higher Crime,
MINISTRY OF JUSTICE,LEGAL AID AGENCY,23/11/2016,Civil Representation,LEGAL AID FUND,SMITH & DAWSON,1103809:145849878,"40,419.35",Legal Aid Payment Civil Representation,
MINISTRY OF JUSTICE,LEGAL AID AGENCY,09/11/2016,Civil Representation,LEGAL AID FUND,SMITH & DAWSON,1094744:145736801,"40,343.95",Legal Aid Payment Civil Representation,
MINISTRY OF JUSTICE,LEGAL AID AGENCY,23/11/2016,Civil Representation,LEGAL AID FUND,SMITH & DAWSON,1103809:145849879,"-40,343.95",Legal Aid Payment Civil Representation,
MINISTRY OF JUSTICE,LEGAL AID AGENCY,30/11/2016,Lower Crime,LEGAL AID FUND,SMITH PARTNERSHIP,1108556:145911673,"63,700.00",Legal Aid Payment Lower Crime,
MINISTRY OF JUSTICE,LEGAL AID AGENCY,02/11/2016,Lower Crime,LEGAL AID FUND,SMITH PARTNERSHIP,1086419:145675861,"45,400.00",Legal Aid Payment Lower Crime,
MINISTRY OF JUSTICE,LEGAL AID AGENCY,02/11/2016,Lower Crime,LEGAL AID FUND,SMITH PARTNERSHIP,1086421:145675860,"33,300.00",Legal Aid Payment Lower Crime,
MINISTRY OF JUSTICE,LEGAL AID AGENCY,30/11/2016,Lower Crime,LEGAL AID FUND,SMITH PARTNERSHIP,1108558:145911672,"33,300.00",Legal Aid Payment Lower Crime,
MINISTRY OF JUSTICE,LEGAL AID AGENCY,02/11/2016,Lower Crime,LEGAL AID FUND,SMITH PARTNERSHIP,1086483:145676306,"28,700.00",Legal Aid Payment Lower Crime,
MINISTRY OF JUSTICE,LEGAL AID AGENCY,30/11/2016,Lower Crime,LEGAL AID FUND,SMITH PARTNERSHIP,1108560:145912111,"28,700.00",Legal Aid Payment Lower Crime,
MINISTRY OF JUSTICE,LEGAL AID AGENCY,30/11/2016,Higher Crime,LEGAL AID FUND,SOLOMONS SOLICITORS,1104240:145885395,"62,711.47",Legal Aid Payment Higher Crime,
MINISTRY OF JUSTICE,LEGAL AID AGENCY,02/11/2016,Higher Crime,LEGAL AID FUND,SOLOMONS SOLICITORS,1085358:145678464,"32,995.54",Legal Aid Payment Higher Crime,
MINISTRY OF JUSTICE,LEGAL AID AGENCY,02/11/2016,Lower Crime,LEGAL AID FUND,SONN MACMILLAN WALKER LTD,1088652:145675916,"58,500.00",Legal Aid Payment Lower Crime,
MINISTRY OF JUSTICE,LEGAL AID AGENCY,30/11/2016,Lower Crime,LEGAL AID FUND,SONN MACMILLAN WALKER LTD,1106746:145911726,"58,500.00",Legal Aid Payment Lower Crime,
MINISTRY OF JUSTICE,LEGAL AID AGENCY,09/11/2016,Higher Crime,LEGAL AID FUND,SONN MACMILLAN WALKER LTD,1092714:145695547,"41,536.08",Legal Aid Payment Higher Crime,
MINISTRY OF JUSTICE,LEGAL AID AGENCY,30/11/2016,Higher Crime,LEGAL AID FUND,SONN MACMILLAN WALKER LTD,1106746:145913424,"39,222.66",Legal Aid Payment Higher Crime,
MINISTRY OF JUSTICE,LEGAL AID AGENCY,30/11/2016,Legal Help,LEGAL AID FUND,SOUTH WEST LONDON LAW CENTRES,1108631:145911241,"35,276.00",Legal Aid Payment Legal Help,
MINISTRY OF JUSTICE,LEGAL AID AGENCY,30/11/2016,Legal Help,LEGAL AID FUND,SOUTHERNS,1108983:145911077,"34,862.00",Legal Aid Payment Legal Help,
MINISTRY OF JUSTICE,LEGAL AID AGENCY,02/11/2016,Legal Help,LEGAL AID FUND,SOUTHERNS,1090190:145675271,"26,161.00",Legal Aid Payment Legal Help,
MINISTRY OF JUSTICE,LEGAL AID AGENCY,16/11/2016,Civil Representation,LEGAL AID FUND,SPICKETTS BATTRICK SOLICITORS,1099306:3000000422640020,"25,084.97",Legal Aid Payment Civil Representation,
MINISTRY OF JUSTICE,LEGAL AID AGENCY,23/11/2016,Higher Crime,LEGAL AID FUND,ST JAMES SOLICITORS,1103498:145830059,"89,975.11",Legal Aid Payment Higher Crime,
MINISTRY OF JUSTICE,LEGAL AID AGENCY,23/11/2016,Higher Crime,LEGAL AID FUND,ST LAW  SOLICITORS LTD,1103359:145830066,"64,685.34",Legal Aid Payment Higher Crime,
MINISTRY OF JUSTICE,LEGAL AID AGENCY,23/11/2016,Higher Crime,LEGAL AID FUND,STAN REIZ,1100154:145811262,"38,940.60",Legal Aid Payment Higher Crime,
MINISTRY OF JUSTICE,LEGAL AID AGENCY,09/11/2016,Civil Representation,LEGAL AID FUND,STEFAN A H ROY,1090817:145684938,"64,249.20",Legal Aid Payment Civil Representation,
MINISTRY OF JUSTICE,LEGAL AID AGENCY,02/11/2016,Lower Crime,LEGAL AID FUND,STEPHEN BURDON SOLICITORS,1086527:145675855,"29,500.00",Legal Aid Payment Lower Crime,
MINISTRY OF JUSTICE,LEGAL AID AGENCY,30/11/2016,Lower Crime,LEGAL AID FUND,STEPHEN BURDON SOLICITORS,1106111:145911667,"29,500.00",Legal Aid Payment Lower Crime,
MINISTRY OF JUSTICE,LEGAL AID AGENCY,30/11/2016,Higher Crime,LEGAL AID FUND,STEPHEN C MEADOWCROFT QC,1107503:145866082,"51,211.90",Legal Aid Payment Higher Crime,
MINISTRY OF JUSTICE,LEGAL AID AGENCY,16/11/2016,Higher Crime,LEGAL AID FUND,STEPHEN FIDLER & CO,1098979:145800402,"30,533.82",Legal Aid Payment Higher Crime,
MINISTRY OF JUSTICE,LEGAL AID AGENCY,02/11/2016,Higher Crime,LEGAL AID FUND,STEPHEN LICKRISH & ASSOCIATES LTD,1088089:145678562,"28,923.43",Legal Aid Payment Higher Crime,
MINISTRY OF JUSTICE,LEGAL AID AGENCY,23/11/2016,Higher Crime,LEGAL AID FUND,STEPHEN MOORE,1103333:145819964,"65,378.40",Legal Aid Payment Higher Crime,
MINISTRY OF JUSTICE,LEGAL AID AGENCY,23/11/2016,Higher Crime,LEGAL AID FUND,STEPHEN MOORE,1103334:145820105,"29,488.45",Legal Aid Payment Higher Crime,
MINISTRY OF JUSTICE,LEGAL AID AGENCY,09/11/2016,Higher Crime,LEGAL AID FUND,STEPHEN MOSES,1093771:145720607,"40,160.03",Legal Aid Payment Higher Crime,
MINISTRY OF JUSTICE,LEGAL AID AGENCY,30/11/2016,Higher Crime,LEGAL AID FUND,STEPHEN P MCCAFFREY,1107769:145914697,"35,701.68",Legal Aid Payment Higher Crime,
MINISTRY OF JUSTICE,LEGAL AID AGENCY,02/11/2016,Lower Crime,LEGAL AID FUND,STEPHEN RIMMER LLP,1088263:145676193,"30,000.00",Legal Aid Payment Lower Crime,
MINISTRY OF JUSTICE,LEGAL AID AGENCY,30/11/2016,Lower Crime,LEGAL AID FUND,STEPHEN RIMMER LLP,1106185:145912000,"30,000.00",Legal Aid Payment Lower Crime,
MINISTRY OF JUSTICE,LEGAL AID AGENCY,30/11/2016,Lower Crime,LEGAL AID FUND,STEPHENSONS SOLICITORS LLP,1109102:145912604,"37,032.00",Legal Aid Payment Lower Crime,
MINISTRY OF JUSTICE,LEGAL AID AGENCY,02/11/2016,Lower Crime,LEGAL AID FUND,STEPHENSONS SOLICITORS LLP,1086790:145676792,"32,915.00",Legal Aid Payment Lower Crime,
MINISTRY OF JUSTICE,LEGAL AID AGENCY,02/11/2016,Lower Crime,LEGAL AID FUND,STERNBERG REED SOLICITORS,1088055:145675973,"55,000.00",Legal Aid Payment Lower Crime,
MINISTRY OF JUSTICE,LEGAL AID AGENCY,30/11/2016,Lower Crime,LEGAL AID FUND,STERNBERG REED SOLICITORS,1108419:145911782,"55,000.00",Legal Aid Payment Lower Crime,
MINISTRY OF JUSTICE,LEGAL AID AGENCY,02/11/2016,Civil Representation,LEGAL AID FUND,STERNBERG REED SOLICITORS,1087951:145652234,"26,278.47",Legal Aid Payment Civil Representation,
MINISTRY OF JUSTICE,LEGAL AID AGENCY,02/11/2016,Lower Crime,LEGAL AID FUND,STEVEN YOUNG & CO INC ROWBIS,1089891:145676954,"34,943.00",Legal Aid Payment Lower Crime,
MINISTRY OF JUSTICE,LEGAL AID AGENCY,30/11/2016,Lower Crime,LEGAL AID FUND,STEVEN YOUNG & CO INC ROWBIS,1106019:145912766,"28,297.00",Legal Aid Payment Lower Crime,
MINISTRY OF JUSTICE,LEGAL AID AGENCY,30/11/2016,Lower Crime,LEGAL AID FUND,STEVENS SOLICITORS,1106447:145912094,"74,500.00",Legal Aid Payment Lower Crime,
MINISTRY OF JUSTICE,LEGAL AID AGENCY,30/11/2016,Lower Crime,LEGAL AID FUND,STEVENS SOLICITORS,1106446:145912095,"60,000.00",Legal Aid Payment Lower Crime,
MINISTRY OF JUSTICE,LEGAL AID AGENCY,02/11/2016,Lower Crime,LEGAL AID FUND,STEVENS SOLICITORS,1088483:145686778,"46,800.00",Legal Aid Payment Lower Crime,
MINISTRY OF JUSTICE,LEGAL AID AGENCY,02/11/2016,Lower Crime,LEGAL AID FUND,STEVENS SOLICITORS,1088482:145676290,"39,700.00",Legal Aid Payment Lower Crime,
MINISTRY OF JUSTICE,LEGAL AID AGENCY,30/11/2016,Lower Crime,LEGAL AID FUND,STEVENS SOLICITORS,1106444:145912101,"39,000.00",Legal Aid Payment Lower Crime,
MINISTRY OF JUSTICE,LEGAL AID AGENCY,02/11/2016,Lower Crime,LEGAL AID FUND,STEVENS SOLICITORS,1088483:145676289,"27,700.00",Legal Aid Payment Lower Crime,
MINISTRY OF JUSTICE,LEGAL AID AGENCY,30/11/2016,Higher Crime,LEGAL AID FUND,STEWART BEGUM SOLICITORS LLP,1105737:145885273,"32,501.82",Legal Aid Payment Higher Crime,
MINISTRY OF JUSTICE,LEGAL AID AGENCY,30/11/2016,Higher Crime,LEGAL AID FUND,STOKOE PARTNERSHIP,1109243:145921965,"301,370.02",Legal Aid Payment Higher Crime,
MINISTRY OF JUSTICE,LEGAL AID AGENCY,02/11/2016,Lower Crime,LEGAL AID FUND,STOKOE PARTNERSHIP,1090327:145676581,"29,152.00",Legal Aid Payment Lower Crime,
MINISTRY OF JUSTICE,LEGAL AID AGENCY,02/11/2016,Lower Crime,LEGAL AID FUND,STRINGFELLOW & CO,1086309:145675914,"25,000.00",Legal Aid Payment Lower Crime,
MINISTRY OF JUSTICE,LEGAL AID AGENCY,30/11/2016,Lower Crime,LEGAL AID FUND,STRINGFELLOW & CO,1108317:145911724,"25,000.00",Legal Aid Payment Lower Crime,
MINISTRY OF JUSTICE,LEGAL AID AGENCY,30/11/2016,Lower Crime,LEGAL AID FUND,STUART MILLER SOLICITORS LTD,1108974:145912426,"124,924.00",Legal Aid Payment Lower Crime,
MINISTRY OF JUSTICE,LEGAL AID AGENCY,02/11/2016,Lower Crime,LEGAL AID FUND,STUART MILLER SOLICITORS LTD,1090182:145676622,"106,495.00",Legal Aid Payment Lower Crime,
MINISTRY OF JUSTICE,LEGAL AID AGENCY,16/11/2016,Higher Crime,LEGAL AID FUND,STUART MILLER SOLICITORS LTD,1099180:145800400,"89,952.76",Legal Aid Payment Higher Crime,
MINISTRY OF JUSTICE,LEGAL AID AGENCY,02/11/2016,Lower Crime,LEGAL AID FUND,SUSSEX DEFENCE SOLICITORS,1086338:145676210,"37,000.00",Legal Aid Payment Lower Crime,
MINISTRY OF JUSTICE,LEGAL AID AGENCY,30/11/2016,Lower Crime,LEGAL AID FUND,SUSSEX DEFENCE SOLICITORS,1105824:145912016,"37,000.00",Legal Aid Payment Lower Crime,
MINISTRY OF JUSTICE,LEGAL AID AGENCY,02/11/2016,Legal Help,LEGAL AID FUND,SUTOVIC & HARTIGAN,1090334:145674768,"34,300.00",Legal Aid Payment Legal Help,
MINISTRY OF JUSTICE,LEGAL AID AGENCY,30/11/2016,Legal Help,LEGAL AID FUND,SUTOVIC & HARTIGAN,1109288:145910573,"34,300.00",Legal Aid Payment Legal Help,
MINISTRY OF JUSTICE,LEGAL AID AGENCY,02/11/2016,Legal Help,LEGAL AID FUND,SWAIN & CO SOLICITORS LLP,1089893:145674881,"40,000.00",Legal Aid Payment Legal Help,
MINISTRY OF JUSTICE,LEGAL AID AGENCY,30/11/2016,Legal Help,LEGAL AID FUND,SWAIN & CO SOLICITORS LLP,1106021:145910680,"40,000.00",Legal Aid Payment Legal Help,
MINISTRY OF JUSTICE,LEGAL AID AGENCY,02/11/2016,Lower Crime,LEGAL AID FUND,SWAIN & CO SOLICITORS LLP,1089892:145676215,"38,300.00",Legal Aid Payment Lower Crime,
MINISTRY OF JUSTICE,LEGAL AID AGENCY,30/11/2016,Lower Crime,LEGAL AID FUND,SWAIN & CO SOLICITORS LLP,1106020:145912021,"38,300.00",Legal Aid Payment Lower Crime,
MINISTRY OF JUSTICE,LEGAL AID AGENCY,23/11/2016,Higher Crime,LEGAL AID FUND,SWEETMAN BURKE & SINKER,1103967:145829628,"49,729.07",Legal Aid Payment Higher Crime,
MINISTRY OF JUSTICE,LEGAL AID AGENCY,30/11/2016,Legal Help,LEGAL AID FUND,SWITALSKI'S SOLICITORS LTD,1108894:145910930,"73,309.00",Legal Aid Payment Legal Help,
MINISTRY OF JUSTICE,LEGAL AID AGENCY,02/11/2016,Legal Help,LEGAL AID FUND,SWITALSKI'S SOLICITORS LTD,1086765:145675124,"67,533.00",Legal Aid Payment Legal Help,
MINISTRY OF JUSTICE,LEGAL AID AGENCY,02/11/2016,Lower Crime,LEGAL AID FUND,SWITALSKI'S SOLICITORS LTD,1086765:145676709,"31,327.00",Legal Aid Payment Lower Crime,
MINISTRY OF JUSTICE,LEGAL AID AGENCY,02/11/2016,Civil Representation,LEGAL AID FUND,T LLEWELLYN JONES,1086886:145635438,"28,461.89",Legal Aid Payment Civil Representation,
MINISTRY OF JUSTICE,LEGAL AID AGENCY,02/11/2016,Lower Crime,LEGAL AID FUND,T S LAW LTD,1088994:145676349,"25,000.00",Legal Aid Payment Lower Crime,
MINISTRY OF JUSTICE,LEGAL AID AGENCY,02/11/2016,Lower Crime,LEGAL AID FUND,T S LAW LTD,1089985:145675974,"25,000.00",Legal Aid Payment Lower Crime,
MINISTRY OF JUSTICE,LEGAL AID AGENCY,30/11/2016,Lower Crime,LEGAL AID FUND,T S LAW LTD,1107334:145912152,"25,000.00",Legal Aid Payment Lower Crime,
MINISTRY OF JUSTICE,LEGAL AID AGENCY,30/11/2016,Lower Crime,LEGAL AID FUND,T S LAW LTD,1108661:145911783,"25,000.00",Legal Aid Payment Lower Crime,
MINISTRY OF JUSTICE,LEGAL AID AGENCY,30/11/2016,Legal Help,LEGAL AID FUND,T V EDWARDS LLP,1106486:145910550,"61,300.00",Legal Aid Payment Legal Help,
MINISTRY OF JUSTICE,LEGAL AID AGENCY,02/11/2016,Lower Crime,LEGAL AID FUND,T V EDWARDS LLP,1088511:145675972,"58,600.00",Legal Aid Payment Lower Crime,
MINISTRY OF JUSTICE,LEGAL AID AGENCY,30/11/2016,Lower Crime,LEGAL AID FUND,T V EDWARDS LLP,1106486:145911781,"58,600.00",Legal Aid Payment Lower Crime,
MINISTRY OF JUSTICE,LEGAL AID AGENCY,02/11/2016,Civil Representation,LEGAL AID FUND,T V EDWARDS LLP,1088511:145684426,"50,776.55",Legal Aid Payment Civil Representation,
MINISTRY OF JUSTICE,LEGAL AID AGENCY,16/11/2016,Civil Representation,LEGAL AID FUND,T V EDWARDS LLP,1099197:145806196,"50,776.15",Legal Aid Payment Civil Representation,
MINISTRY OF JUSTICE,LEGAL AID AGENCY,02/11/2016,Higher Crime,LEGAL AID FUND,T V EDWARDS LLP,1088511:145677728,"38,345.81",Legal Aid Payment Higher Crime,
MINISTRY OF JUSTICE,LEGAL AID AGENCY,02/11/2016,Legal Help,LEGAL AID FUND,T V EDWARDS LLP,1088511:145674745,"29,700.00",Legal Aid Payment Legal Help,
MINISTRY OF JUSTICE,LEGAL AID AGENCY,16/11/2016,Civil Representation,LEGAL AID FUND,T V EDWARDS LLP,1099197:145806198,"-50,776.55",Legal Aid Payment Civil Representation,
MINISTRY OF JUSTICE,LEGAL AID AGENCY,02/11/2016,Civil Representation,LEGAL AID FUND,T V EDWARDS LLP,1088511:145684427,"-51,638.77",Legal Aid Payment Civil Representation,
MINISTRY OF JUSTICE,LEGAL AID AGENCY,30/11/2016,Legal Help,LEGAL AID FUND,T. A. LAW,1105681:145889227,"38,949.10",Legal Aid Payment Legal Help,
MINISTRY OF JUSTICE,LEGAL AID AGENCY,02/11/2016,Civil Representation,LEGAL AID FUND,TABITHA BARRAN,1087600:145652239,"26,160.00",Legal Aid Payment Civil Representation,
MINISTRY OF JUSTICE,LEGAL AID AGENCY,09/11/2016,Higher Crime,LEGAL AID FUND,TARQUIN J MCCALLA,1094059:145701289,"28,923.36",Legal Aid Payment Higher Crime,
MINISTRY OF JUSTICE,LEGAL AID AGENCY,16/11/2016,Higher Crime,LEGAL AID FUND,TAYLOR HALDANE BARLEX LLP,1098972:145771906,"97,258.75",Legal Aid Payment Higher Crime,
MINISTRY OF JUSTICE,LEGAL AID AGENCY,02/11/2016,Lower Crime,LEGAL AID FUND,TAYLOR HALDANE BARLEX LLP,1086544:145676532,"35,030.00",Legal Aid Payment Lower Crime,
MINISTRY OF JUSTICE,LEGAL AID AGENCY,02/11/2016,Lower Crime,LEGAL AID FUND,TAYLOR HALDANE BARLEX LLP,1086543:145676533,"31,818.00",Legal Aid Payment Lower Crime,
MINISTRY OF JUSTICE,LEGAL AID AGENCY,30/11/2016,Lower Crime,LEGAL AID FUND,TAYLOR HALDANE BARLEX LLP,1106115:145912339,"31,754.00",Legal Aid Payment Lower Crime,
MINISTRY OF JUSTICE,LEGAL AID AGENCY,30/11/2016,Lower Crime,LEGAL AID FUND,TAYLOR HALDANE BARLEX LLP,1104328:145913161,"28,805.00",Legal Aid Payment Lower Crime,
MINISTRY OF JUSTICE,LEGAL AID AGENCY,16/11/2016,Higher Crime,LEGAL AID FUND,TAYLOR HALDANE BARLEX-ADVOCATE,1095590:145752572,"29,245.13",Legal Aid Payment Higher Crime,
MINISTRY OF JUSTICE,LEGAL AID AGENCY,02/11/2016,Lower Crime,LEGAL AID FUND,TAYLOR STREET SOLICITORS LLP,1086743:145676198,"61,700.00",Legal Aid Payment Lower Crime,
MINISTRY OF JUSTICE,LEGAL AID AGENCY,30/11/2016,Lower Crime,LEGAL AID FUND,TAYLOR STREET SOLICITORS LLP,1106351:145912005,"61,700.00",Legal Aid Payment Lower Crime,
MINISTRY OF JUSTICE,LEGAL AID AGENCY,16/11/2016,Higher Crime,LEGAL AID FUND,TAYLOR STREET SOLICITORS LLP,1096983:145781573,"37,296.80",Legal Aid Payment Higher Crime,
MINISTRY OF JUSTICE,LEGAL AID AGENCY,02/11/2016,Lower Crime,LEGAL AID FUND,TEESSIDE LAW LTD,1085395:145677265,"35,907.00",Legal Aid Payment Lower Crime,
MINISTRY OF JUSTICE,LEGAL AID AGENCY,30/11/2016,Lower Crime,LEGAL AID FUND,TEESSIDE LAW LTD,1104375:145913065,"32,039.00",Legal Aid Payment Lower Crime,
MINISTRY OF JUSTICE,LEGAL AID AGENCY,30/11/2016,Legal Help,LEGAL AID FUND,THALIWAL & CO LTD,1108490:145911139,"39,331.00",Legal Aid Payment Legal Help,
MINISTRY OF JUSTICE,LEGAL AID AGENCY,02/11/2016,Legal Help,LEGAL AID FUND,THALIWAL & CO LTD,1089924:145675323,"34,991.00",Legal Aid Payment Legal Help,
MINISTRY OF JUSTICE,LEGAL AID AGENCY,02/11/2016,Lower Crime,LEGAL AID FUND,THE CASTLE PARTNERSHIP,1086601:145676200,"29,000.00",Legal Aid Payment Lower Crime,
MINISTRY OF JUSTICE,LEGAL AID AGENCY,30/11/2016,Lower Crime,LEGAL AID FUND,THE CASTLE PARTNERSHIP,1108831:145912007,"29,000.00",Legal Aid Payment Lower Crime,
MINISTRY OF JUSTICE,LEGAL AID AGENCY,23/11/2016,Higher Crime,LEGAL AID FUND,THE CENTRAL LAW PRACTICE,1101026:145856052,"74,301.85",Legal Aid Payment Higher Crime,
MINISTRY OF JUSTICE,LEGAL AID AGENCY,30/11/2016,Higher Crime,LEGAL AID FUND,THE CENTRAL LAW PRACTICE,1106097:145875611,"38,604.78",Legal Aid Payment Higher Crime,
MINISTRY OF JUSTICE,LEGAL AID AGENCY,02/11/2016,Civil Representation,LEGAL AID FUND,THE CHILDREN'S LEGAL PRACTICE LIMITED,1088111:145626111,"25,239.60",Legal Aid Payment Civil Representation,
MINISTRY OF JUSTICE,LEGAL AID AGENCY,23/11/2016,Legal Help,LEGAL AID FUND,THE COMMUNITY LAW PARTNERSHIP LTD,1103463:145851082,"30,823.74",Legal Aid Payment Legal Help,
MINISTRY OF JUSTICE,LEGAL AID AGENCY,23/11/2016,Civil Representation,LEGAL AID FUND,THE COMMUNITY LAW PARTNERSHIP LTD,1103463:145814624,"25,867.47",Legal Aid Payment Civil Representation,
MINISTRY OF JUSTICE,LEGAL AID AGENCY,02/11/2016,Lower Crime,LEGAL AID FUND,THE JOHNSON PARTNERSHIP,1090117:145675851,"190,000.00",Legal Aid Payment Lower Crime,
MINISTRY OF JUSTICE,LEGAL AID AGENCY,30/11/2016,Lower Crime,LEGAL AID FUND,THE JOHNSON PARTNERSHIP,1108809:145911663,"190,000.00",Legal Aid Payment Lower Crime,
MINISTRY OF JUSTICE,LEGAL AID AGENCY,09/11/2016,Higher Crime,LEGAL AID FUND,THE JOHNSON PARTNERSHIP,1092302:145691588,"116,008.49",Legal Aid Payment Higher Crime,
MINISTRY OF JUSTICE,LEGAL AID AGENCY,16/11/2016,Higher Crime,LEGAL AID FUND,THE JOHNSON PARTNERSHIP,1096865:145753801,"97,616.83",Legal Aid Payment Higher Crime,
MINISTRY OF JUSTICE,LEGAL AID AGENCY,30/11/2016,Higher Crime,LEGAL AID FUND,THE JOHNSON PARTNERSHIP,1108809:145914355,"62,290.09",Legal Aid Payment Higher Crime,
MINISTRY OF JUSTICE,LEGAL AID AGENCY,02/11/2016,Lower Crime,LEGAL AID FUND,THE JOHNSON PARTNERSHIP,1089720:145676339,"40,000.00",Legal Aid Payment Lower Crime,
MINISTRY OF JUSTICE,LEGAL AID AGENCY,30/11/2016,Lower Crime,LEGAL AID FUND,THE JOHNSON PARTNERSHIP,1105666:145912142,"40,000.00",Legal Aid Payment Lower Crime,
MINISTRY OF JUSTICE,LEGAL AID AGENCY,02/11/2016,Lower Crime,LEGAL AID FUND,THE JOHNSON PARTNERSHIP,1090115:145675853,"38,200.00",Legal Aid Payment Lower Crime,
MINISTRY OF JUSTICE,LEGAL AID AGENCY,30/11/2016,Lower Crime,LEGAL AID FUND,THE JOHNSON PARTNERSHIP,1108807:145911665,"38,200.00",Legal Aid Payment Lower Crime,
MINISTRY OF JUSTICE,LEGAL AID AGENCY,02/11/2016,Lower Crime,LEGAL AID FUND,THE JOHNSON PARTNERSHIP,1090116:145675852,"34,000.00",Legal Aid Payment Lower Crime,
MINISTRY OF JUSTICE,LEGAL AID AGENCY,30/11/2016,Lower Crime,LEGAL AID FUND,THE JOHNSON PARTNERSHIP,1108808:145911664,"34,000.00",Legal Aid Payment Lower Crime,
MINISTRY OF JUSTICE,LEGAL AID AGENCY,09/11/2016,Lower Crime,LEGAL AID FUND,THE JOHNSON PARTNERSHIP,1092302:145707839,"30,702.24",Legal Aid Payment Lower Crime,
MINISTRY OF JUSTICE,LEGAL AID AGENCY,09/11/2016,Civil Representation,LEGAL AID FUND,THOMAS B J FAZACKERLEY,1091013:145650725,"34,171.20",Legal Aid Payment Civil Representation,
MINISTRY OF JUSTICE,LEGAL AID AGENCY,16/11/2016,Higher Crime,LEGAL AID FUND,THOMAS BOYD WHYTE,1099439:145772203,"88,131.84",Legal Aid Payment Higher Crime,
MINISTRY OF JUSTICE,LEGAL AID AGENCY,30/11/2016,Lower Crime,LEGAL AID FUND,THOMAS BOYD WHYTE,1109267:145912386,"44,316.00",Legal Aid Payment Lower Crime,
MINISTRY OF JUSTICE,LEGAL AID AGENCY,02/11/2016,Lower Crime,LEGAL AID FUND,THOMAS BOYD WHYTE,1090320:145676583,"42,625.00",Legal Aid Payment Lower Crime,
MINISTRY OF JUSTICE,LEGAL AID AGENCY,02/11/2016,Legal Help,LEGAL AID FUND,THOMPSON & CO,1088469:145674750,"27,300.00",Legal Aid Payment Legal Help,
MINISTRY OF JUSTICE,LEGAL AID AGENCY,30/11/2016,Legal Help,LEGAL AID FUND,THOMPSON & CO,1106433:145910555,"27,300.00",Legal Aid Payment Legal Help,
MINISTRY OF JUSTICE,LEGAL AID AGENCY,16/11/2016,Higher Crime,LEGAL AID FUND,TIMOTHY A FORTE,1095876:145761894,"27,040.68",Legal Aid Payment Higher Crime,
MINISTRY OF JUSTICE,LEGAL AID AGENCY,30/11/2016,Higher Crime,LEGAL AID FUND,TIMOTHY J STORRIE,1107788:145894309,"39,276.60",Legal Aid Payment Higher Crime,
MINISTRY OF JUSTICE,LEGAL AID AGENCY,09/11/2016,Civil Representation,LEGAL AID FUND,TIMOTHY M BOWE,1091816:145460779,"66,657.60",Legal Aid Payment Civil Representation,
MINISTRY OF JUSTICE,LEGAL AID AGENCY,09/11/2016,Civil Representation,LEGAL AID FUND,TIMOTHY M BOWE,1091816:145473321,"-41,601.60",Legal Aid Payment Civil Representation,
MINISTRY OF JUSTICE,LEGAL AID AGENCY,09/11/2016,Higher Crime,LEGAL AID FUND,TIMOTHY W H RAGGATT QC,1094025:145720275,"35,735.28",Legal Aid Payment Higher Crime,
MINISTRY OF JUSTICE,LEGAL AID AGENCY,23/11/2016,Higher Crime,LEGAL AID FUND,TOLLER BEATTIE LLP,1103910:145837930,"29,664.55",Legal Aid Payment Higher Crime,
MINISTRY OF JUSTICE,LEGAL AID AGENCY,16/11/2016,Higher Crime,LEGAL AID FUND,TOMAS P MCGARVEY,1097680:145801459,"29,478.24",Legal Aid Payment Higher Crime,
MINISTRY OF JUSTICE,LEGAL AID AGENCY,02/11/2016,Lower Crime,LEGAL AID FUND,TOSSWILL & CO,1086555:145676650,"29,439.00",Legal Aid Payment Lower Crime,
MINISTRY OF JUSTICE,LEGAL AID AGENCY,16/11/2016,Higher Crime,LEGAL AID FUND,TOUSSAINT & CO,1099210:145762602,"26,879.84",Legal Aid Payment Higher Crime,
MINISTRY OF JUSTICE,LEGAL AID AGENCY,30/11/2016,Civil Representation,LEGAL AID FUND,TOZERS LLP,1108910:145870619,"42,398.02",Legal Aid Payment Civil Representation,
MINISTRY OF JUSTICE,LEGAL AID AGENCY,30/11/2016,Lower Crime,LEGAL AID FUND,TREMLETTS SOLICITORS,1106302:145912693,"33,376.00",Legal Aid Payment Lower Crime,
MINISTRY OF JUSTICE,LEGAL AID AGENCY,23/11/2016,Civil Representation,LEGAL AID FUND,TRETHOWANS LLP,1103903:145828345,"26,108.73",Legal Aid Payment Civil Representation,
MINISTRY OF JUSTICE,LEGAL AID AGENCY,30/11/2016,Lower Crime,LEGAL AID FUND,TRINITY ADVOCATES,1105685:145912135,"27,100.00",Legal Aid Payment Lower Crime,
MINISTRY OF JUSTICE,LEGAL AID AGENCY,02/11/2016,Legal Help,LEGAL AID FUND,TRP SOLICITORS LTD,1086368:145674627,"26,600.00",Legal Aid Payment Legal Help,
MINISTRY OF JUSTICE,LEGAL AID AGENCY,30/11/2016,Legal Help,LEGAL AID FUND,TRP SOLICITORS LTD,1105744:145910435,"26,600.00",Legal Aid Payment Legal Help,
MINISTRY OF JUSTICE,LEGAL AID AGENCY,02/11/2016,Lower Crime,LEGAL AID FUND,TUCKERS SOLICITORS LLP,1090179:145675990,"110,000.00",Legal Aid Payment Lower Crime,
MINISTRY OF JUSTICE,LEGAL AID AGENCY,30/11/2016,Lower Crime,LEGAL AID FUND,TUCKERS SOLICITORS LLP,1108971:145911799,"110,000.00",Legal Aid Payment Lower Crime,
MINISTRY OF JUSTICE,LEGAL AID AGENCY,30/11/2016,Higher Crime,LEGAL AID FUND,TUCKERS SOLICITORS LLP,1108971:145884549,"89,975.11",Legal Aid Payment Higher Crime,
MINISTRY OF JUSTICE,LEGAL AID AGENCY,02/11/2016,Lower Crime,LEGAL AID FUND,TUCKERS SOLICITORS LLP,1090178:145676173,"80,900.00",Legal Aid Payment Lower Crime,
MINISTRY OF JUSTICE,LEGAL AID AGENCY,30/11/2016,Lower Crime,LEGAL AID FUND,TUCKERS SOLICITORS LLP,1108970:145911979,"80,900.00",Legal Aid Payment Lower Crime,
MINISTRY OF JUSTICE,LEGAL AID AGENCY,02/11/2016,Higher Crime,LEGAL AID FUND,TUCKERS SOLICITORS LLP,1087988:145638697,"48,800.44",Legal Aid Payment Higher Crime,
MINISTRY OF JUSTICE,LEGAL AID AGENCY,02/11/2016,Lower Crime,LEGAL AID FUND,TUCKERS SOLICITORS LLP,1087091:145676358,"45,800.00",Legal Aid Payment Lower Crime,
MINISTRY OF JUSTICE,LEGAL AID AGENCY,30/11/2016,Lower Crime,LEGAL AID FUND,TUCKERS SOLICITORS LLP,1104405:145912161,"45,800.00",Legal Aid Payment Lower Crime,
MINISTRY OF JUSTICE,LEGAL AID AGENCY,02/11/2016,Lower Crime,LEGAL AID FUND,TUCKERS SOLICITORS LLP,1090180:145676303,"43,300.00",Legal Aid Payment Lower Crime,
MINISTRY OF JUSTICE,LEGAL AID AGENCY,30/11/2016,Lower Crime,LEGAL AID FUND,TUCKERS SOLICITORS LLP,1108972:145912108,"43,300.00",Legal Aid Payment Lower Crime,
MINISTRY OF JUSTICE,LEGAL AID AGENCY,02/11/2016,Legal Help,LEGAL AID FUND,TUCKERS SOLICITORS LLP,1090179:145675219,"34,334.00",Legal Aid Payment Legal Help,
MINISTRY OF JUSTICE,LEGAL AID AGENCY,02/11/2016,Legal Help,LEGAL AID FUND,TURPIN & MILLER LLP,1088146:145675374,"38,585.00",Legal Aid Payment Legal Help,
MINISTRY OF JUSTICE,LEGAL AID AGENCY,30/11/2016,Legal Help,LEGAL AID FUND,UK LAW,1105726:145911544,"32,425.00",Legal Aid Payment Legal Help,
MINISTRY OF JUSTICE,LEGAL AID AGENCY,16/11/2016,Higher Crime,LEGAL AID FUND,USMANI KING LTD,1096733:145762152,"70,728.42",Legal Aid Payment Higher Crime,
MINISTRY OF JUSTICE,LEGAL AID AGENCY,30/11/2016,Lower Crime,LEGAL AID FUND,USMANI KING LTD,1105977:145912310,"53,560.00",Legal Aid Payment Lower Crime,
MINISTRY OF JUSTICE,LEGAL AID AGENCY,02/11/2016,Lower Crime,LEGAL AID FUND,USMANI KING LTD,1088145:145676504,"46,909.00",Legal Aid Payment Lower Crime,
MINISTRY OF JUSTICE,LEGAL AID AGENCY,30/11/2016,Civil Representation,LEGAL AID FUND,VENTERS SOLICITORS,1108324:3000000813640007,"27,107.65",Legal Aid Payment Civil Representation,
MINISTRY OF JUSTICE,LEGAL AID AGENCY,09/11/2016,Higher Crime,LEGAL AID FUND,VHS FLETCHERS,1092286:145691326,"97,616.83",Legal Aid Payment Higher Crime,
MINISTRY OF JUSTICE,LEGAL AID AGENCY,02/11/2016,Lower Crime,LEGAL AID FUND,VHS FLETCHERS,1086655:145675854,"66,500.00",Legal Aid Payment Lower Crime,
MINISTRY OF JUSTICE,LEGAL AID AGENCY,30/11/2016,Lower Crime,LEGAL AID FUND,VHS FLETCHERS,1108788:145911666,"66,500.00",Legal Aid Payment Lower Crime,
MINISTRY OF JUSTICE,LEGAL AID AGENCY,02/11/2016,Lower Crime,LEGAL AID FUND,VHS FLETCHERS,1086386:145675856,"32,700.00",Legal Aid Payment Lower Crime,
MINISTRY OF JUSTICE,LEGAL AID AGENCY,30/11/2016,Lower Crime,LEGAL AID FUND,VHS FLETCHERS,1108299:145911668,"32,700.00",Legal Aid Payment Lower Crime,
MINISTRY OF JUSTICE,LEGAL AID AGENCY,02/11/2016,Lower Crime,LEGAL AID FUND,VHS FLETCHERS,1088752:145676368,"29,200.00",Legal Aid Payment Lower Crime,
MINISTRY OF JUSTICE,LEGAL AID AGENCY,30/11/2016,Lower Crime,LEGAL AID FUND,VHS FLETCHERS,1104272:145912171,"29,200.00",Legal Aid Payment Lower Crime,
MINISTRY OF JUSTICE,LEGAL AID AGENCY,02/11/2016,Lower Crime,LEGAL AID FUND,VICKERS CHISMAN & WISHLADE,1086688:145676034,"43,800.00",Legal Aid Payment Lower Crime,
MINISTRY OF JUSTICE,LEGAL AID AGENCY,30/11/2016,Lower Crime,LEGAL AID FUND,VICKERS CHISMAN & WISHLADE,1106381:145911842,"43,800.00",Legal Aid Payment Lower Crime,
MINISTRY OF JUSTICE,LEGAL AID AGENCY,09/11/2016,Higher Crime,LEGAL AID FUND,VIRDEES SOLICITORS LTD,1094097:145743594,"25,802.40",Legal Aid Payment Higher Crime,
MINISTRY OF JUSTICE,LEGAL AID AGENCY,30/11/2016,Legal Help,LEGAL AID FUND,VIRGO SOLICITORS LTD,1104492:145911525,"26,499.00",Legal Aid Payment Legal Help,
MINISTRY OF JUSTICE,LEGAL AID AGENCY,30/11/2016,Civil Representation,LEGAL AID FUND,VLS SOLICITORS,1105770:145768971,"29,726.35",Legal Aid Payment Civil Representation,
MINISTRY OF JUSTICE,LEGAL AID AGENCY,02/11/2016,Lower Crime,LEGAL AID FUND,VYMAN SOLICITORS LTD,1089863:145676859,"59,366.00",Legal Aid Payment Lower Crime,
MINISTRY OF JUSTICE,LEGAL AID AGENCY,30/11/2016,Lower Crime,LEGAL AID FUND,VYMAN SOLICITORS LTD,1108527:145912669,"57,205.00",Legal Aid Payment Lower Crime,
MINISTRY OF JUSTICE,LEGAL AID AGENCY,02/11/2016,Lower Crime,LEGAL AID FUND,W M B LAW LTD,1089947:145676980,"29,085.00",Legal Aid Payment Lower Crime,
MINISTRY OF JUSTICE,LEGAL AID AGENCY,02/11/2016,Legal Help,LEGAL AID FUND,WAI LEUNG SOLICITORS,1088039:145674959,"25,284.00",Legal Aid Payment Legal Help,
MINISTRY OF JUSTICE,LEGAL AID AGENCY,30/11/2016,Higher Crime,LEGAL AID FUND,WAINWRIGHT & CUMMINS LLP,1105858:145885393,"97,616.83",Legal Aid Payment Higher Crime,
MINISTRY OF JUSTICE,LEGAL AID AGENCY,02/11/2016,Lower Crime,LEGAL AID FUND,WAINWRIGHT & CUMMINS LLP,1086436:145676006,"42,000.00",Legal Aid Payment Lower Crime,
MINISTRY OF JUSTICE,LEGAL AID AGENCY,30/11/2016,Lower Crime,LEGAL AID FUND,WAINWRIGHT & CUMMINS LLP,1105858:145911815,"42,000.00",Legal Aid Payment Lower Crime,
MINISTRY OF JUSTICE,LEGAL AID AGENCY,23/11/2016,Higher Crime,LEGAL AID FUND,WALKER & CO.,1101218:145820251,"28,918.65",Legal Aid Payment Higher Crime,
MINISTRY OF JUSTICE,LEGAL AID AGENCY,30/11/2016,Lower Crime,LEGAL AID FUND,WALKER LAHIVE,1106267:145912743,"35,403.00",Legal Aid Payment Lower Crime,
MINISTRY OF JUSTICE,LEGAL AID AGENCY,02/11/2016,Lower Crime,LEGAL AID FUND,WALKER LAHIVE,1088410:145676931,"34,534.00",Legal Aid Payment Lower Crime,
MINISTRY OF JUSTICE,LEGAL AID AGENCY,30/11/2016,Higher Crime,LEGAL AID FUND,WALLACE MCNALLY,1108426:145875880,"36,159.23",Legal Aid Payment Higher Crime,
MINISTRY OF JUSTICE,LEGAL AID AGENCY,30/11/2016,Lower Crime,LEGAL AID FUND,WALSH SOLICITORS LTD,1106788:145913119,"28,055.00",Legal Aid Payment Lower Crime,
MINISTRY OF JUSTICE,LEGAL AID AGENCY,02/11/2016,Civil Representation,LEGAL AID FUND,WANNOPS LLP,1089071:145641276,"28,037.24",Legal Aid Payment Civil Representation,
MINISTRY OF JUSTICE,LEGAL AID AGENCY,02/11/2016,Lower Crime,LEGAL AID FUND,WATSON WOODHOUSE SOLICITORS LLP,1090172:145676035,"53,700.00",Legal Aid Payment Lower Crime,
MINISTRY OF JUSTICE,LEGAL AID AGENCY,30/11/2016,Lower Crime,LEGAL AID FUND,WATSON WOODHOUSE SOLICITORS LLP,1108964:145911843,"53,700.00",Legal Aid Payment Lower Crime,
MINISTRY OF JUSTICE,LEGAL AID AGENCY,02/11/2016,Lower Crime,LEGAL AID FUND,WELLS BURCOMBE LLP,1087996:145676499,"73,161.00",Legal Aid Payment Lower Crime,
MINISTRY OF JUSTICE,LEGAL AID AGENCY,30/11/2016,Lower Crime,LEGAL AID FUND,WELLS BURCOMBE LLP,1108365:145912305,"63,986.00",Legal Aid Payment Lower Crime,
MINISTRY OF JUSTICE,LEGAL AID AGENCY,30/11/2016,Lower Crime,LEGAL AID FUND,WELLS BURCOMBE LLP,1105602:145912929,"52,055.00",Legal Aid Payment Lower Crime,
MINISTRY OF JUSTICE,LEGAL AID AGENCY,02/11/2016,Lower Crime,LEGAL AID FUND,WELLS BURCOMBE LLP,1086217:145677123,"42,358.00",Legal Aid Payment Lower Crime,
MINISTRY OF JUSTICE,LEGAL AID AGENCY,02/11/2016,Lower Crime,LEGAL AID FUND,WESSEX SOLICITORS CHAMBERS,1087949:145676333,"38,600.00",Legal Aid Payment Lower Crime,
MINISTRY OF JUSTICE,LEGAL AID AGENCY,30/11/2016,Lower Crime,LEGAL AID FUND,WESSEX SOLICITORS CHAMBERS,1105688:145912136,"38,600.00",Legal Aid Payment Lower Crime,
MINISTRY OF JUSTICE,LEGAL AID AGENCY,02/11/2016,Civil Representation,LEGAL AID FUND,WHATLEY RECORDON,1090307:3000000560510011,"35,255.59",Legal Aid Payment Civil Representation,
MINISTRY OF JUSTICE,LEGAL AID AGENCY,30/11/2016,Lower Crime,LEGAL AID FUND,WILFORD SMITH & CO LTD,1105947:145912536,"25,840.00",Legal Aid Payment Lower Crime,
MINISTRY OF JUSTICE,LEGAL AID AGENCY,09/11/2016,Higher Crime,LEGAL AID FUND,WILLIAM J EVANS,1091407:145743484,"35,929.44",Legal Aid Payment Higher Crime,
MINISTRY OF JUSTICE,LEGAL AID AGENCY,23/11/2016,Higher Crime,LEGAL AID FUND,WILLIAM J GREGG,1102557:145811466,"44,277.00",Legal Aid Payment Higher Crime,
MINISTRY OF JUSTICE,LEGAL AID AGENCY,02/11/2016,Lower Crime,LEGAL AID FUND,WILLIAMSONS SOLICITORS LTD,1090118:145676115,"48,600.00",Legal Aid Payment Lower Crime,
MINISTRY OF JUSTICE,LEGAL AID AGENCY,30/11/2016,Lower Crime,LEGAL AID FUND,WILLIAMSONS SOLICITORS LTD,1109017:145911920,"48,600.00",Legal Aid Payment Lower Crime,
MINISTRY OF JUSTICE,LEGAL AID AGENCY,30/11/2016,Civil Representation,LEGAL AID FUND,WILLIAMSONS SOLICITORS LTD,1109018:145897445,"28,432.43",Legal Aid Payment Civil Representation,
MINISTRY OF JUSTICE,LEGAL AID AGENCY,02/11/2016,Lower Crime,LEGAL AID FUND,WILSON DEVONALD GRIFFITHS JOHN,1088278:145675823,"45,000.00",Legal Aid Payment Lower Crime,
MINISTRY OF JUSTICE,LEGAL AID AGENCY,30/11/2016,Lower Crime,LEGAL AID FUND,WILSON DEVONALD GRIFFITHS JOHN,1106215:145911636,"45,000.00",Legal Aid Payment Lower Crime,
MINISTRY OF JUSTICE,LEGAL AID AGENCY,30/11/2016,Legal Help,LEGAL AID FUND,WILSON SOLICITORS LLP,1108709:145890534,"125,000.00",Legal Aid Payment Legal Help,
MINISTRY OF JUSTICE,LEGAL AID AGENCY,02/11/2016,Legal Help,LEGAL AID FUND,WILSON SOLICITORS LLP,1088241:145650678,"90,000.00",Legal Aid Payment Legal Help,
MINISTRY OF JUSTICE,LEGAL AID AGENCY,02/11/2016,Legal Help,LEGAL AID FUND,WILSON SOLICITORS LLP,1088241:145650679,"35,000.00",Legal Aid Payment Legal Help,
MINISTRY OF JUSTICE,LEGAL AID AGENCY,30/11/2016,Legal Help,LEGAL AID FUND,WILSON SOLICITORS LLP,1106983:145911527,"26,724.00",Legal Aid Payment Legal Help,
MINISTRY OF JUSTICE,LEGAL AID AGENCY,02/11/2016,Legal Help,LEGAL AID FUND,WIMBLEDON SOLICITORS,1087925:145675543,"32,829.00",Legal Aid Payment Legal Help,
MINISTRY OF JUSTICE,LEGAL AID AGENCY,23/11/2016,Civil Representation,LEGAL AID FUND,WOLLEN MICHELMORE,1103959:145824949,"30,891.00",Legal Aid Payment Civil Representation,
MINISTRY OF JUSTICE,LEGAL AID AGENCY,02/11/2016,Legal Help,LEGAL AID FUND,WOLTON & CO,1086410:145674969,"31,092.00",Legal Aid Payment Legal Help,
MINISTRY OF JUSTICE,LEGAL AID AGENCY,23/11/2016,Civil Representation,LEGAL AID FUND,WTB SOLICITORS LLP,1101561:145840759,"25,726.22",Legal Aid Payment Civil Representation,
MINISTRY OF JUSTICE,LEGAL AID AGENCY,02/11/2016,Lower Crime,LEGAL AID FUND,YARWOOD & STUBLEY,1090170:145676036,"35,900.00",Legal Aid Payment Lower Crime,
MINISTRY OF JUSTICE,LEGAL AID AGENCY,30/11/2016,Lower Crime,LEGAL AID FUND,YARWOOD & STUBLEY,1108961:145911844,"35,900.00",Legal Aid Payment Lower Crime,
MINISTRY OF JUSTICE,LEGAL AID AGENCY,02/11/2016,Higher Crime,LEGAL AID FUND,ZACHARIAS A A MIAH,1087549:145647580,"41,343.96",Legal Aid Payment Higher Crime,
MINISTRY OF JUSTICE,LEGAL AID AGENCY,30/11/2016,Higher Crime,LEGAL AID FUND,ZARIF KHAN,1105067:145894159,"29,363.64",Legal Aid Payment Higher Crime,
MINISTRY OF JUSTICE,LEGAL AID AGENCY,30/11/2016,Higher Crime,LEGAL AID FUND,ZMS LEGAL LTD TA ZMS SOLICITORS,1105745:145884561,"69,218.44",Legal Aid Payment Higher Crime,
MINISTRY OF JUSTICE,LEGAL AID AGENCY,30/11/2016,Lower Crime,LEGAL AID FUND,ZMS LEGAL LTD TA ZMS SOLICITORS,1105745:145912265,"25,213.00",Legal Aid Payment Lower Crime,
